Body Name,Body,Supplier,Transaction Number,Payment Date,Amount,Directorate,Organisational unit,Cost Centre/Detail Code,Cost Centre Description,Detail Code Description
Ashfield District Council,37UB,HEB Surveyors,V0988894,10/03/2022,2020,R & B Transformation 2,Supplies & Services,D00300/D200008,Capital Receipts General Fund,Payments to Contractors External
Ashfield District Council,37UB,Royal British Legion,V0992227,31/03/2022,288,Chief Executive 2,Supplies & Services,A01001/D400009,Democratic Core,Civic Events
Ashfield District Council,37UB,Direct Plumbing & Heating Supplies Ltd,V0990436,10/03/2022,514.83,R & B Transformation 2,Suspense & Overall Control,Z99026/Z999,Control Accounts,Credit control totals
Ashfield District Council,37UB,First Art,V0991983,31/03/2022,33,R & B Transformation 2,Suspense & Overall Control,Z99026/Z999,Control Accounts,Credit control totals
Ashfield District Council,37UB,Headway - The Brain Injury Association,V0992071,31/03/2022,1444.8,R & B Transformation 2,Suspense & Overall Control,Z99026/Z999,Control Accounts,Credit control totals
Ashfield District Council,37UB,Martin & Co Estate Agents,V0990371,10/03/2022,232.7,R & B Transformation 2,Suspense & Overall Control,Z99026/Z999,Control Accounts,Credit control totals
Ashfield District Council,37UB,Rob Hallam T/A Stage Letters,V0992076,31/03/2022,29.92,R & B Transformation 2,Suspense & Overall Control,Z99026/Z999,Control Accounts,Credit control totals
Ashfield District Council,37UB,Abbott & Mason Building & Joinery Contractors Ltd,V0990305,10/03/2022,5284,Housing & Assets 2,Supplies & Services,G00002001/D200008,Capital Corporate,Payments to Contractors External
Ashfield District Council,37UB,Bronbury Services Ltd,V0990848,24/03/2022,6705,Housing & Assets 2,Supplies & Services,G00002001/D200008,Capital Corporate,Payments to Contractors External
Ashfield District Council,37UB,Bronbury Services Ltd,V0992243,31/03/2022,10500,Housing & Assets 2,Supplies & Services,G00002001/D200008,Capital Corporate,Payments to Contractors External
Ashfield District Council,37UB,Bronbury Services Ltd,V0992243,31/03/2022,10500,Housing & Assets 2,Supplies & Services,g00002001/d200008,Capital Corporate,Payments to Contractors External
Ashfield District Council,37UB,Cadent Gas Limited,V0990424,10/03/2022,716,Housing & Assets 2,Supplies & Services,G00002001/D200008,Capital Corporate,Payments to Contractors External
Ashfield District Council,37UB,Crestra Ltd,V0989386,03/03/2022,17578.43,Housing & Assets 2,Supplies & Services,G00002001/D200008,Capital Corporate,Payments to Contractors External
Ashfield District Council,37UB,Crestra Ltd,V0990799,17/03/2022,3102.08,Housing & Assets 2,Supplies & Services,G00002001/D200008,Capital Corporate,Payments to Contractors External
Ashfield District Council,37UB,D Cresswell & Son (Electricians) Ltd,V0992234,31/03/2022,3826,Housing & Assets 2,Supplies & Services,G00002001/D200008,Capital Corporate,Payments to Contractors External
Ashfield District Council,37UB,Davinhulme Security Dogs,V0989518,10/03/2022,462,Housing & Assets 2,Supplies & Services,C00264/D200008,Capital Corporate,Payments to Contractors External
Ashfield District Council,37UB,Davinhulme Security Dogs,V0989519,10/03/2022,40,Housing & Assets 2,Supplies & Services,C00264/D200008,Capital Corporate,Payments to Contractors External
Ashfield District Council,37UB,Harold Adkin & Sons Ltd,V0992224,31/03/2022,1661.05,Housing & Assets 2,Supplies & Services,C00276/D200008,Capital Corporate,Payments to Contractors External
Ashfield District Council,37UB,Ian Williams Ltd,V0990884,17/03/2022,32981.19,Housing & Assets 2,Supplies & Services,C00254/D200008,Capital Corporate,Payments to Contractors External
Ashfield District Council,37UB,Lindum Group Limited,V0989420,03/03/2022,24956.55,Housing & Assets 2,Supplies & Services,C00256/D200008,Capital Corporate,Payments to Contractors External
Ashfield District Council,37UB,Lindum Group Limited,V0990834,17/03/2022,53471.65,Housing & Assets 2,Supplies & Services,C00269/D200008,Capital Corporate,Payments to Contractors External
Ashfield District Council,37UB,Neil Shacklock Contractors Ltd,V0989473,03/03/2022,2190,Housing & Assets 2,Supplies & Services,G00002002/D200008,Capital Corporate,Payments to Contractors External
Ashfield District Council,37UB,Neil Shacklock Contractors Ltd,V0990420,10/03/2022,2410,Housing & Assets 2,Supplies & Services,G00002002/D200008,Capital Corporate,Payments to Contractors External
Ashfield District Council,37UB,Neil Shacklock Contractors Ltd,V0990980,17/03/2022,2890,Housing & Assets 2,Supplies & Services,G00002002/D200008,Capital Corporate,Payments to Contractors External
Ashfield District Council,37UB,Neil Shacklock Contractors Ltd,V0991782,24/03/2022,3390,Housing & Assets 2,Supplies & Services,G00002002/D200008,Capital Corporate,Payments to Contractors External
Ashfield District Council,37UB,Obam Lift Services Ltd,V0989532,03/03/2022,1775,Housing & Assets 2,Supplies & Services,G00002001/D200008,Capital Corporate,Payments to Contractors External
Ashfield District Council,37UB,Obam Lift Services Ltd,V0990849,17/03/2022,1808,Housing & Assets 2,Supplies & Services,G00002001/D200008,Capital Corporate,Payments to Contractors External
Ashfield District Council,37UB,Obam Lift Services Ltd,V0990979,17/03/2022,5160,Housing & Assets 2,Supplies & Services,G00002001/D200008,Capital Corporate,Payments to Contractors External
Ashfield District Council,37UB,Second Element Ltd,V0989382,03/03/2022,450,Housing & Assets 2,Supplies & Services,C00264/D200008,Capital Corporate,Payments to Contractors External
Ashfield District Council,37UB,Second Element Ltd,V0989476,03/03/2022,820,Housing & Assets 2,Supplies & Services,C00264/D200008,Capital Corporate,Payments to Contractors External
Ashfield District Council,37UB,Severn Trent Water Limited,V0992075,31/03/2022,272.26,Housing & Assets 2,Supplies & Services,C00276/D200008,Capital Corporate,Payments to Contractors External
Ashfield District Council,37UB,Sustainable Building Services (Uk) Ltd,V0991414,31/03/2022,45000,Housing & Assets 2,Supplies & Services,C00268/D200008,Capital Corporate,Payments to Contractors External
Ashfield District Council,37UB,Vaughandale Construction Ltd,V0990285,03/03/2022,12451,Housing & Assets 2,Supplies & Services,G00002001/D200008,Capital Corporate,Payments to Contractors External
Ashfield District Council,37UB,Ven Construction,V0990251,03/03/2022,3210,Housing & Assets 2,Supplies & Services,G00002001/D200008,Capital Corporate,Payments to Contractors External
Ashfield District Council,37UB,Ven Construction,V0992235,31/03/2022,11898.28,Housing & Assets 2,Supplies & Services,G00002001/D200008,Capital Corporate,Payments to Contractors External
Ashfield District Council,37UB,Andy Dean Business Solutions Ltd,V0991948,31/03/2022,4351.7,Place & Communities 2,Supplies & Services,c00255003/D200008,Capital Corporate,Payments to Contractors External
Ashfield District Council,37UB,Andy Dean Business Solutions Ltd,V0991949,31/03/2022,1958.34,Place & Communities 2,Supplies & Services,c00255003/D200008,Capital Corporate,Payments to Contractors External
Ashfield District Council,37UB,BH Compliance Ltd,V0989491,03/03/2022,1590,Place & Communities 2,Supplies & Services,C00265/D200008,Capital Corporate,Payments to Contractors External
Ashfield District Council,37UB,BH Compliance Ltd,V0991399,24/03/2022,1650,Place & Communities 2,Supplies & Services,C00265/D200008,Capital Corporate,Payments to Contractors External
Ashfield District Council,37UB,Faithful & Gould Ltd,V0989489,03/03/2022,22321.39,Place & Communities 2,Supplies & Services,C00262/D200008,Capital Corporate,Payments to Contractors External
Ashfield District Council,37UB,Faithful & Gould Ltd,V0989490,03/03/2022,2525.21,Place & Communities 2,Supplies & Services,C00262/D200008,Capital Corporate,Payments to Contractors External
Ashfield District Council,37UB,FMG Consulting Ltd,V0990250,03/03/2022,2497.5,Place & Communities 2,Supplies & Services,C00255009/D200008,Capital Corporate,Payments to Contractors External
Ashfield District Council,37UB,FMG Consulting Ltd,V0990250,03/03/2022,2497.5,Place & Communities 2,Supplies & Services,C00255015/D200008,Capital Corporate,Payments to Contractors External
Ashfield District Council,37UB,Forest Farm Tree Services,V0991499,24/03/2022,3310,Place & Communities 2,Supplies & Services,C00266/D200008,Capital Corporate,Payments to Contractors External
Ashfield District Council,37UB,Gleeds Building Surveying Ltd,V0991489,24/03/2022,8039.08,Place & Communities 2,Supplies & Services,C00264/D200008,Capital Corporate,Payments to Contractors External
Ashfield District Council,37UB,Gleeds Building Surveying Ltd,V0991490,24/03/2022,11301.85,Place & Communities 2,Supplies & Services,C00265/D200008,Capital Corporate,Payments to Contractors External
Ashfield District Council,37UB,Innes England,V0989541,03/03/2022,2500,Place & Communities 2,Supplies & Services,C00255002/D200008,Capital Corporate,Payments to Contractors External
Ashfield District Council,37UB,Keep Britain Tidy,V0991549,24/03/2022,1734,Place & Communities 2,Supplies & Services,C00258/D200008,Capital Corporate,Payments to Contractors External
Ashfield District Council,37UB,Kinver Business Solutions Ltd,V0992252,31/03/2022,1280,Place & Communities 2,Supplies & Services,C00255001/D200008,Capital Corporate,Payments to Contractors External
Ashfield District Council,37UB,Kinver Business Solutions Ltd,V0992252,31/03/2022,1280,Place & Communities 2,Supplies & Services,C00255011/D200008,Capital Corporate,Payments to Contractors External
Ashfield District Council,37UB,Kinver Business Solutions Ltd,V0992252,31/03/2022,1280,Place & Communities 2,Supplies & Services,C00255007/D200008,Capital Corporate,Payments to Contractors External
Ashfield District Council,37UB,Kinver Business Solutions Ltd,V0992252,31/03/2022,1280,Place & Communities 2,Supplies & Services,C00255013/D200008,Capital Corporate,Payments to Contractors External
Ashfield District Council,37UB,Kinver Business Solutions Ltd,V0992252,31/03/2022,1280,Place & Communities 2,Supplies & Services,C00255008/D200008,Capital Corporate,Payments to Contractors External
Ashfield District Council,37UB,Kinver Business Solutions Ltd,V0992252,31/03/2022,3300,Place & Communities 2,Supplies & Services,C00255018/D200008,Capital Corporate,Payments to Contractors External
Ashfield District Council,37UB,Kinver Business Solutions Ltd,V0992252,31/03/2022,1280,Place & Communities 2,Supplies & Services,C00255017/D200008,Capital Corporate,Payments to Contractors External
Ashfield District Council,37UB,Kinver Business Solutions Ltd,V0992252,31/03/2022,1280,Place & Communities 2,Supplies & Services,C00255002/D200008,Capital Corporate,Payments to Contractors External
Ashfield District Council,37UB,Kinver Business Solutions Ltd,V0992253,31/03/2022,1280,Place & Communities 2,Supplies & Services,C00264/D200008,Capital Corporate,Payments to Contractors External
Ashfield District Council,37UB,Kinver Business Solutions Ltd,V0992253,31/03/2022,1280,Place & Communities 2,Supplies & Services,C00265/D200008,Capital Corporate,Payments to Contractors External
Ashfield District Council,37UB,Kinver Business Solutions Ltd,V0992253,31/03/2022,1280,Place & Communities 2,Supplies & Services,C00263/D200008,Capital Corporate,Payments to Contractors External
Ashfield District Council,37UB,Kinver Business Solutions Ltd,V0992261,31/03/2022,1280,Place & Communities 2,Supplies & Services,C00265/D200008,Capital Corporate,Payments to Contractors External
Ashfield District Council,37UB,Kinver Business Solutions Ltd,V0992261,31/03/2022,1280,Place & Communities 2,Supplies & Services,C00264/D200008,Capital Corporate,Payments to Contractors External
Ashfield District Council,37UB,Kinver Business Solutions Ltd,V0992261,31/03/2022,1280,Place & Communities 2,Supplies & Services,C00263/D200008,Capital Corporate,Payments to Contractors External
Ashfield District Council,37UB,Kinver Business Solutions Ltd,V0992262,31/03/2022,1280,Place & Communities 2,Supplies & Services,C00255007/D200008,Capital Corporate,Payments to Contractors External
Ashfield District Council,37UB,Kinver Business Solutions Ltd,V0992262,31/03/2022,3300,Place & Communities 2,Supplies & Services,C00255018/D200008,Capital Corporate,Payments to Contractors External
Ashfield District Council,37UB,Kinver Business Solutions Ltd,V0992262,31/03/2022,1280,Place & Communities 2,Supplies & Services,C00255011/D200008,Capital Corporate,Payments to Contractors External
Ashfield District Council,37UB,Kinver Business Solutions Ltd,V0992262,31/03/2022,1280,Place & Communities 2,Supplies & Services,C00255002/D200008,Capital Corporate,Payments to Contractors External
Ashfield District Council,37UB,Kinver Business Solutions Ltd,V0992262,31/03/2022,1280,Place & Communities 2,Supplies & Services,C00255008/D200008,Capital Corporate,Payments to Contractors External
Ashfield District Council,37UB,Kinver Business Solutions Ltd,V0992262,31/03/2022,1280,Place & Communities 2,Supplies & Services,C00255017/D200008,Capital Corporate,Payments to Contractors External
Ashfield District Council,37UB,Kinver Business Solutions Ltd,V0992262,31/03/2022,1280,Place & Communities 2,Supplies & Services,C00255013/D200008,Capital Corporate,Payments to Contractors External
Ashfield District Council,37UB,Kinver Business Solutions Ltd,V0992262,31/03/2022,1280,Place & Communities 2,Supplies & Services,C00255001/D200008,Capital Corporate,Payments to Contractors External
Ashfield District Council,37UB,Maber Associates Ltd,V0989428,03/03/2022,3600,Place & Communities 2,Supplies & Services,c00255003/D200008,Capital Corporate,Payments to Contractors External
Ashfield District Council,37UB,Mansfield & Sutton Astronomical Society,V0989545,03/03/2022,30776,Place & Communities 2,Supplies & Services,C00255014/D200008,Capital Corporate,Payments to Contractors External
Ashfield District Council,37UB,Mansfield & Sutton Astronomical Society,V0991003,17/03/2022,107724,Place & Communities 2,Supplies & Services,C00255014/D200008,Capital Corporate,Payments to Contractors External
Ashfield District Council,37UB,Quadrant Building Control,V0989527,03/03/2022,750,Place & Communities 2,Supplies & Services,c00262/D200008,Capital Corporate,Payments to Contractors External
Ashfield District Council,37UB,Stage Right Theatre Consultant,V0991397,24/03/2022,4557.5,Place & Communities 2,Supplies & Services,C00263/D200008,Capital Corporate,Payments to Contractors External
Ashfield District Council,37UB,The Lock Shop (SIA) Ltd,V0989474,03/03/2022,90,Place & Communities 2,Supplies & Services,C00265/D200008,Capital Corporate,Payments to Contractors External
Ashfield District Council,37UB,ThreeRooms Ltd,V0991400,24/03/2022,3375,Place & Communities 2,Supplies & Services,C00264/D200008,Capital Corporate,Payments to Contractors External
Ashfield District Council,37UB,ThreeRooms Ltd,V0991400,24/03/2022,3375,Place & Communities 2,Supplies & Services,C00263/D200008,Capital Corporate,Payments to Contractors External
Ashfield District Council,37UB,Western Power,V0991550,31/03/2022,10938.9,Place & Communities 2,Supplies & Services,C00265/D200008,Capital Corporate,Payments to Contractors External
Ashfield District Council,37UB,WSP UK Ltd,V0989525,03/03/2022,2420,Place & Communities 2,Supplies & Services,C00266/D200008,Capital Corporate,Payments to Contractors External
Ashfield District Council,37UB,Dell Products,V0992089,31/03/2022,2805.55,R & B Transformation 2,Supplies & Services,C00244/D200008,Capital Corporate,Payments to Contractors External
Ashfield District Council,37UB,Industrial Contracting Services Ltd,V0991449,24/03/2022,11733.9,Housing & Assets 2,Supplies & Services,C00243/D200008,Area Consultative Group Scheme,Payments to Contractors External
Ashfield District Council,37UB,Industrial Contracting Services Ltd,V0991450,24/03/2022,8220.51,Housing & Assets 2,Supplies & Services,C00243/D200008,Area Consultative Group Scheme,Payments to Contractors External
Ashfield District Council,37UB,Forest Farm Tree Services,V0991780,24/03/2022,3320,Place & Communities 2,Supplies & Services,C00124/D200008,Area Consultative Group Scheme,Payments to Contractors External
Ashfield District Council,37UB,Sutcliffe Play,V0985624,31/03/2022,44200.61,Place & Communities 2,Supplies & Services,D00251/D200008,Area Consultative Group Scheme,Payments to Contractors External
Ashfield District Council,37UB,Greenacre Recruitment Limited,V0989348,10/03/2022,2250,Chief Executive 2,Supplies & Services,C00235/D200008,Capital Economy,Payments to Contractors External
Ashfield District Council,37UB,Greenacre Recruitment Limited,V0992225,31/03/2022,1650,Chief Executive 2,Supplies & Services,C00235/D200008,Capital Economy,Payments to Contractors External
Ashfield District Council,37UB,Greenacre Recruitment Limited,V0992226,31/03/2022,1800,Chief Executive 2,Supplies & Services,C00235/D200008,Capital Economy,Payments to Contractors External
Ashfield District Council,37UB,Nottinghamshire County Council,V0990330,17/03/2022,713,Housing & Assets 2,Supplies & Services,C00249/D200008,Capital Economy,Payments to Contractors External
Ashfield District Council,37UB,Faithful & Gould Ltd,V0989490,03/03/2022,5959.53,Place & Communities 2,Supplies & Services,c00235/D200008,Capital Economy,Payments to Contractors External
Ashfield District Council,37UB,Faithful & Gould Ltd,V0991533,24/03/2022,3694.64,Place & Communities 2,Supplies & Services,c00235/D200008,Capital Economy,Payments to Contractors External
Ashfield District Council,37UB,Faithful & Gould Ltd,V0991590,24/03/2022,6500,Place & Communities 2,Supplies & Services,C00235/D200008,Capital Economy,Payments to Contractors External
Ashfield District Council,37UB,Faithful & Gould Ltd,V0991590,24/03/2022,1984.74,Place & Communities 2,Supplies & Services,c00235/D200008,Capital Economy,Payments to Contractors External
Ashfield District Council,37UB,Hickton Consultants,V0990924,24/03/2022,3072,Place & Communities 2,Supplies & Services,C00235/D200008,Capital Economy,Payments to Contractors External
Ashfield District Council,37UB,Kier Construction - North and Scotland,V0990392,10/03/2022,611430.54,Place & Communities 2,Supplies & Services,c00235/D200008,Capital Economy,Payments to Contractors External
Ashfield District Council,37UB,Kier Construction - North and Scotland,V0992155,31/03/2022,643148.31,Place & Communities 2,Supplies & Services,C00235/D200008,Capital Economy,Payments to Contractors External
Ashfield District Council,37UB,Dementia Adventure,V0989553,03/03/2022,375,Place & Communities 2,Supplies & Services,C00125001/D200008,Capital Environment,Payments to Contractors External
Ashfield District Council,37UB,Nottinghamshire County Council,V0991396,24/03/2022,11945.77,Place & Communities 2,Supplies & Services,C00125001/D200008,Capital Environment,Payments to Contractors External
Ashfield District Council,37UB,Geldards LLP,V0990866,24/03/2022,701,Housing & Assets 2,Supplies & Services,G00932/D200008,Capital Housing Revenue,Payments to Contractors External
Ashfield District Council,37UB,J Tomlinson Ltd,V0990865,17/03/2022,14234.7,Housing & Assets 2,Supplies & Services,G00450010/D200008,Capital Housing Revenue,Payments to Contractors External
Ashfield District Council,37UB,J Tomlinson Ltd,V0990865,17/03/2022,138753.44,Housing & Assets 2,Supplies & Services,G00450004/D200008,Capital Housing Revenue,Payments to Contractors External
Ashfield District Council,37UB,J Tomlinson Ltd,V0990865,17/03/2022,55168.05,Housing & Assets 2,Supplies & Services,G00450001/D200008,Capital Housing Revenue,Payments to Contractors External
Ashfield District Council,37UB,J Tomlinson Ltd,V0990865,17/03/2022,14153.41,Housing & Assets 2,Supplies & Services,G00470001/D200008,Capital Housing Revenue,Payments to Contractors External
Ashfield District Council,37UB,Lindum Group Limited,V0990298,10/03/2022,226421.96,Housing & Assets 2,Supplies & Services,G00932/D200008,Capital Housing Revenue,Payments to Contractors External
Ashfield District Council,37UB,Miltons Wallpapers Limited,V0989529,03/03/2022,839.45,Housing & Assets 2,Supplies & Services,G00450003/D200033,Capital Housing Revenue,Decoration Vouchers
Ashfield District Council,37UB,Rider Levett Bucknall UK Ltd,V0989421,03/03/2022,2500,Housing & Assets 2,Supplies & Services,G00932/D200008,Capital Housing Revenue,Payments to Contractors External
Ashfield District Council,37UB,Rider Levett Bucknall UK Ltd,V0989422,03/03/2022,3000,Housing & Assets 2,Supplies & Services,G00931/D200008,Capital Housing Revenue,Payments to Contractors External
Ashfield District Council,37UB,Rider Levett Bucknall UK Ltd,V0992063,31/03/2022,2241,Housing & Assets 2,Supplies & Services,G00932/D200008,Capital Housing Revenue,Payments to Contractors External
Ashfield District Council,37UB,Rider Levett Bucknall UK Ltd,V0992064,31/03/2022,3000,Housing & Assets 2,Supplies & Services,G00932/D200008,Capital Housing Revenue,Payments to Contractors External
Ashfield District Council,37UB,Sustainable Building Services (Uk) Ltd,V0991414,31/03/2022,19450.57,Housing & Assets 2,Supplies & Services,G00480001/D200008,Capital Housing Revenue,Payments to Contractors External
Ashfield District Council,37UB,Sustainable Building Services (Uk) Ltd,V0991414,31/03/2022,27628.01,Housing & Assets 2,Supplies & Services,G00480001/D200008,Capital Housing Revenue,Payments to Contractors External
Ashfield District Council,37UB,Wilko Retail Limited,V0990909,17/03/2022,116.21,Housing & Assets 2,Supplies & Services,G00450003/D200033,Capital Housing Revenue,Decoration Vouchers
Ashfield District Council,37UB,Wilko Retail Limited,V0990910,17/03/2022,125,Housing & Assets 2,Supplies & Services,G00450003/D200033,Capital Housing Revenue,Decoration Vouchers
Ashfield District Council,37UB,Wilko Retail Limited,V0990911,17/03/2022,135.83,Housing & Assets 2,Supplies & Services,G00450003/D200033,Capital Housing Revenue,Decoration Vouchers
Ashfield District Council,37UB,Wilko Retail Limited,V0990912,17/03/2022,61.79,Housing & Assets 2,Supplies & Services,G00450003/D200033,Capital Housing Revenue,Decoration Vouchers
Ashfield District Council,37UB,Wilko Retail Limited,V0990913,17/03/2022,61.67,Housing & Assets 2,Supplies & Services,G00450003/D200033,Capital Housing Revenue,Decoration Vouchers
Ashfield District Council,37UB,Wilko Retail Limited,V0990914,17/03/2022,62.5,Housing & Assets 2,Supplies & Services,G00450003/D200033,Capital Housing Revenue,Decoration Vouchers
Ashfield District Council,37UB,Wilko Retail Limited,V0990915,17/03/2022,58.33,Housing & Assets 2,Supplies & Services,G00450003/D200033,Capital Housing Revenue,Decoration Vouchers
Ashfield District Council,37UB,Wilko Retail Limited,V0990916,17/03/2022,37.5,Housing & Assets 2,Supplies & Services,G00450003/D200033,Capital Housing Revenue,Decoration Vouchers
Ashfield District Council,37UB,Wilko Retail Limited,V0990917,17/03/2022,186.67,Housing & Assets 2,Supplies & Services,G00450003/D200033,Capital Housing Revenue,Decoration Vouchers
Ashfield District Council,37UB,Wilko Retail Limited,V0990918,17/03/2022,50,Housing & Assets 2,Supplies & Services,G00450003/D200033,Capital Housing Revenue,Decoration Vouchers
Ashfield District Council,37UB,Wilko Retail Limited,V0990919,17/03/2022,312.5,Housing & Assets 2,Supplies & Services,G00450003/D200033,Capital Housing Revenue,Decoration Vouchers
Ashfield District Council,37UB,Wilko Retail Limited,V0990920,17/03/2022,61.87,Housing & Assets 2,Supplies & Services,G00450003/D200033,Capital Housing Revenue,Decoration Vouchers
Ashfield District Council,37UB,Wilko Retail Limited,V0990932,17/03/2022,60,Housing & Assets 2,Supplies & Services,G00450003/D200033,Capital Housing Revenue,Decoration Vouchers
Ashfield District Council,37UB,Wilko Retail Limited,V0990933,17/03/2022,1.67,Housing & Assets 2,Supplies & Services,G00450003/D200033,Capital Housing Revenue,Decoration Vouchers
Ashfield District Council,37UB,Wilko Retail Limited,V0990934,17/03/2022,187.5,Housing & Assets 2,Supplies & Services,G00450003/D200033,Capital Housing Revenue,Decoration Vouchers
Ashfield District Council,37UB,Wilko Retail Limited,V0990935,17/03/2022,62.5,Housing & Assets 2,Supplies & Services,G00450003/D200033,Capital Housing Revenue,Decoration Vouchers
Ashfield District Council,37UB,Wilko Retail Limited,V0990936,17/03/2022,185.21,Housing & Assets 2,Supplies & Services,G00450003/D200033,Capital Housing Revenue,Decoration Vouchers
Ashfield District Council,37UB,Wilko Retail Limited,V0990937,17/03/2022,66.67,Housing & Assets 2,Supplies & Services,G00450003/D200033,Capital Housing Revenue,Decoration Vouchers
Ashfield District Council,37UB,Wilko Retail Limited,V0990938,17/03/2022,62.5,Housing & Assets 2,Supplies & Services,G00450003/D200033,Capital Housing Revenue,Decoration Vouchers
Ashfield District Council,37UB,Wilko Retail Limited,V0990939,17/03/2022,62.5,Housing & Assets 2,Supplies & Services,G00450003/D200033,Capital Housing Revenue,Decoration Vouchers
Ashfield District Council,37UB,Wilko Retail Limited,V0990940,17/03/2022,137.5,Housing & Assets 2,Supplies & Services,G00450003/D200033,Capital Housing Revenue,Decoration Vouchers
Ashfield District Council,37UB,Wilko Retail Limited,V0990941,17/03/2022,62.08,Housing & Assets 2,Supplies & Services,G00450003/D200033,Capital Housing Revenue,Decoration Vouchers
Ashfield District Council,37UB,Wilko Retail Limited,V0990942,17/03/2022,174.58,Housing & Assets 2,Supplies & Services,G00450003/D200033,Capital Housing Revenue,Decoration Vouchers
Ashfield District Council,37UB,Wilko Retail Limited,V0990943,17/03/2022,62.5,Housing & Assets 2,Supplies & Services,G00450003/D200033,Capital Housing Revenue,Decoration Vouchers
Ashfield District Council,37UB,Wilko Retail Limited,V0990944,17/03/2022,62.04,Housing & Assets 2,Supplies & Services,G00450003/D200033,Capital Housing Revenue,Decoration Vouchers
Ashfield District Council,37UB,Wilko Retail Limited,V0990945,17/03/2022,62.5,Housing & Assets 2,Supplies & Services,G00450003/D200033,Capital Housing Revenue,Decoration Vouchers
Ashfield District Council,37UB,Wilko Retail Limited,V0990946,17/03/2022,186.67,Housing & Assets 2,Supplies & Services,G00450003/D200033,Capital Housing Revenue,Decoration Vouchers
Ashfield District Council,37UB,Wilko Retail Limited,V0990947,17/03/2022,61.67,Housing & Assets 2,Supplies & Services,G00450003/D200033,Capital Housing Revenue,Decoration Vouchers
Ashfield District Council,37UB,Wilko Retail Limited,V0990948,17/03/2022,133.33,Housing & Assets 2,Supplies & Services,G00450003/D200033,Capital Housing Revenue,Decoration Vouchers
Ashfield District Council,37UB,Wilko Retail Limited,V0990949,17/03/2022,125,Housing & Assets 2,Supplies & Services,G00450003/D200033,Capital Housing Revenue,Decoration Vouchers
Ashfield District Council,37UB,Wilko Retail Limited,V0990950,17/03/2022,61,Housing & Assets 2,Supplies & Services,G00450003/D200033,Capital Housing Revenue,Decoration Vouchers
Ashfield District Council,37UB,Wilko Retail Limited,V0990950,17/03/2022,1.71,Housing & Assets 2,Supplies & Services,G00450003/D200033,Capital Housing Revenue,Decoration Vouchers
Ashfield District Council,37UB,Wilko Retail Limited,V0990951,17/03/2022,62.5,Housing & Assets 2,Supplies & Services,G00450003/D200033,Capital Housing Revenue,Decoration Vouchers
Ashfield District Council,37UB,Wilko Retail Limited,V0990952,17/03/2022,125,Housing & Assets 2,Supplies & Services,G00450003/D200033,Capital Housing Revenue,Decoration Vouchers
Ashfield District Council,37UB,Wilko Retail Limited,V0991326,17/03/2022,62.5,Housing & Assets 2,Supplies & Services,G00450003/D200033,Capital Housing Revenue,Decoration Vouchers
Ashfield District Council,37UB,Wilko Retail Limited,V0991438,24/03/2022,62.5,Housing & Assets 2,Supplies & Services,G00450003/D200033,Capital Housing Revenue,Decoration Vouchers
Ashfield District Council,37UB,Wilko Retail Limited,V0991439,24/03/2022,58.33,Housing & Assets 2,Supplies & Services,G00450003/D200033,Capital Housing Revenue,Decoration Vouchers
Ashfield District Council,37UB,Wilko Retail Limited,V0991440,24/03/2022,141.67,Housing & Assets 2,Supplies & Services,G00450003/D200033,Capital Housing Revenue,Decoration Vouchers
Ashfield District Council,37UB,Wilko Retail Limited,V0991441,24/03/2022,58.33,Housing & Assets 2,Supplies & Services,G00450003/D200033,Capital Housing Revenue,Decoration Vouchers
Ashfield District Council,37UB,Wilko Retail Limited,V0991442,24/03/2022,91.67,Housing & Assets 2,Supplies & Services,G00450003/D200033,Capital Housing Revenue,Decoration Vouchers
Ashfield District Council,37UB,Wilko Retail Limited,V0991443,24/03/2022,237.92,Housing & Assets 2,Supplies & Services,G00450003/D200033,Capital Housing Revenue,Decoration Vouchers
Ashfield District Council,37UB,Wilko Retail Limited,V0991444,24/03/2022,124.83,Housing & Assets 2,Supplies & Services,G00450003/D200033,Capital Housing Revenue,Decoration Vouchers
Ashfield District Council,37UB,Wilko Retail Limited,V0991445,24/03/2022,62.5,Housing & Assets 2,Supplies & Services,G00450003/D200033,Capital Housing Revenue,Decoration Vouchers
Ashfield District Council,37UB,Wilko Retail Limited,V0991512,24/03/2022,97.5,Housing & Assets 2,Supplies & Services,G00450003/D200033,Capital Housing Revenue,Decoration Vouchers
Ashfield District Council,37UB,Wilko Retail Limited,V0991513,24/03/2022,125,Housing & Assets 2,Supplies & Services,G00450003/D200033,Capital Housing Revenue,Decoration Vouchers
Ashfield District Council,37UB,Wilko Retail Limited,V0991514,24/03/2022,300.62,Housing & Assets 2,Supplies & Services,G00450003/D200033,Capital Housing Revenue,Decoration Vouchers
Ashfield District Council,37UB,Wilko Retail Limited,V0991515,24/03/2022,62.5,Housing & Assets 2,Supplies & Services,G00450003/D200033,Capital Housing Revenue,Decoration Vouchers
Ashfield District Council,37UB,Wilko Retail Limited,V0991516,24/03/2022,61.87,Housing & Assets 2,Supplies & Services,G00450003/D200033,Capital Housing Revenue,Decoration Vouchers
Ashfield District Council,37UB,Wilko Retail Limited,V0991517,24/03/2022,50.83,Housing & Assets 2,Supplies & Services,G00450003/D200033,Capital Housing Revenue,Decoration Vouchers
Ashfield District Council,37UB,Wilko Retail Limited,V0991518,24/03/2022,125,Housing & Assets 2,Supplies & Services,G00450003/D200033,Capital Housing Revenue,Decoration Vouchers
Ashfield District Council,37UB,Wilko Retail Limited,V0991519,24/03/2022,187.5,Housing & Assets 2,Supplies & Services,G00450003/D200033,Capital Housing Revenue,Decoration Vouchers
Ashfield District Council,37UB,Wilko Retail Limited,V0991520,24/03/2022,125,Housing & Assets 2,Supplies & Services,G00450003/D200033,Capital Housing Revenue,Decoration Vouchers
Ashfield District Council,37UB,Wilko Retail Limited,V0991521,24/03/2022,1.71,Housing & Assets 2,Supplies & Services,G00450003/D200033,Capital Housing Revenue,Decoration Vouchers
Ashfield District Council,37UB,Wilko Retail Limited,V0991521,24/03/2022,247.67,Housing & Assets 2,Supplies & Services,G00450003/D200033,Capital Housing Revenue,Decoration Vouchers
Ashfield District Council,37UB,Wilko Retail Limited,V0991522,24/03/2022,312.5,Housing & Assets 2,Supplies & Services,G00450003/D200033,Capital Housing Revenue,Decoration Vouchers
Ashfield District Council,37UB,Wilko Retail Limited,V0991523,24/03/2022,62.5,Housing & Assets 2,Supplies & Services,G00450003/D200033,Capital Housing Revenue,Decoration Vouchers
Ashfield District Council,37UB,Wilko Retail Limited,V0992097,31/03/2022,145,Housing & Assets 2,Supplies & Services,G00450003/D200033,Capital Housing Revenue,Decoration Vouchers
Ashfield District Council,37UB,Wilko Retail Limited,V0992098,31/03/2022,62.08,Housing & Assets 2,Supplies & Services,G00450003/D200033,Capital Housing Revenue,Decoration Vouchers
Ashfield District Council,37UB,Wilko Retail Limited,V0992099,31/03/2022,62.08,Housing & Assets 2,Supplies & Services,G00450003/D200033,Capital Housing Revenue,Decoration Vouchers
Ashfield District Council,37UB,Wilko Retail Limited,V0992100,31/03/2022,50.58,Housing & Assets 2,Supplies & Services,G00450003/D200033,Capital Housing Revenue,Decoration Vouchers
Ashfield District Council,37UB,Wilko Retail Limited,V0992101,31/03/2022,125,Housing & Assets 2,Supplies & Services,G00450003/D200033,Capital Housing Revenue,Decoration Vouchers
Ashfield District Council,37UB,Wilko Retail Limited,V0992102,31/03/2022,300.83,Housing & Assets 2,Supplies & Services,G00450003/D200033,Capital Housing Revenue,Decoration Vouchers
Ashfield District Council,37UB,Wilko Retail Limited,V0992103,31/03/2022,62.5,Housing & Assets 2,Supplies & Services,G00450003/D200033,Capital Housing Revenue,Decoration Vouchers
Ashfield District Council,37UB,Wilko Retail Limited,V0992104,31/03/2022,62.5,Housing & Assets 2,Supplies & Services,G00450003/D200033,Capital Housing Revenue,Decoration Vouchers
Ashfield District Council,37UB,Wilko Retail Limited,V0992105,31/03/2022,62.5,Housing & Assets 2,Supplies & Services,G00450003/D200033,Capital Housing Revenue,Decoration Vouchers
Ashfield District Council,37UB,Wilko Retail Limited,V0992247,31/03/2022,175.83,Housing & Assets 2,Supplies & Services,G00450003/D200033,Capital Housing Revenue,Decoration Vouchers
Ashfield District Council,37UB,Wilko Retail Limited,V0992251,31/03/2022,66.67,Housing & Assets 2,Supplies & Services,G00450003/D200033,Capital Housing Revenue,Decoration Vouchers
Ashfield District Council,37UB,Amazon Payments UK Ltd,V0990819,17/03/2022,1225,R & B Transformation 2,Supplies & Services,G00930/D200008,Capital Housing Revenue,Payments to Contractors External
Ashfield District Council,37UB,Amazon Payments UK Ltd,V0990823,17/03/2022,1787.5,R & B Transformation 2,Supplies & Services,G00930/D200008,Capital Housing Revenue,Payments to Contractors External
Ashfield District Council,37UB,Total Hire & Sales Ltd,V0991722,29/03/2022,56,R & B Transformation 2,Supplies & Services,G00450008/D200008,Capital Housing Revenue,Payments to Contractors External
Ashfield District Council,37UB,British Telecom PLC,V0990461,24/03/2022,160.3,Housing & Assets 2,Supplies & Services,G51013/D301002,Housing OP and SN,Telephones
Ashfield District Council,37UB,British Telecom PLC,V0991317,24/03/2022,187.84,Housing & Assets 2,Supplies & Services,G51007/D301002,Housing OP and SN,Telephones
Ashfield District Council,37UB,British Telecom PLC,V0991317,24/03/2022,40,Housing & Assets 2,Supplies & Services,G51007/D301002,Housing OP and SN,Telephones
Ashfield District Council,37UB,EDF Energy 1 Ltd,V0990464,17/03/2022,1537.61,Housing & Assets 2,Premises Expenses,G51026/B102,Housing OP and SN,Electricity
Ashfield District Council,37UB,Excel Cleaning Solutions Ltd,V0990372,10/03/2022,22,Housing & Assets 2,Premises Expenses,G51028/B003004,Housing OP and SN,Cleaning
Ashfield District Council,37UB,Excel Cleaning Solutions Ltd,V0990372,10/03/2022,24,Housing & Assets 2,Premises Expenses,G51023/B003004,Housing OP and SN,Cleaning
Ashfield District Council,37UB,Hoot Fire & Security Ltd,V0989455,03/03/2022,56,Housing & Assets 2,Premises Expenses,G51008/B003011,Housing OP and SN,Fire Alarms
Ashfield District Council,37UB,Hoot Fire & Security Ltd,V0989456,03/03/2022,112,Housing & Assets 2,Premises Expenses,G51020/B003011,Housing OP and SN,Fire Alarms
Ashfield District Council,37UB,Hoot Fire & Security Ltd,V0990272,03/03/2022,40,Housing & Assets 2,Premises Expenses,G51020/B003011,Housing OP and SN,Fire Alarms
Ashfield District Council,37UB,Hoot Fire & Security Ltd,V0990276,03/03/2022,50,Housing & Assets 2,Premises Expenses,G51026/B003011,Housing OP and SN,Fire Alarms
Ashfield District Council,37UB,Hoot Fire & Security Ltd,V0990280,03/03/2022,40,Housing & Assets 2,Premises Expenses,G51008/B003011,Housing OP and SN,Fire Alarms
Ashfield District Council,37UB,Hoot Fire & Security Ltd,V0990273,10/03/2022,50,Housing & Assets 2,Premises Expenses,G51007/B003011,Housing OP and SN,Fire Alarms
Ashfield District Council,37UB,Hoot Fire & Security Ltd,V0990274,10/03/2022,50,Housing & Assets 2,Premises Expenses,G51028/B003011,Housing OP and SN,Fire Alarms
Ashfield District Council,37UB,Hoot Fire & Security Ltd,V0990275,10/03/2022,75,Housing & Assets 2,Premises Expenses,G51015/B003011,Housing OP and SN,Fire Alarms
Ashfield District Council,37UB,Hoot Fire & Security Ltd,V0990277,10/03/2022,50,Housing & Assets 2,Premises Expenses,G51027/B003011,Housing OP and SN,Fire Alarms
Ashfield District Council,37UB,Hoot Fire & Security Ltd,V0990278,10/03/2022,50,Housing & Assets 2,Premises Expenses,G51030/B003011,Housing OP and SN,Fire Alarms
Ashfield District Council,37UB,Hoot Fire & Security Ltd,V0990279,10/03/2022,50,Housing & Assets 2,Premises Expenses,G51021/B003011,Housing OP and SN,Fire Alarms
Ashfield District Council,37UB,Hoot Fire & Security Ltd,V0990281,10/03/2022,40,Housing & Assets 2,Premises Expenses,G51009/B003011,Housing OP and SN,Fire Alarms
Ashfield District Council,37UB,Hoot Fire & Security Ltd,V0990282,10/03/2022,50,Housing & Assets 2,Premises Expenses,G51013/B003011,Housing OP and SN,Fire Alarms
Ashfield District Council,37UB,Hoot Fire & Security Ltd,V0990283,10/03/2022,40,Housing & Assets 2,Premises Expenses,G51023/B003011,Housing OP and SN,Fire Alarms
Ashfield District Council,37UB,Hoot Fire & Security Ltd,V0990327,17/03/2022,50,Housing & Assets 2,Premises Expenses,G51007/B003011,Housing OP and SN,Fire Alarms
Ashfield District Council,37UB,Hoot Fire & Security Ltd,V0991337,17/03/2022,539,Housing & Assets 2,Premises Expenses,G51021/B003011,Housing OP and SN,Fire Alarms
Ashfield District Council,37UB,Hoot Fire & Security Ltd,V0988866,24/03/2022,128.5,Housing & Assets 2,Premises Expenses,G51023/B003011,Housing OP and SN,Fire Alarms
Ashfield District Council,37UB,Morris Vermaport Ltd,V0990407,10/03/2022,3195,Housing & Assets 2,Premises Expenses,G51027/B003006,Housing OP and SN,Lift
Ashfield District Council,37UB,Morris Vermaport Ltd,V0990418,10/03/2022,78.75,Housing & Assets 2,Premises Expenses,G51015/B003006,Housing OP and SN,Lift
Ashfield District Council,37UB,Morris Vermaport Ltd,V0990876,17/03/2022,354,Housing & Assets 2,Premises Expenses,G51028/B003006,Housing OP and SN,Lift
Ashfield District Council,37UB,Morris Vermaport Ltd,V0990906,17/03/2022,56.25,Housing & Assets 2,Premises Expenses,G51027/B003006,Housing OP and SN,Lift
Ashfield District Council,37UB,Morris Vermaport Ltd,V0991384,24/03/2022,155,Housing & Assets 2,Premises Expenses,G51015/B003006,Housing OP and SN,Lift
Ashfield District Council,37UB,Castle Water Ltd,V0990434,17/03/2022,65.44,R & B Transformation 2,Premises Expenses,G51027/B401,Housing OP and SN,Water rates
Ashfield District Council,37UB,Castle Water Ltd,V0990434,17/03/2022,37.94,R & B Transformation 2,Premises Expenses,G51015/B401,Housing OP and SN,Water rates
Ashfield District Council,37UB,Castle Water Ltd,V0990434,17/03/2022,4.43,R & B Transformation 2,Premises Expenses,G51015/B401,Housing OP and SN,Water rates
Ashfield District Council,37UB,Castle Water Ltd,V0990434,17/03/2022,8.52,R & B Transformation 2,Premises Expenses,G51015/B401,Housing OP and SN,Water rates
Ashfield District Council,37UB,Castle Water Ltd,V0990434,17/03/2022,10.23,R & B Transformation 2,Premises Expenses,G51021/B401,Housing OP and SN,Water rates
Ashfield District Council,37UB,Castle Water Ltd,V0990434,17/03/2022,19.9,R & B Transformation 2,Premises Expenses,G51015/B401,Housing OP and SN,Water rates
Ashfield District Council,37UB,Castle Water Ltd,V0990434,17/03/2022,1.86,R & B Transformation 2,Premises Expenses,G51015/B401,Housing OP and SN,Water rates
Ashfield District Council,37UB,Castle Water Ltd,V0990434,17/03/2022,102.56,R & B Transformation 2,Premises Expenses,G51009/B401,Housing OP and SN,Water rates
Ashfield District Council,37UB,Castle Water Ltd,V0990434,17/03/2022,1.86,R & B Transformation 2,Premises Expenses,G51015/B401,Housing OP and SN,Water rates
Ashfield District Council,37UB,Castle Water Ltd,V0990434,17/03/2022,4.43,R & B Transformation 2,Premises Expenses,G51015/B401,Housing OP and SN,Water rates
Ashfield District Council,37UB,Castle Water Ltd,V0990434,17/03/2022,23.12,R & B Transformation 2,Premises Expenses,G51020/B401,Housing OP and SN,Water rates
Ashfield District Council,37UB,Castle Water Ltd,V0990434,17/03/2022,25.05,R & B Transformation 2,Premises Expenses,G51028/B401,Housing OP and SN,Water rates
Ashfield District Council,37UB,Castle Water Ltd,V0990434,17/03/2022,6.63,R & B Transformation 2,Premises Expenses,G51028/B401,Housing OP and SN,Water rates
Ashfield District Council,37UB,Castle Water Ltd,V0990434,17/03/2022,1.98,R & B Transformation 2,Premises Expenses,G51015/B401,Housing OP and SN,Water rates
Ashfield District Council,37UB,Castle Water Ltd,V0990434,17/03/2022,1.86,R & B Transformation 2,Premises Expenses,G51015/B401,Housing OP and SN,Water rates
Ashfield District Council,37UB,Castle Water Ltd,V0990434,17/03/2022,66.96,R & B Transformation 2,Premises Expenses,G51008/B401,Housing OP and SN,Water rates
Ashfield District Council,37UB,Castle Water Ltd,V0990434,17/03/2022,1.86,R & B Transformation 2,Premises Expenses,G51015/B401,Housing OP and SN,Water rates
Ashfield District Council,37UB,Castle Water Ltd,V0990434,17/03/2022,9.2,R & B Transformation 2,Premises Expenses,G51022/B401,Housing OP and SN,Water rates
Ashfield District Council,37UB,Castle Water Ltd,V0990434,17/03/2022,14.75,R & B Transformation 2,Premises Expenses,G51022/B401,Housing OP and SN,Water rates
Ashfield District Council,37UB,Castle Water Ltd,V0990434,17/03/2022,4.43,R & B Transformation 2,Premises Expenses,G51015/B401,Housing OP and SN,Water rates
Ashfield District Council,37UB,Castle Water Ltd,V0990434,17/03/2022,28.27,R & B Transformation 2,Premises Expenses,G51026/B401,Housing OP and SN,Water rates
Ashfield District Council,37UB,Castle Water Ltd,V0990434,17/03/2022,27.63,R & B Transformation 2,Premises Expenses,G51022/B401,Housing OP and SN,Water rates
Ashfield District Council,37UB,Castle Water Ltd,V0990434,17/03/2022,38.58,R & B Transformation 2,Premises Expenses,G51023/B401,Housing OP and SN,Water rates
Ashfield District Council,37UB,Daisy Telecoms Ltd,V0990336,17/03/2022,13.52,R & B Transformation 2,Premises Expenses,G51008/B003011,Housing OP and SN,Fire Alarms
Ashfield District Council,37UB,Daisy Telecoms Ltd,V0990336,17/03/2022,27.24,R & B Transformation 2,Supplies & Services,G51028/D301006,Housing OP and SN,Alarm Lines
Ashfield District Council,37UB,Daisy Telecoms Ltd,V0990336,17/03/2022,24.03,R & B Transformation 2,Supplies & Services,G51015/D301002,Housing OP and SN,Telephones
Ashfield District Council,37UB,Daisy Telecoms Ltd,V0990336,17/03/2022,13.72,R & B Transformation 2,Supplies & Services,G51023/D301006,Housing OP and SN,Alarm Lines
Ashfield District Council,37UB,Daisy Telecoms Ltd,V0990336,17/03/2022,37.55,R & B Transformation 2,Supplies & Services,G51027/D301002,Housing OP and SN,Telephones
Ashfield District Council,37UB,Daisy Telecoms Ltd,V0990336,17/03/2022,148.82,R & B Transformation 2,Supplies & Services,G51001/D301002,Housing OP and SN,Telephones
Ashfield District Council,37UB,Daisy Telecoms Ltd,V0990336,17/03/2022,71.34,R & B Transformation 2,Supplies & Services,G51022/D301006,Housing OP and SN,Alarm Lines
Ashfield District Council,37UB,Daisy Telecoms Ltd,V0990336,17/03/2022,13.52,R & B Transformation 2,Premises Expenses,G51023/B003011,Housing OP and SN,Fire Alarms
Ashfield District Council,37UB,Daisy Telecoms Ltd,V0990336,17/03/2022,77.79,R & B Transformation 2,Supplies & Services,G51015/D301006,Housing OP and SN,Alarm Lines
Ashfield District Council,37UB,Daisy Telecoms Ltd,V0990336,17/03/2022,13.52,R & B Transformation 2,Premises Expenses,G51009/B003011,Housing OP and SN,Fire Alarms
Ashfield District Council,37UB,Daisy Telecoms Ltd,V0990336,17/03/2022,13.97,R & B Transformation 2,Premises Expenses,G51028/B003011,Housing OP and SN,Fire Alarms
Ashfield District Council,37UB,Daisy Telecoms Ltd,V0990336,17/03/2022,43.86,R & B Transformation 2,Supplies & Services,G51021/D301006,Housing OP and SN,Alarm Lines
Ashfield District Council,37UB,Daisy Telecoms Ltd,V0990336,17/03/2022,32.84,R & B Transformation 2,Supplies & Services,G51027/D301006,Housing OP and SN,Alarm Lines
Ashfield District Council,37UB,Daisy Telecoms Ltd,V0990336,17/03/2022,64.98,R & B Transformation 2,Supplies & Services,G51026/D301006,Housing OP and SN,Alarm Lines
Ashfield District Council,37UB,Daisy Telecoms Ltd,V0990336,17/03/2022,225.91,R & B Transformation 2,Premises Expenses,G51001/B003010,Housing OP and SN,C C T V Cameras
Ashfield District Council,37UB,Daisy Telecoms Ltd,V0990336,17/03/2022,24.03,R & B Transformation 2,Supplies & Services,G51028/D301002,Housing OP and SN,Telephones
Ashfield District Council,37UB,Daisy Telecoms Ltd,V0990336,17/03/2022,13.52,R & B Transformation 2,Premises Expenses,G51030/B004006,Housing OP and SN,General; Building Repairs & Courts
Ashfield District Council,37UB,Daisy Telecoms Ltd,V0990336,17/03/2022,24.03,R & B Transformation 2,Supplies & Services,G51030/D301002,Housing OP and SN,Telephones
Ashfield District Council,37UB,Daisy Telecoms Ltd,V0990336,17/03/2022,42.91,R & B Transformation 2,Supplies & Services,G51030/D301006,Housing OP and SN,Alarm Lines
Ashfield District Council,37UB,Daisy Telecoms Ltd,V0990336,17/03/2022,13.52,R & B Transformation 2,Supplies & Services,G51022/D301002,Housing OP and SN,Telephones
Ashfield District Council,37UB,Daisy Telecoms Ltd,V0990384,17/03/2022,5.72,R & B Transformation 2,Supplies & Services,G51027/D301002,Housing OP and SN,Telephones
Ashfield District Council,37UB,Daisy Telecoms Ltd,V0990384,17/03/2022,6.87,R & B Transformation 2,Supplies & Services,G51030/D301002,Housing OP and SN,Telephones
Ashfield District Council,37UB,Daisy Telecoms Ltd,V0990384,17/03/2022,13.74,R & B Transformation 2,Supplies & Services,G51015/D301002,Housing OP and SN,Telephones
Ashfield District Council,37UB,Daisy Telecoms Ltd,V0990384,17/03/2022,6.87,R & B Transformation 2,Supplies & Services,G51028/D301002,Housing OP and SN,Telephones
Ashfield District Council,37UB,EDF Energy 1 Ltd,V0984212,24/03/2022,96.96,R & B Transformation 2,Premises Expenses,G51022/B102,Housing OP and SN,Electricity
Ashfield District Council,37UB,EDF Energy 1 Ltd,V0984212,24/03/2022,44.87,R & B Transformation 2,Premises Expenses,G51052/B102,Housing OP and SN,Electricity
Ashfield District Council,37UB,EDF Energy 1 Ltd,V0984212,24/03/2022,24.38,R & B Transformation 2,Premises Expenses,G51043/B102,Housing OP and SN,Electricity
Ashfield District Council,37UB,EDF Energy 1 Ltd,V0984212,24/03/2022,30.02,R & B Transformation 2,Premises Expenses,G51059/B102,Housing OP and SN,Electricity
Ashfield District Council,37UB,EDF Energy 1 Ltd,V0984212,24/03/2022,297.18,R & B Transformation 2,Premises Expenses,G51013/B102,Housing OP and SN,Electricity
Ashfield District Council,37UB,EDF Energy 1 Ltd,V0984212,24/03/2022,36.72,R & B Transformation 2,Premises Expenses,G51060/B102,Housing OP and SN,Electricity
Ashfield District Council,37UB,EDF Energy 1 Ltd,V0984212,24/03/2022,36.23,R & B Transformation 2,Premises Expenses,G51043/B102,Housing OP and SN,Electricity
Ashfield District Council,37UB,EDF Energy 1 Ltd,V0984212,24/03/2022,36.6,R & B Transformation 2,Premises Expenses,G51054/B102,Housing OP and SN,Electricity
Ashfield District Council,37UB,EDF Energy 1 Ltd,V0984212,24/03/2022,36.2,R & B Transformation 2,Premises Expenses,G51063/B102,Housing OP and SN,Electricity
Ashfield District Council,37UB,EDF Energy 1 Ltd,V0984212,24/03/2022,48.04,R & B Transformation 2,Premises Expenses,G51037/B102,Housing OP and SN,Electricity
Ashfield District Council,37UB,EDF Energy 1 Ltd,V0984212,24/03/2022,58.59,R & B Transformation 2,Premises Expenses,G51009/B102,Housing OP and SN,Electricity
Ashfield District Council,37UB,EDF Energy 1 Ltd,V0984212,24/03/2022,84.77,R & B Transformation 2,Premises Expenses,G51047/B102,Housing OP and SN,Electricity
Ashfield District Council,37UB,EDF Energy 1 Ltd,V0984212,24/03/2022,25.69,R & B Transformation 2,Premises Expenses,G51048/B102,Housing OP and SN,Electricity
Ashfield District Council,37UB,EDF Energy 1 Ltd,V0984212,24/03/2022,25.79,R & B Transformation 2,Premises Expenses,G51046/B102,Housing OP and SN,Electricity
Ashfield District Council,37UB,EDF Energy 1 Ltd,V0984212,24/03/2022,26.09,R & B Transformation 2,Premises Expenses,G51046/B102,Housing OP and SN,Electricity
Ashfield District Council,37UB,EDF Energy 1 Ltd,V0984212,24/03/2022,28.21,R & B Transformation 2,Premises Expenses,G51046/B102,Housing OP and SN,Electricity
Ashfield District Council,37UB,EDF Energy 1 Ltd,V0984212,24/03/2022,35.41,R & B Transformation 2,Premises Expenses,G51042/B102,Housing OP and SN,Electricity
Ashfield District Council,37UB,EDF Energy 1 Ltd,V0984212,24/03/2022,26.27,R & B Transformation 2,Premises Expenses,G51042/B102,Housing OP and SN,Electricity
Ashfield District Council,37UB,EDF Energy 1 Ltd,V0984212,24/03/2022,36.14,R & B Transformation 2,Premises Expenses,G51058/B102,Housing OP and SN,Electricity
Ashfield District Council,37UB,EDF Energy 1 Ltd,V0984212,24/03/2022,130.9,R & B Transformation 2,Premises Expenses,G51023/B102,Housing OP and SN,Electricity
Ashfield District Council,37UB,EDF Energy 1 Ltd,V0984212,24/03/2022,56.47,R & B Transformation 2,Premises Expenses,G51034/B102,Housing OP and SN,Electricity
Ashfield District Council,37UB,EDF Energy 1 Ltd,V0984212,24/03/2022,492.9,R & B Transformation 2,Premises Expenses,G51019/B102,Housing OP and SN,Electricity
Ashfield District Council,37UB,EDF Energy 1 Ltd,V0984212,24/03/2022,-30.59,R & B Transformation 2,Premises Expenses,G51043/B102,Housing OP and SN,Electricity
Ashfield District Council,37UB,EDF Energy 1 Ltd,V0984212,24/03/2022,26.85,R & B Transformation 2,Premises Expenses,G51044/B102,Housing OP and SN,Electricity
Ashfield District Council,37UB,EDF Energy 1 Ltd,V0984212,24/03/2022,38.46,R & B Transformation 2,Premises Expenses,G51029/B102,Housing OP and SN,Electricity
Ashfield District Council,37UB,EDF Energy 1 Ltd,V0984212,24/03/2022,34.39,R & B Transformation 2,Premises Expenses,G51060/B102,Housing OP and SN,Electricity
Ashfield District Council,37UB,EDF Energy 1 Ltd,V0984212,24/03/2022,92.18,R & B Transformation 2,Premises Expenses,G51024/B102,Housing OP and SN,Electricity
Ashfield District Council,37UB,EDF Energy 1 Ltd,V0984212,24/03/2022,24.74,R & B Transformation 2,Premises Expenses,G51029/B102,Housing OP and SN,Electricity
Ashfield District Council,37UB,EDF Energy 1 Ltd,V0984212,24/03/2022,43.82,R & B Transformation 2,Premises Expenses,G51032/B102,Housing OP and SN,Electricity
Ashfield District Council,37UB,EDF Energy 1 Ltd,V0984212,24/03/2022,50.43,R & B Transformation 2,Premises Expenses,G51022/B102,Housing OP and SN,Electricity
Ashfield District Council,37UB,EDF Energy 1 Ltd,V0984212,24/03/2022,384.87,R & B Transformation 2,Premises Expenses,G51028/B102,Housing OP and SN,Electricity
Ashfield District Council,37UB,EDF Energy 1 Ltd,V0984212,24/03/2022,23.07,R & B Transformation 2,Premises Expenses,G51043/B102,Housing OP and SN,Electricity
Ashfield District Council,37UB,EDF Energy 1 Ltd,V0984212,24/03/2022,30.77,R & B Transformation 2,Premises Expenses,G51042/B102,Housing OP and SN,Electricity
Ashfield District Council,37UB,EDF Energy 1 Ltd,V0984212,24/03/2022,62.03,R & B Transformation 2,Premises Expenses,G51017/B102,Housing OP and SN,Electricity
Ashfield District Council,37UB,EDF Energy 1 Ltd,V0984212,24/03/2022,27.86,R & B Transformation 2,Premises Expenses,G51042/B102,Housing OP and SN,Electricity
Ashfield District Council,37UB,EDF Energy 1 Ltd,V0984212,24/03/2022,29.75,R & B Transformation 2,Premises Expenses,G51022/B102,Housing OP and SN,Electricity
Ashfield District Council,37UB,EDF Energy 1 Ltd,V0984212,24/03/2022,50.36,R & B Transformation 2,Premises Expenses,G51017/B102,Housing OP and SN,Electricity
Ashfield District Council,37UB,EDF Energy 1 Ltd,V0984212,24/03/2022,31.64,R & B Transformation 2,Premises Expenses,G51039/B102,Housing OP and SN,Electricity
Ashfield District Council,37UB,EDF Energy 1 Ltd,V0984212,24/03/2022,26.7,R & B Transformation 2,Premises Expenses,G51049/B102,Housing OP and SN,Electricity
Ashfield District Council,37UB,EDF Energy 1 Ltd,V0984212,24/03/2022,115.81,R & B Transformation 2,Premises Expenses,G51009/B102,Housing OP and SN,Electricity
Ashfield District Council,37UB,EDF Energy 1 Ltd,V0984212,24/03/2022,246.81,R & B Transformation 2,Premises Expenses,G51013/B102,Housing OP and SN,Electricity
Ashfield District Council,37UB,EDF Energy 1 Ltd,V0984212,24/03/2022,15534.34,R & B Transformation 2,Premises Expenses,G51019/B102,Housing OP and SN,Electricity
Ashfield District Council,37UB,EDF Energy 1 Ltd,V0984212,24/03/2022,36.47,R & B Transformation 2,Premises Expenses,G51061/B102,Housing OP and SN,Electricity
Ashfield District Council,37UB,EDF Energy 1 Ltd,V0984212,24/03/2022,56.78,R & B Transformation 2,Premises Expenses,G51021/B102,Housing OP and SN,Electricity
Ashfield District Council,37UB,EDF Energy 1 Ltd,V0984212,24/03/2022,27.28,R & B Transformation 2,Premises Expenses,G51039/B102,Housing OP and SN,Electricity
Ashfield District Council,37UB,EDF Energy 1 Ltd,V0984212,24/03/2022,400.4,R & B Transformation 2,Premises Expenses,G51022/B102,Housing OP and SN,Electricity
Ashfield District Council,37UB,EDF Energy 1 Ltd,V0984212,24/03/2022,22.06,R & B Transformation 2,Premises Expenses,G51012/B102,Housing OP and SN,Electricity
Ashfield District Council,37UB,EDF Energy 1 Ltd,V0984212,24/03/2022,333.89,R & B Transformation 2,Premises Expenses,G51020/B102,Housing OP and SN,Electricity
Ashfield District Council,37UB,EDF Energy 1 Ltd,V0984212,24/03/2022,27.15,R & B Transformation 2,Premises Expenses,G51029/B102,Housing OP and SN,Electricity
Ashfield District Council,37UB,EDF Energy 1 Ltd,V0984212,24/03/2022,-492.9,R & B Transformation 2,Premises Expenses,G51019/B102,Housing OP and SN,Electricity
Ashfield District Council,37UB,EDF Energy 1 Ltd,V0984212,24/03/2022,25.41,R & B Transformation 2,Premises Expenses,G51043/B102,Housing OP and SN,Electricity
Ashfield District Council,37UB,EDF Energy 1 Ltd,V0984212,24/03/2022,24.28,R & B Transformation 2,Premises Expenses,G51044/B102,Housing OP and SN,Electricity
Ashfield District Council,37UB,EDF Energy 1 Ltd,V0984212,24/03/2022,38.34,R & B Transformation 2,Premises Expenses,G51054/B102,Housing OP and SN,Electricity
Ashfield District Council,37UB,EDF Energy 1 Ltd,V0984212,24/03/2022,61.86,R & B Transformation 2,Premises Expenses,G51058/B102,Housing OP and SN,Electricity
Ashfield District Council,37UB,EDF Energy 1 Ltd,V0984212,24/03/2022,44,R & B Transformation 2,Premises Expenses,G51051/B102,Housing OP and SN,Electricity
Ashfield District Council,37UB,EDF Energy 1 Ltd,V0984212,24/03/2022,50.1,R & B Transformation 2,Premises Expenses,G51057/B102,Housing OP and SN,Electricity
Ashfield District Council,37UB,EDF Energy 1 Ltd,V0984212,24/03/2022,36.28,R & B Transformation 2,Premises Expenses,G51009/B102,Housing OP and SN,Electricity
Ashfield District Council,37UB,EDF Energy 1 Ltd,V0984212,24/03/2022,33.99,R & B Transformation 2,Premises Expenses,G51043/B102,Housing OP and SN,Electricity
Ashfield District Council,37UB,EDF Energy 1 Ltd,V0984212,24/03/2022,25.39,R & B Transformation 2,Premises Expenses,G51041/B102,Housing OP and SN,Electricity
Ashfield District Council,37UB,EDF Energy 1 Ltd,V0984212,24/03/2022,62.96,R & B Transformation 2,Premises Expenses,G51056/B102,Housing OP and SN,Electricity
Ashfield District Council,37UB,EDF Energy 1 Ltd,V0984212,24/03/2022,27.28,R & B Transformation 2,Premises Expenses,G51061/B102,Housing OP and SN,Electricity
Ashfield District Council,37UB,EDF Energy 1 Ltd,V0984212,24/03/2022,275.12,R & B Transformation 2,Premises Expenses,G51007/B102,Housing OP and SN,Electricity
Ashfield District Council,37UB,EDF Energy 1 Ltd,V0984212,24/03/2022,80.2,R & B Transformation 2,Premises Expenses,G51012/B102,Housing OP and SN,Electricity
Ashfield District Council,37UB,EDF Energy 1 Ltd,V0984212,24/03/2022,44.99,R & B Transformation 2,Premises Expenses,G51035/B102,Housing OP and SN,Electricity
Ashfield District Council,37UB,EDF Energy 1 Ltd,V0984212,24/03/2022,27.76,R & B Transformation 2,Premises Expenses,G51046/B102,Housing OP and SN,Electricity
Ashfield District Council,37UB,EDF Energy 1 Ltd,V0984212,24/03/2022,47.46,R & B Transformation 2,Premises Expenses,G51048/B102,Housing OP and SN,Electricity
Ashfield District Council,37UB,EDF Energy 1 Ltd,V0984212,24/03/2022,40.58,R & B Transformation 2,Premises Expenses,G51012/B102,Housing OP and SN,Electricity
Ashfield District Council,37UB,EDF Energy 1 Ltd,V0984212,24/03/2022,34.97,R & B Transformation 2,Premises Expenses,G51013/B102,Housing OP and SN,Electricity
Ashfield District Council,37UB,EDF Energy 1 Ltd,V0984212,24/03/2022,94.95,R & B Transformation 2,Premises Expenses,G51015/B102,Housing OP and SN,Electricity
Ashfield District Council,37UB,EDF Energy 1 Ltd,V0984212,24/03/2022,30.4,R & B Transformation 2,Premises Expenses,G51022/B102,Housing OP and SN,Electricity
Ashfield District Council,37UB,EDF Energy 1 Ltd,V0984212,24/03/2022,782.26,R & B Transformation 2,Premises Expenses,G51032/B102,Housing OP and SN,Electricity
Ashfield District Council,37UB,EDF Energy 1 Ltd,V0984212,24/03/2022,55.21,R & B Transformation 2,Premises Expenses,G51040/B102,Housing OP and SN,Electricity
Ashfield District Council,37UB,EDF Energy 1 Ltd,V0984212,24/03/2022,30.47,R & B Transformation 2,Premises Expenses,G51049/B102,Housing OP and SN,Electricity
Ashfield District Council,37UB,EDF Energy 1 Ltd,V0990977,24/03/2022,221.07,R & B Transformation 2,Premises Expenses,G51013/B102,Housing OP and SN,Electricity
Ashfield District Council,37UB,EDF Energy 1 Ltd,V0990977,24/03/2022,43.77,R & B Transformation 2,Premises Expenses,G51017/B102,Housing OP and SN,Electricity
Ashfield District Council,37UB,EDF Energy 1 Ltd,V0990977,24/03/2022,26.79,R & B Transformation 2,Premises Expenses,G51042/B102,Housing OP and SN,Electricity
Ashfield District Council,37UB,EDF Energy 1 Ltd,V0990977,24/03/2022,26.94,R & B Transformation 2,Premises Expenses,G51052/B102,Housing OP and SN,Electricity
Ashfield District Council,37UB,EDF Energy 1 Ltd,V0990977,24/03/2022,34.34,R & B Transformation 2,Premises Expenses,G51060/B102,Housing OP and SN,Electricity
Ashfield District Council,37UB,EDF Energy 1 Ltd,V0990977,24/03/2022,28.1,R & B Transformation 2,Premises Expenses,G51049/B102,Housing OP and SN,Electricity
Ashfield District Council,37UB,EDF Energy 1 Ltd,V0990977,24/03/2022,18.42,R & B Transformation 2,Premises Expenses,G51029/B102,Housing OP and SN,Electricity
Ashfield District Council,37UB,EDF Energy 1 Ltd,V0990977,24/03/2022,86.52,R & B Transformation 2,Premises Expenses,G51033/B102,Housing OP and SN,Electricity
Ashfield District Council,37UB,EDF Energy 1 Ltd,V0990977,24/03/2022,224.25,R & B Transformation 2,Premises Expenses,G51008/B102,Housing OP and SN,Electricity
Ashfield District Council,37UB,EDF Energy 1 Ltd,V0990977,24/03/2022,40.58,R & B Transformation 2,Premises Expenses,G51048/B102,Housing OP and SN,Electricity
Ashfield District Council,37UB,EDF Energy 1 Ltd,V0990977,24/03/2022,20.8,R & B Transformation 2,Premises Expenses,G51050/B102,Housing OP and SN,Electricity
Ashfield District Council,37UB,EDF Energy 1 Ltd,V0990977,24/03/2022,29.82,R & B Transformation 2,Premises Expenses,G51056/B102,Housing OP and SN,Electricity
Ashfield District Council,37UB,EDF Energy 1 Ltd,V0990977,24/03/2022,28.24,R & B Transformation 2,Premises Expenses,G51059/B102,Housing OP and SN,Electricity
Ashfield District Council,37UB,EDF Energy 1 Ltd,V0990977,24/03/2022,20.54,R & B Transformation 2,Premises Expenses,G51050/B102,Housing OP and SN,Electricity
Ashfield District Council,37UB,EDF Energy 1 Ltd,V0990977,24/03/2022,49.52,R & B Transformation 2,Premises Expenses,G51051/B102,Housing OP and SN,Electricity
Ashfield District Council,37UB,EDF Energy 1 Ltd,V0990977,24/03/2022,22.91,R & B Transformation 2,Premises Expenses,G51050/B102,Housing OP and SN,Electricity
Ashfield District Council,37UB,EDF Energy 1 Ltd,V0990977,24/03/2022,25.78,R & B Transformation 2,Premises Expenses,G51061/B102,Housing OP and SN,Electricity
Ashfield District Council,37UB,EDF Energy 1 Ltd,V0990977,24/03/2022,23.4,R & B Transformation 2,Premises Expenses,G51046/B102,Housing OP and SN,Electricity
Ashfield District Council,37UB,EDF Energy 1 Ltd,V0990977,24/03/2022,24.47,R & B Transformation 2,Premises Expenses,G51049/B102,Housing OP and SN,Electricity
Ashfield District Council,37UB,EDF Energy 1 Ltd,V0990977,24/03/2022,25.05,R & B Transformation 2,Premises Expenses,G51039/B102,Housing OP and SN,Electricity
Ashfield District Council,37UB,EDF Energy 1 Ltd,V0990977,24/03/2022,47.89,R & B Transformation 2,Premises Expenses,G51022/B102,Housing OP and SN,Electricity
Ashfield District Council,37UB,EDF Energy 1 Ltd,V0990977,24/03/2022,239.65,R & B Transformation 2,Premises Expenses,G51007/B102,Housing OP and SN,Electricity
Ashfield District Council,37UB,EDF Energy 1 Ltd,V0990977,24/03/2022,40.01,R & B Transformation 2,Premises Expenses,G51021/B102,Housing OP and SN,Electricity
Ashfield District Council,37UB,EDF Energy 1 Ltd,V0990977,24/03/2022,30.42,R & B Transformation 2,Premises Expenses,G51060/B102,Housing OP and SN,Electricity
Ashfield District Council,37UB,EDF Energy 1 Ltd,V0990977,24/03/2022,83.19,R & B Transformation 2,Premises Expenses,G51047/B102,Housing OP and SN,Electricity
Ashfield District Council,37UB,EDF Energy 1 Ltd,V0990977,24/03/2022,31.95,R & B Transformation 2,Premises Expenses,G51055/B102,Housing OP and SN,Electricity
Ashfield District Council,37UB,EDF Energy 1 Ltd,V0990977,24/03/2022,27.23,R & B Transformation 2,Premises Expenses,G51036/B102,Housing OP and SN,Electricity
Ashfield District Council,37UB,EDF Energy 1 Ltd,V0990977,24/03/2022,24.76,R & B Transformation 2,Premises Expenses,G51044/B102,Housing OP and SN,Electricity
Ashfield District Council,37UB,EDF Energy 1 Ltd,V0990977,24/03/2022,9.76,R & B Transformation 2,Premises Expenses,G51054/B102,Housing OP and SN,Electricity
Ashfield District Council,37UB,EDF Energy 1 Ltd,V0990977,24/03/2022,42.12,R & B Transformation 2,Premises Expenses,G51054/B102,Housing OP and SN,Electricity
Ashfield District Council,37UB,EDF Energy 1 Ltd,V0990977,24/03/2022,283.47,R & B Transformation 2,Premises Expenses,G51013/B102,Housing OP and SN,Electricity
Ashfield District Council,37UB,EDF Energy 1 Ltd,V0990977,24/03/2022,100.56,R & B Transformation 2,Premises Expenses,G51015/B102,Housing OP and SN,Electricity
Ashfield District Council,37UB,EDF Energy 1 Ltd,V0990977,24/03/2022,26.5,R & B Transformation 2,Premises Expenses,G51042/B102,Housing OP and SN,Electricity
Ashfield District Council,37UB,EDF Energy 1 Ltd,V0990977,24/03/2022,46.61,R & B Transformation 2,Premises Expenses,G51038/B102,Housing OP and SN,Electricity
Ashfield District Council,37UB,EDF Energy 1 Ltd,V0990977,24/03/2022,37.79,R & B Transformation 2,Premises Expenses,G51063/B102,Housing OP and SN,Electricity
Ashfield District Council,37UB,EDF Energy 1 Ltd,V0990977,24/03/2022,33.18,R & B Transformation 2,Premises Expenses,G51013/B102,Housing OP and SN,Electricity
Ashfield District Council,37UB,EDF Energy 1 Ltd,V0990977,24/03/2022,45.47,R & B Transformation 2,Premises Expenses,G51040/B102,Housing OP and SN,Electricity
Ashfield District Council,37UB,EDF Energy 1 Ltd,V0990977,24/03/2022,199.87,R & B Transformation 2,Premises Expenses,G51008/B102,Housing OP and SN,Electricity
Ashfield District Council,37UB,EDF Energy 1 Ltd,V0990977,24/03/2022,1619.42,R & B Transformation 2,Premises Expenses,G51021/B102,Housing OP and SN,Electricity
Ashfield District Council,37UB,EDF Energy 1 Ltd,V0990977,24/03/2022,29.85,R & B Transformation 2,Premises Expenses,G51052/B102,Housing OP and SN,Electricity
Ashfield District Council,37UB,EDF Energy 1 Ltd,V0990977,24/03/2022,27.96,R & B Transformation 2,Premises Expenses,G51054/B102,Housing OP and SN,Electricity
Ashfield District Council,37UB,EDF Energy 1 Ltd,V0990977,24/03/2022,20.84,R & B Transformation 2,Premises Expenses,G51033/B102,Housing OP and SN,Electricity
Ashfield District Council,37UB,EDF Energy 1 Ltd,V0990977,24/03/2022,26.08,R & B Transformation 2,Premises Expenses,G51045/B102,Housing OP and SN,Electricity
Ashfield District Council,37UB,EDF Energy 1 Ltd,V0990977,24/03/2022,11.09,R & B Transformation 2,Premises Expenses,G51021/B102,Housing OP and SN,Electricity
Ashfield District Council,37UB,EDF Energy 1 Ltd,V0990977,24/03/2022,75.86,R & B Transformation 2,Premises Expenses,G51024/B102,Housing OP and SN,Electricity
Ashfield District Council,37UB,EDF Energy 1 Ltd,V0990977,24/03/2022,363.61,R & B Transformation 2,Premises Expenses,G51028/B102,Housing OP and SN,Electricity
Ashfield District Council,37UB,EDF Energy 1 Ltd,V0990977,24/03/2022,32.15,R & B Transformation 2,Premises Expenses,G51009/B102,Housing OP and SN,Electricity
Ashfield District Council,37UB,EDF Energy 1 Ltd,V0990977,24/03/2022,29.7,R & B Transformation 2,Premises Expenses,G51036/B102,Housing OP and SN,Electricity
Ashfield District Council,37UB,EDF Energy 1 Ltd,V0990977,24/03/2022,52.09,R & B Transformation 2,Premises Expenses,G51038/B102,Housing OP and SN,Electricity
Ashfield District Council,37UB,EDF Energy 1 Ltd,V0990977,24/03/2022,128.5,R & B Transformation 2,Premises Expenses,G51023/B102,Housing OP and SN,Electricity
Ashfield District Council,37UB,EDF Energy 1 Ltd,V0990977,24/03/2022,9.58,R & B Transformation 2,Premises Expenses,G51021/B102,Housing OP and SN,Electricity
Ashfield District Council,37UB,EDF Energy 1 Ltd,V0990977,24/03/2022,22.05,R & B Transformation 2,Premises Expenses,G51044/B102,Housing OP and SN,Electricity
Ashfield District Council,37UB,EDF Energy 1 Ltd,V0990977,24/03/2022,29.12,R & B Transformation 2,Premises Expenses,G51062/B102,Housing OP and SN,Electricity
Ashfield District Council,37UB,EDF Energy 1 Ltd,V0990977,24/03/2022,36.09,R & B Transformation 2,Premises Expenses,G51065/B102,Housing OP and SN,Electricity
Ashfield District Council,37UB,EDF Energy 1 Ltd,V0990977,24/03/2022,31.44,R & B Transformation 2,Premises Expenses,G51065/B102,Housing OP and SN,Electricity
Ashfield District Council,37UB,EDF Energy 1 Ltd,V0990977,24/03/2022,360.91,R & B Transformation 2,Premises Expenses,G51020/B102,Housing OP and SN,Electricity
Ashfield District Council,37UB,EDF Energy 1 Ltd,V0990977,24/03/2022,22.29,R & B Transformation 2,Premises Expenses,G51041/B102,Housing OP and SN,Electricity
Ashfield District Council,37UB,EDF Energy 1 Ltd,V0990977,24/03/2022,69.26,R & B Transformation 2,Premises Expenses,G51058/B102,Housing OP and SN,Electricity
Ashfield District Council,37UB,EDF Energy 1 Ltd,V0990977,24/03/2022,23.17,R & B Transformation 2,Premises Expenses,G51033/B102,Housing OP and SN,Electricity
Ashfield District Council,37UB,EDF Energy 1 Ltd,V0990977,24/03/2022,444.5,R & B Transformation 2,Premises Expenses,G51019/B102,Housing OP and SN,Electricity
Ashfield District Council,37UB,EDF Energy 1 Ltd,V0990977,24/03/2022,35.02,R & B Transformation 2,Premises Expenses,G51043/B102,Housing OP and SN,Electricity
Ashfield District Council,37UB,EDF Energy 1 Ltd,V0990977,24/03/2022,26.42,R & B Transformation 2,Premises Expenses,G51046/B102,Housing OP and SN,Electricity
Ashfield District Council,37UB,EDF Energy 1 Ltd,V0990977,24/03/2022,26.88,R & B Transformation 2,Premises Expenses,G51046/B102,Housing OP and SN,Electricity
Ashfield District Council,37UB,EDF Energy 1 Ltd,V0990977,24/03/2022,27.52,R & B Transformation 2,Premises Expenses,G51039/B102,Housing OP and SN,Electricity
Ashfield District Council,37UB,EDF Energy 1 Ltd,V0990977,24/03/2022,21.71,R & B Transformation 2,Premises Expenses,G51043/B102,Housing OP and SN,Electricity
Ashfield District Council,37UB,EDF Energy 1 Ltd,V0990977,24/03/2022,58.37,R & B Transformation 2,Premises Expenses,G51012/B102,Housing OP and SN,Electricity
Ashfield District Council,37UB,EDF Energy 1 Ltd,V0990977,24/03/2022,57.68,R & B Transformation 2,Premises Expenses,G51017/B102,Housing OP and SN,Electricity
Ashfield District Council,37UB,EDF Energy 1 Ltd,V0990977,24/03/2022,40.96,R & B Transformation 2,Premises Expenses,G51061/B102,Housing OP and SN,Electricity
Ashfield District Council,37UB,EDF Energy 1 Ltd,V0990977,24/03/2022,18.57,R & B Transformation 2,Premises Expenses,G51050/B102,Housing OP and SN,Electricity
Ashfield District Council,37UB,EDF Energy 1 Ltd,V0990977,24/03/2022,23.56,R & B Transformation 2,Premises Expenses,G51045/B102,Housing OP and SN,Electricity
Ashfield District Council,37UB,EDF Energy 1 Ltd,V0990977,24/03/2022,24.91,R & B Transformation 2,Premises Expenses,G51046/B102,Housing OP and SN,Electricity
Ashfield District Council,37UB,EDF Energy 1 Ltd,V0990977,24/03/2022,11.8,R & B Transformation 2,Premises Expenses,G51052/B102,Housing OP and SN,Electricity
Ashfield District Council,37UB,EDF Energy 1 Ltd,V0990977,24/03/2022,9.18,R & B Transformation 2,Premises Expenses,G51054/B102,Housing OP and SN,Electricity
Ashfield District Council,37UB,EDF Energy 1 Ltd,V0990977,24/03/2022,25.2,R & B Transformation 2,Premises Expenses,G51054/B102,Housing OP and SN,Electricity
Ashfield District Council,37UB,EDF Energy 1 Ltd,V0990977,24/03/2022,12.93,R & B Transformation 2,Premises Expenses,G51021/B102,Housing OP and SN,Electricity
Ashfield District Council,37UB,EDF Energy 1 Ltd,V0990977,24/03/2022,25.07,R & B Transformation 2,Premises Expenses,G51029/B102,Housing OP and SN,Electricity
Ashfield District Council,37UB,EDF Energy 1 Ltd,V0990977,24/03/2022,30.14,R & B Transformation 2,Premises Expenses,G51036/B102,Housing OP and SN,Electricity
Ashfield District Council,37UB,EDF Energy 1 Ltd,V0990977,24/03/2022,62.84,R & B Transformation 2,Premises Expenses,G51032/B102,Housing OP and SN,Electricity
Ashfield District Council,37UB,EDF Energy 1 Ltd,V0990977,24/03/2022,46.92,R & B Transformation 2,Premises Expenses,G51021/B102,Housing OP and SN,Electricity
Ashfield District Council,37UB,EDF Energy 1 Ltd,V0990977,24/03/2022,1355.63,R & B Transformation 2,Premises Expenses,G51021/B102,Housing OP and SN,Electricity
Ashfield District Council,37UB,EDF Energy 1 Ltd,V0990977,24/03/2022,28.89,R & B Transformation 2,Premises Expenses,G51022/B102,Housing OP and SN,Electricity
Ashfield District Council,37UB,EDF Energy 1 Ltd,V0990977,24/03/2022,99.77,R & B Transformation 2,Premises Expenses,G51033/B102,Housing OP and SN,Electricity
Ashfield District Council,37UB,EDF Energy 1 Ltd,V0990977,24/03/2022,129.51,R & B Transformation 2,Premises Expenses,G51009/B102,Housing OP and SN,Electricity
Ashfield District Council,37UB,EDF Energy 1 Ltd,V0990977,24/03/2022,20.84,R & B Transformation 2,Premises Expenses,G51012/B102,Housing OP and SN,Electricity
Ashfield District Council,37UB,EDF Energy 1 Ltd,V0990977,24/03/2022,24.36,R & B Transformation 2,Premises Expenses,G51043/B102,Housing OP and SN,Electricity
Ashfield District Council,37UB,EDF Energy 1 Ltd,V0990977,24/03/2022,11.51,R & B Transformation 2,Premises Expenses,G51051/B102,Housing OP and SN,Electricity
Ashfield District Council,37UB,EDF Energy 1 Ltd,V0990977,24/03/2022,29.41,R & B Transformation 2,Premises Expenses,G51058/B102,Housing OP and SN,Electricity
Ashfield District Council,37UB,EDF Energy 1 Ltd,V0990977,24/03/2022,116.86,R & B Transformation 2,Premises Expenses,G51022/B102,Housing OP and SN,Electricity
Ashfield District Council,37UB,EDF Energy 1 Ltd,V0990977,24/03/2022,22.31,R & B Transformation 2,Premises Expenses,G51055/B102,Housing OP and SN,Electricity
Ashfield District Council,37UB,EDF Energy 1 Ltd,V0990977,24/03/2022,27.53,R & B Transformation 2,Premises Expenses,G51056/B102,Housing OP and SN,Electricity
Ashfield District Council,37UB,EDF Energy 1 Ltd,V0990977,24/03/2022,26.36,R & B Transformation 2,Premises Expenses,G51062/B102,Housing OP and SN,Electricity
Ashfield District Council,37UB,EDF Energy 1 Ltd,V0990977,24/03/2022,64.82,R & B Transformation 2,Premises Expenses,G51034/B102,Housing OP and SN,Electricity
Ashfield District Council,37UB,EDF Energy 1 Ltd,V0990977,24/03/2022,26.79,R & B Transformation 2,Premises Expenses,G51036/B102,Housing OP and SN,Electricity
Ashfield District Council,37UB,EDF Energy 1 Ltd,V0990977,24/03/2022,46.05,R & B Transformation 2,Premises Expenses,G51057/B102,Housing OP and SN,Electricity
Ashfield District Council,37UB,EDF Energy 1 Ltd,V0990977,24/03/2022,9,R & B Transformation 2,Premises Expenses,G51063/B102,Housing OP and SN,Electricity
Ashfield District Council,37UB,EDF Energy 1 Ltd,V0990977,24/03/2022,32.16,R & B Transformation 2,Premises Expenses,G51042/B102,Housing OP and SN,Electricity
Ashfield District Council,37UB,EDF Energy 1 Ltd,V0990977,24/03/2022,19.93,R & B Transformation 2,Premises Expenses,G51055/B102,Housing OP and SN,Electricity
Ashfield District Council,37UB,EDF Energy 1 Ltd,V0990977,24/03/2022,26.94,R & B Transformation 2,Premises Expenses,G51042/B102,Housing OP and SN,Electricity
Ashfield District Council,37UB,EDF Energy 1 Ltd,V0990977,24/03/2022,29.01,R & B Transformation 2,Premises Expenses,G51043/B102,Housing OP and SN,Electricity
Ashfield District Council,37UB,EDF Energy 1 Ltd,V0990977,24/03/2022,25.2,R & B Transformation 2,Premises Expenses,G51048/B102,Housing OP and SN,Electricity
Ashfield District Council,37UB,EDF Energy 1 Ltd,V0990977,24/03/2022,440.45,R & B Transformation 2,Premises Expenses,G51022/B102,Housing OP and SN,Electricity
Ashfield District Council,37UB,EDF Energy 1 Ltd,V0990977,24/03/2022,77.6,R & B Transformation 2,Premises Expenses,G51012/B102,Housing OP and SN,Electricity
Ashfield District Council,37UB,EDF Energy 1 Ltd,V0990977,24/03/2022,50.93,R & B Transformation 2,Premises Expenses,G51009/B102,Housing OP and SN,Electricity
Ashfield District Council,37UB,EDF Energy 1 Ltd,V0990977,24/03/2022,42.76,R & B Transformation 2,Premises Expenses,G51037/B102,Housing OP and SN,Electricity
Ashfield District Council,37UB,EDF Energy 1 Ltd,V0990977,24/03/2022,5.94,R & B Transformation 2,Premises Expenses,G51055/B102,Housing OP and SN,Electricity
Ashfield District Council,37UB,EDF Energy 1 Ltd,V0990977,24/03/2022,26.42,R & B Transformation 2,Premises Expenses,G51056/B102,Housing OP and SN,Electricity
Ashfield District Council,37UB,EDF Energy 1 Ltd,V0990977,24/03/2022,50.68,R & B Transformation 2,Premises Expenses,G51052/B102,Housing OP and SN,Electricity
Ashfield District Council,37UB,EDF Energy 1 Ltd,V0990977,24/03/2022,39.94,R & B Transformation 2,Premises Expenses,G51054/B102,Housing OP and SN,Electricity
Ashfield District Council,37UB,EDF Energy 1 Ltd,V0990977,24/03/2022,27.66,R & B Transformation 2,Premises Expenses,G51022/B102,Housing OP and SN,Electricity
Ashfield District Council,37UB,EDF Energy 1 Ltd,V0990977,24/03/2022,30.13,R & B Transformation 2,Premises Expenses,G51029/B102,Housing OP and SN,Electricity
Ashfield District Council,37UB,EDF Energy 1 Ltd,V0990977,24/03/2022,36.66,R & B Transformation 2,Premises Expenses,G51035/B102,Housing OP and SN,Electricity
Ashfield District Council,37UB,Total Gas & Power,V0990925,17/03/2022,71.68,R & B Transformation 2,Premises Expenses,G51026/B101,Housing OP and SN,Gas
Ashfield District Council,37UB,Total Gas & Power,V0990925,17/03/2022,-195.79,R & B Transformation 2,Premises Expenses,G51026/B101,Housing OP and SN,Gas
Ashfield District Council,37UB,Total Gas & Power,V0990925,17/03/2022,1020.65,R & B Transformation 2,Premises Expenses,G51019/B101,Housing OP and SN,Gas
Ashfield District Council,37UB,Total Gas & Power,V0990925,17/03/2022,1466.74,R & B Transformation 2,Premises Expenses,G51013/B101,Housing OP and SN,Gas
Ashfield District Council,37UB,Total Gas & Power,V0990925,17/03/2022,1269.15,R & B Transformation 2,Premises Expenses,G51015/B101,Housing OP and SN,Gas
Ashfield District Council,37UB,Total Gas & Power,V0990925,17/03/2022,79.36,R & B Transformation 2,Premises Expenses,G51026/B101,Housing OP and SN,Gas
Ashfield District Council,37UB,Total Gas & Power,V0990925,17/03/2022,219.42,R & B Transformation 2,Premises Expenses,G51009/B101,Housing OP and SN,Gas
Ashfield District Council,37UB,Total Gas & Power,V0990925,17/03/2022,942.21,R & B Transformation 2,Premises Expenses,G51019/B101,Housing OP and SN,Gas
Ashfield District Council,37UB,Total Gas & Power,V0990925,17/03/2022,700.98,R & B Transformation 2,Premises Expenses,G51007/B101,Housing OP and SN,Gas
Ashfield District Council,37UB,Total Gas & Power,V0990925,17/03/2022,76.8,R & B Transformation 2,Premises Expenses,G51026/B101,Housing OP and SN,Gas
Ashfield District Council,37UB,Total Gas & Power,V0990925,17/03/2022,1251.63,R & B Transformation 2,Premises Expenses,G51027/B101,Housing OP and SN,Gas
Ashfield District Council,37UB,Total Gas & Power,V0990925,17/03/2022,53.76,R & B Transformation 2,Premises Expenses,G51026/B101,Housing OP and SN,Gas
Ashfield District Council,37UB,Total Gas & Power,V0990925,17/03/2022,-274.55,R & B Transformation 2,Premises Expenses,G51026/B101,Housing OP and SN,Gas
Ashfield District Council,37UB,Total Gas & Power,V0990925,17/03/2022,206.48,R & B Transformation 2,Premises Expenses,G51008/B101,Housing OP and SN,Gas
Ashfield District Council,37UB,Total Gas & Power,V0990925,17/03/2022,2109.94,R & B Transformation 2,Premises Expenses,G51019/B101,Housing OP and SN,Gas
Ashfield District Council,37UB,Total Gas & Power,V0990925,17/03/2022,-348.93,R & B Transformation 2,Premises Expenses,G51026/B101,Housing OP and SN,Gas
Ashfield District Council,37UB,Total Gas & Power,V0990925,17/03/2022,79.36,R & B Transformation 2,Premises Expenses,G51026/B101,Housing OP and SN,Gas
Ashfield District Council,37UB,Total Gas & Power,V0990925,17/03/2022,-317.45,R & B Transformation 2,Premises Expenses,G51026/B101,Housing OP and SN,Gas
Ashfield District Council,37UB,Total Gas & Power,V0990925,17/03/2022,2001.73,R & B Transformation 2,Premises Expenses,G51022/B101,Housing OP and SN,Gas
Ashfield District Council,37UB,Total Gas & Power,V0990925,17/03/2022,1120.98,R & B Transformation 2,Premises Expenses,G51028/B101,Housing OP and SN,Gas
Ashfield District Council,37UB,Total Gas & Power,V0990925,17/03/2022,708.29,R & B Transformation 2,Premises Expenses,G51030/B101,Housing OP and SN,Gas
Ashfield District Council,37UB,Total Gas & Power,V0990925,17/03/2022,1100.96,R & B Transformation 2,Premises Expenses,G51023/B101,Housing OP and SN,Gas
Ashfield District Council,37UB,Total Gas & Power,V0990925,17/03/2022,-94.54,R & B Transformation 2,Premises Expenses,G51026/B101,Housing OP and SN,Gas
Ashfield District Council,37UB,Total Gas & Power,V0990925,17/03/2022,79.36,R & B Transformation 2,Premises Expenses,G51026/B101,Housing OP and SN,Gas
Ashfield District Council,37UB,Total Gas & Power,V0990925,17/03/2022,80.41,R & B Transformation 2,Premises Expenses,G51007/B101,Housing OP and SN,Gas
Ashfield District Council,37UB,Asbestos GRP Labs Ltd,V0990229,03/03/2022,372,Housing & Assets 2,Premises Expenses,G23100006/B002007,Housing Revenue Account,Asbestos Management
Ashfield District Council,37UB,Asbestos GRP Labs Ltd,V0990290,10/03/2022,236,Housing & Assets 2,Premises Expenses,G23100004/B002007,Housing Revenue Account,Asbestos Management
Ashfield District Council,37UB,Asbestos GRP Labs Ltd,V0991374,31/03/2022,272,Housing & Assets 2,Premises Expenses,G23100003/B002007,Housing Revenue Account,Asbestos Management
Ashfield District Council,37UB,Asbestos GRP Labs Ltd,V0991376,31/03/2022,336,Housing & Assets 2,Premises Expenses,G23100007/B002007,Housing Revenue Account,Asbestos Management
Ashfield District Council,37UB,Ashfield District Council,V0990835,17/03/2022,44.16,Housing & Assets 2,Income,G23011007/J102004,Housing Revenue Account,Housing Benefit Contributions
Ashfield District Council,37UB,British Gas Trading Limited,V0983868,03/03/2022,408.26,Housing & Assets 2,Premises Expenses,G23011051/B101,Housing Revenue Account,Gas
Ashfield District Council,37UB,British Gas Trading Limited,V0983868,03/03/2022,53.21,Housing & Assets 2,Premises Expenses,G23011051/B102,Housing Revenue Account,Electricity
Ashfield District Council,37UB,D.P.Tool Hire,V0991495,24/03/2022,229,Housing & Assets 2,Supplies & Services,G23011042/D001001,Housing Revenue Account,Equipment Purchase
Ashfield District Council,37UB,D.P.Tool Hire,V0991495,24/03/2022,139.99,Housing & Assets 2,Supplies & Services,G23011051/D001001,Housing Revenue Account,Equipment Purchase
Ashfield District Council,37UB,D.P.Tool Hire,V0991495,24/03/2022,199.99,Housing & Assets 2,Supplies & Services,G23011029/D001001,Housing Revenue Account,Equipment Purchase
Ashfield District Council,37UB,D.P.Tool Hire,V0991495,24/03/2022,199.99,Housing & Assets 2,Supplies & Services,G23011033/D001001,Housing Revenue Account,Equipment Purchase
Ashfield District Council,37UB,D.P.Tool Hire,V0991501,24/03/2022,199.99,Housing & Assets 2,Supplies & Services,G23011042/D001001,Housing Revenue Account,Equipment Purchase
Ashfield District Council,37UB,D.P.Tool Hire,V0991501,24/03/2022,105,Housing & Assets 2,Supplies & Services,G23011045/D001001,Housing Revenue Account,Equipment Purchase
Ashfield District Council,37UB,D.P.Tool Hire,V0991762,24/03/2022,105,Housing & Assets 2,Supplies & Services,G23011035/D001001,Housing Revenue Account,Equipment Purchase
Ashfield District Council,37UB,Domestic Supplies Ltd,V0991342,17/03/2022,253.33,Housing & Assets 2,Supplies & Services,G23011/D001001,Housing Revenue Account,Equipment Purchase
Ashfield District Council,37UB,Domestic Supplies Ltd,V0991343,17/03/2022,253.33,Housing & Assets 2,Supplies & Services,G23011042/D001001,Housing Revenue Account,Equipment Purchase
Ashfield District Council,37UB,Excel Cleaning Solutions Ltd,V0990344,10/03/2022,90,Housing & Assets 2,Premises Expenses,G23000/B003005,Housing Revenue Account,Window Cleaning
Ashfield District Council,37UB,Excel Cleaning Solutions Ltd,V0990344,10/03/2022,70,Housing & Assets 2,Premises Expenses,G23000/B003005,Housing Revenue Account,Window Cleaning
Ashfield District Council,37UB,Excel Cleaning Solutions Ltd,V0990344,10/03/2022,36,Housing & Assets 2,Premises Expenses,G23000/B003005,Housing Revenue Account,Window Cleaning
Ashfield District Council,37UB,Excel Cleaning Solutions Ltd,V0990344,10/03/2022,30,Housing & Assets 2,Premises Expenses,G23000/B003005,Housing Revenue Account,Window Cleaning
Ashfield District Council,37UB,Excel Cleaning Solutions Ltd,V0990344,10/03/2022,90,Housing & Assets 2,Premises Expenses,G23000/B003005,Housing Revenue Account,Window Cleaning
Ashfield District Council,37UB,Excel Cleaning Solutions Ltd,V0990372,10/03/2022,46,Housing & Assets 2,Premises Expenses,G23000/B003005,Housing Revenue Account,Window Cleaning
Ashfield District Council,37UB,Excel Cleaning Solutions Ltd,V0990372,10/03/2022,18,Housing & Assets 2,Premises Expenses,G23100007/B003005,Housing Revenue Account,Window Cleaning
Ashfield District Council,37UB,Excel Cleaning Solutions Ltd,V0992152,31/03/2022,24,Housing & Assets 2,Premises Expenses,G23000/B003005,Housing Revenue Account,Window Cleaning
Ashfield District Council,37UB,Excel Cleaning Solutions Ltd,V0992152,31/03/2022,46,Housing & Assets 2,Premises Expenses,G23000/B003005,Housing Revenue Account,Window Cleaning
Ashfield District Council,37UB,Excel Cleaning Solutions Ltd,V0992152,31/03/2022,22,Housing & Assets 2,Premises Expenses,G23000/B003005,Housing Revenue Account,Window Cleaning
Ashfield District Council,37UB,Excel Cleaning Solutions Ltd,V0992152,31/03/2022,9,Housing & Assets 2,Premises Expenses,G23100007/B003005,Housing Revenue Account,Window Cleaning
Ashfield District Council,37UB,Excel Cleaning Solutions Ltd,V0992153,31/03/2022,54,Housing & Assets 2,Premises Expenses,G23000/B003005,Housing Revenue Account,Window Cleaning
Ashfield District Council,37UB,Excel Cleaning Solutions Ltd,V0992153,31/03/2022,20,Housing & Assets 2,Premises Expenses,G23100002/B003005,Housing Revenue Account,Window Cleaning
Ashfield District Council,37UB,Excel Cleaning Solutions Ltd,V0992153,31/03/2022,18,Housing & Assets 2,Premises Expenses,G23000/B003005,Housing Revenue Account,Window Cleaning
Ashfield District Council,37UB,Excel Cleaning Solutions Ltd,V0992153,31/03/2022,20,Housing & Assets 2,Premises Expenses,G23000/B003005,Housing Revenue Account,Window Cleaning
Ashfield District Council,37UB,Excel Cleaning Solutions Ltd,V0992153,31/03/2022,20,Housing & Assets 2,Premises Expenses,G23000/B003005,Housing Revenue Account,Window Cleaning
Ashfield District Council,37UB,Excel Cleaning Solutions Ltd,V0992153,31/03/2022,20,Housing & Assets 2,Premises Expenses,G23100006/B003005,Housing Revenue Account,Window Cleaning
Ashfield District Council,37UB,Excel Cleaning Solutions Ltd,V0992153,31/03/2022,30,Housing & Assets 2,Premises Expenses,G23000/B003005,Housing Revenue Account,Window Cleaning
Ashfield District Council,37UB,Excel Cleaning Solutions Ltd,V0992153,31/03/2022,45,Housing & Assets 2,Premises Expenses,G23000/B003005,Housing Revenue Account,Window Cleaning
Ashfield District Council,37UB,Excel Cleaning Solutions Ltd,V0992153,31/03/2022,80,Housing & Assets 2,Premises Expenses,G23000/B003005,Housing Revenue Account,Window Cleaning
Ashfield District Council,37UB,Excel Cleaning Solutions Ltd,V0992153,31/03/2022,54,Housing & Assets 2,Premises Expenses,G23000/B003005,Housing Revenue Account,Window Cleaning
Ashfield District Council,37UB,Excel Cleaning Solutions Ltd,V0992153,31/03/2022,60,Housing & Assets 2,Premises Expenses,G23000/B003005,Housing Revenue Account,Window Cleaning
Ashfield District Council,37UB,Excel Cleaning Solutions Ltd,V0992153,31/03/2022,16,Housing & Assets 2,Premises Expenses,G23000/B003005,Housing Revenue Account,Window Cleaning
Ashfield District Council,37UB,Excel Cleaning Solutions Ltd,V0992153,31/03/2022,15,Housing & Assets 2,Premises Expenses,G23100004/B003005,Housing Revenue Account,Window Cleaning
Ashfield District Council,37UB,Excel Cleaning Solutions Ltd,V0992153,31/03/2022,15,Housing & Assets 2,Premises Expenses,G23000/B003005,Housing Revenue Account,Window Cleaning
Ashfield District Council,37UB,Excel Cleaning Solutions Ltd,V0992153,31/03/2022,40,Housing & Assets 2,Premises Expenses,G23000/B003005,Housing Revenue Account,Window Cleaning
Ashfield District Council,37UB,Excel Cleaning Solutions Ltd,V0992153,31/03/2022,25,Housing & Assets 2,Premises Expenses,G23000/B003005,Housing Revenue Account,Window Cleaning
Ashfield District Council,37UB,Excel Cleaning Solutions Ltd,V0992153,31/03/2022,95,Housing & Assets 2,Premises Expenses,G23000/B003005,Housing Revenue Account,Window Cleaning
Ashfield District Council,37UB,Hoot Fire & Security Ltd,V0990257,03/03/2022,40,Housing & Assets 2,Premises Expenses,G23011001/B002002,Housing Revenue Account,"Fire,Intruder,CCTV ,Access Control"
Ashfield District Council,37UB,Hoot Fire & Security Ltd,V0990258,10/03/2022,40,Housing & Assets 2,Premises Expenses,G23100007/B002002,Housing Revenue Account,"Fire,Intruder,CCTV ,Access Control"
Ashfield District Council,37UB,Hoot Fire & Security Ltd,V0990266,10/03/2022,80,Housing & Assets 2,Premises Expenses,G23100002/B002002,Housing Revenue Account,"Fire,Intruder,CCTV ,Access Control"
Ashfield District Council,37UB,Hoot Fire & Security Ltd,V0991393,24/03/2022,80,Housing & Assets 2,Premises Expenses,G23100002/B002002,Housing Revenue Account,"Fire,Intruder,CCTV ,Access Control"
Ashfield District Council,37UB,Land Trust Residential Services,V0989434,31/03/2022,2546.9,Housing & Assets 2,Supplies & Services,G23000/D200008,Housing Revenue Account,Payments to Contractors External
Ashfield District Council,37UB,Land Trust Residential Services,V0989434,31/03/2022,1900.69,Housing & Assets 2,Supplies & Services,G23000/D200008,Housing Revenue Account,Payments to Contractors External
Ashfield District Council,37UB,M Shooter Electrical Engineer & Contractor,V0990928,24/03/2022,25,Housing & Assets 2,Premises Expenses,G23100006/B002011,Housing Revenue Account,PAT Testing
Ashfield District Council,37UB,M Shooter Electrical Engineer & Contractor,V0990928,24/03/2022,25,Housing & Assets 2,Premises Expenses,G23100003/B002011,Housing Revenue Account,PAT Testing
Ashfield District Council,37UB,M Shooter Electrical Engineer & Contractor,V0990928,24/03/2022,25,Housing & Assets 2,Premises Expenses,G23100002/B002011,Housing Revenue Account,PAT Testing
Ashfield District Council,37UB,M Shooter Electrical Engineer & Contractor,V0990928,24/03/2022,25,Housing & Assets 2,Premises Expenses,G23100004/B002011,Housing Revenue Account,PAT Testing
Ashfield District Council,37UB,M Shooter Electrical Engineer & Contractor,V0990928,24/03/2022,25,Housing & Assets 2,Premises Expenses,G23100007/B002011,Housing Revenue Account,PAT Testing
Ashfield District Council,37UB,Utilita Energy Limited,V0991338,24/03/2022,83.08,Housing & Assets 2,Premises Expenses,G23011027/B102,Housing Revenue Account,Electricity
Ashfield District Council,37UB,Utilita Energy Limited,V0991338,24/03/2022,102.27,Housing & Assets 2,Premises Expenses,G23011027/B101,Housing Revenue Account,Gas
Ashfield District Council,37UB,Ashfield District Council,V0991532,24/03/2022,65.84,R & B Transformation 2,Income,G23011019/J102004,Housing Revenue Account,Housing Benefit Contributions
Ashfield District Council,37UB,Ashfield District Council,V0991534,24/03/2022,57.21,R & B Transformation 2,Income,G23011055/J102004,Housing Revenue Account,Housing Benefit Contributions
Ashfield District Council,37UB,Ashfield District Council,V0992173,31/03/2022,24.68,R & B Transformation 2,Income,G23011046/J102004,Housing Revenue Account,Housing Benefit Contributions
Ashfield District Council,37UB,Ashfield District Council,V0992174,31/03/2022,28.22,R & B Transformation 2,Income,G23011019/J102004,Housing Revenue Account,Housing Benefit Contributions
Ashfield District Council,37UB,British Gas Business,V0989540,03/03/2022,130.66,R & B Transformation 2,Premises Expenses,G23011034/B102,Housing Revenue Account,Electricity
Ashfield District Council,37UB,British Gas Business,V0989540,03/03/2022,2095.65,R & B Transformation 2,Premises Expenses,G23011051/B102,Housing Revenue Account,Electricity
Ashfield District Council,37UB,British Gas Business,V0989540,03/03/2022,113.99,R & B Transformation 2,Premises Expenses,G23011036/B102,Housing Revenue Account,Electricity
Ashfield District Council,37UB,British Gas Business,V0989540,03/03/2022,69.03,R & B Transformation 2,Premises Expenses,G23011038/B102,Housing Revenue Account,Electricity
Ashfield District Council,37UB,British Gas Business,V0989540,03/03/2022,-104.56,R & B Transformation 2,Premises Expenses,G23011035/B102,Housing Revenue Account,Electricity
Ashfield District Council,37UB,British Gas Business,V0989540,03/03/2022,-71.86,R & B Transformation 2,Premises Expenses,G23011030/B102,Housing Revenue Account,Electricity
Ashfield District Council,37UB,British Gas Business,V0989540,03/03/2022,22.47,R & B Transformation 2,Premises Expenses,G23011030/B102,Housing Revenue Account,Electricity
Ashfield District Council,37UB,British Gas Business,V0989540,03/03/2022,61.26,R & B Transformation 2,Premises Expenses,G23011035/B102,Housing Revenue Account,Electricity
Ashfield District Council,37UB,British Gas Business,V0989540,03/03/2022,201.41,R & B Transformation 2,Premises Expenses,G23011015/B102,Housing Revenue Account,Electricity
Ashfield District Council,37UB,British Gas Business,V0989540,03/03/2022,338.66,R & B Transformation 2,Premises Expenses,G23011035/B102,Housing Revenue Account,Electricity
Ashfield District Council,37UB,British Gas Business,V0989540,03/03/2022,74.76,R & B Transformation 2,Premises Expenses,G23011046/B102,Housing Revenue Account,Electricity
Ashfield District Council,37UB,British Gas Business,V0989540,03/03/2022,-101.35,R & B Transformation 2,Premises Expenses,G23011035/B102,Housing Revenue Account,Electricity
Ashfield District Council,37UB,British Gas Business,V0989540,03/03/2022,-61.26,R & B Transformation 2,Premises Expenses,G23011035/B102,Housing Revenue Account,Electricity
Ashfield District Council,37UB,British Gas Business,V0989540,03/03/2022,51.74,R & B Transformation 2,Premises Expenses,G23011029/B102,Housing Revenue Account,Electricity
Ashfield District Council,37UB,British Gas Business,V0989540,03/03/2022,68.41,R & B Transformation 2,Premises Expenses,G23011032/B102,Housing Revenue Account,Electricity
Ashfield District Council,37UB,British Gas Business,V0989540,03/03/2022,13.7,R & B Transformation 2,Premises Expenses,G23011030/B102,Housing Revenue Account,Electricity
Ashfield District Council,37UB,British Gas Business,V0989540,03/03/2022,101.35,R & B Transformation 2,Premises Expenses,G23011035/B102,Housing Revenue Account,Electricity
Ashfield District Council,37UB,British Gas Business,V0989540,03/03/2022,14.01,R & B Transformation 2,Premises Expenses,G23011030/B102,Housing Revenue Account,Electricity
Ashfield District Council,37UB,British Gas Business,V0989540,03/03/2022,129.08,R & B Transformation 2,Premises Expenses,G23011041/B102,Housing Revenue Account,Electricity
Ashfield District Council,37UB,British Gas Business,V0989540,03/03/2022,48.28,R & B Transformation 2,Premises Expenses,G23011055/B102,Housing Revenue Account,Electricity
Ashfield District Council,37UB,British Gas Business,V0989540,03/03/2022,159.58,R & B Transformation 2,Premises Expenses,G23011016/B102,Housing Revenue Account,Electricity
Ashfield District Council,37UB,British Gas Business,V0989540,03/03/2022,52.37,R & B Transformation 2,Premises Expenses,G23011005/B102,Housing Revenue Account,Electricity
Ashfield District Council,37UB,British Gas Business,V0989540,03/03/2022,12.61,R & B Transformation 2,Premises Expenses,G23011030/B102,Housing Revenue Account,Electricity
Ashfield District Council,37UB,British Gas Business,V0989540,03/03/2022,57.72,R & B Transformation 2,Premises Expenses,G23011001/B102,Housing Revenue Account,Electricity
Ashfield District Council,37UB,British Gas Business,V0989540,03/03/2022,199.93,R & B Transformation 2,Premises Expenses,G23011013/B102,Housing Revenue Account,Electricity
Ashfield District Council,37UB,British Gas Business,V0989540,03/03/2022,91.99,R & B Transformation 2,Premises Expenses,G23011014/B102,Housing Revenue Account,Electricity
Ashfield District Council,37UB,British Gas Business,V0989540,03/03/2022,104.56,R & B Transformation 2,Premises Expenses,G23011035/B102,Housing Revenue Account,Electricity
Ashfield District Council,37UB,British Gas Business,V0989540,03/03/2022,-100.01,R & B Transformation 2,Premises Expenses,G23011030/B102,Housing Revenue Account,Electricity
Ashfield District Council,37UB,British Gas Business,V0989540,03/03/2022,42.35,R & B Transformation 2,Premises Expenses,G23011040/B102,Housing Revenue Account,Electricity
Ashfield District Council,37UB,British Gas Business,V0989540,03/03/2022,69.98,R & B Transformation 2,Premises Expenses,G23011004/B102,Housing Revenue Account,Electricity
Ashfield District Council,37UB,British Gas Business,V0989540,03/03/2022,80.35,R & B Transformation 2,Premises Expenses,G23011007/B102,Housing Revenue Account,Electricity
Ashfield District Council,37UB,British Gas Business,V0989540,03/03/2022,-73.12,R & B Transformation 2,Premises Expenses,G23011030/B102,Housing Revenue Account,Electricity
Ashfield District Council,37UB,British Gas Business,V0989540,03/03/2022,47.03,R & B Transformation 2,Premises Expenses,G23011002/B102,Housing Revenue Account,Electricity
Ashfield District Council,37UB,British Gas Business,V0989540,03/03/2022,32.25,R & B Transformation 2,Premises Expenses,G23011033/B102,Housing Revenue Account,Electricity
Ashfield District Council,37UB,British Gas Business,V0989542,03/03/2022,157.44,R & B Transformation 2,Premises Expenses,G23011035/B101,Housing Revenue Account,Gas
Ashfield District Council,37UB,British Gas Business,V0989542,03/03/2022,-326.1,R & B Transformation 2,Premises Expenses,G23011004/B101,Housing Revenue Account,Gas
Ashfield District Council,37UB,British Gas Business,V0989542,03/03/2022,59.01,R & B Transformation 2,Premises Expenses,G23011001/B101,Housing Revenue Account,Gas
Ashfield District Council,37UB,British Gas Business,V0989542,03/03/2022,340.67,R & B Transformation 2,Premises Expenses,G23011005/B101,Housing Revenue Account,Gas
Ashfield District Council,37UB,British Gas Business,V0989542,03/03/2022,54.28,R & B Transformation 2,Premises Expenses,G23011055/B101,Housing Revenue Account,Gas
Ashfield District Council,37UB,British Gas Business,V0989542,03/03/2022,-177.88,R & B Transformation 2,Premises Expenses,G23011002/B101,Housing Revenue Account,Gas
Ashfield District Council,37UB,British Gas Business,V0989542,03/03/2022,-168.1,R & B Transformation 2,Premises Expenses,G23011041/B101,Housing Revenue Account,Gas
Ashfield District Council,37UB,British Gas Business,V0989542,03/03/2022,140.41,R & B Transformation 2,Premises Expenses,G23011020/B101,Housing Revenue Account,Gas
Ashfield District Council,37UB,British Gas Business,V0989542,03/03/2022,151.77,R & B Transformation 2,Premises Expenses,G23011038/B101,Housing Revenue Account,Gas
Ashfield District Council,37UB,British Gas Business,V0989542,03/03/2022,560.96,R & B Transformation 2,Premises Expenses,G23011016/B101,Housing Revenue Account,Gas
Ashfield District Council,37UB,British Gas Business,V0989542,03/03/2022,-368.93,R & B Transformation 2,Premises Expenses,G23011004/B101,Housing Revenue Account,Gas
Ashfield District Council,37UB,British Gas Business,V0989542,03/03/2022,258.72,R & B Transformation 2,Premises Expenses,G23011007/B101,Housing Revenue Account,Gas
Ashfield District Council,37UB,British Gas Business,V0989542,03/03/2022,222.75,R & B Transformation 2,Premises Expenses,G23011014/B101,Housing Revenue Account,Gas
Ashfield District Council,37UB,British Gas Business,V0989542,03/03/2022,171.64,R & B Transformation 2,Premises Expenses,G23011040/B101,Housing Revenue Account,Gas
Ashfield District Council,37UB,British Gas Business,V0989542,03/03/2022,178.71,R & B Transformation 2,Premises Expenses,G23011033/B101,Housing Revenue Account,Gas
Ashfield District Council,37UB,British Gas Business,V0989542,03/03/2022,83.47,R & B Transformation 2,Premises Expenses,G23011002/B101,Housing Revenue Account,Gas
Ashfield District Council,37UB,British Gas Business,V0989542,03/03/2022,36.29,R & B Transformation 2,Premises Expenses,G23011030/B101,Housing Revenue Account,Gas
Ashfield District Council,37UB,British Gas Business,V0989542,03/03/2022,118.12,R & B Transformation 2,Premises Expenses,G23011041/B101,Housing Revenue Account,Gas
Ashfield District Council,37UB,British Gas Business,V0989542,03/03/2022,120.53,R & B Transformation 2,Premises Expenses,G23011046/B101,Housing Revenue Account,Gas
Ashfield District Council,37UB,British Gas Business,V0989542,03/03/2022,63.47,R & B Transformation 2,Premises Expenses,G23011002/B101,Housing Revenue Account,Gas
Ashfield District Council,37UB,British Gas Business,V0989542,03/03/2022,481.07,R & B Transformation 2,Premises Expenses,G23011051/B101,Housing Revenue Account,Gas
Ashfield District Council,37UB,British Gas Business,V0989542,03/03/2022,182.05,R & B Transformation 2,Premises Expenses,G23011029/B101,Housing Revenue Account,Gas
Ashfield District Council,37UB,British Gas Business,V0989542,03/03/2022,30.51,R & B Transformation 2,Premises Expenses,G23011041/B101,Housing Revenue Account,Gas
Ashfield District Council,37UB,British Gas Business,V0989542,03/03/2022,85.12,R & B Transformation 2,Premises Expenses,G23011004/B101,Housing Revenue Account,Gas
Ashfield District Council,37UB,British Gas Business,V0989542,03/03/2022,284.28,R & B Transformation 2,Premises Expenses,G23011034/B101,Housing Revenue Account,Gas
Ashfield District Council,37UB,British Gas Business,V0989542,03/03/2022,83.47,R & B Transformation 2,Premises Expenses,G23011004/B101,Housing Revenue Account,Gas
Ashfield District Council,37UB,British Gas Business,V0989542,03/03/2022,287.22,R & B Transformation 2,Premises Expenses,G23011003/B101,Housing Revenue Account,Gas
Ashfield District Council,37UB,British Gas Business,V0989542,03/03/2022,47.25,R & B Transformation 2,Premises Expenses,G23011004/B101,Housing Revenue Account,Gas
Ashfield District Council,37UB,British Gas Business,V0989542,03/03/2022,244.52,R & B Transformation 2,Premises Expenses,G23011015/B101,Housing Revenue Account,Gas
Ashfield District Council,37UB,British Gas Trading Limited,V0990929,17/03/2022,1.59,R & B Transformation 2,Premises Expenses,G23011055/B101,Housing Revenue Account,Gas
Ashfield District Council,37UB,British Gas Trading Limited,V0990930,17/03/2022,1.11,R & B Transformation 2,Premises Expenses,G23011016/B101,Housing Revenue Account,Gas
Ashfield District Council,37UB,British Gas Trading Limited,V0991010,17/03/2022,104.84,R & B Transformation 2,Premises Expenses,G23011052/B102,Housing Revenue Account,Electricity
Ashfield District Council,37UB,British Gas Trading Limited,V0991010,17/03/2022,251.62,R & B Transformation 2,Premises Expenses,G23011052/B101,Housing Revenue Account,Gas
Ashfield District Council,37UB,Castle Water Ltd,V0990434,17/03/2022,34.98,R & B Transformation 2,Premises Expenses,G23100004/B401,Housing Revenue Account,Water rates
Ashfield District Council,37UB,Castle Water Ltd,V0990434,17/03/2022,15.39,R & B Transformation 2,Premises Expenses,G23100002/B401,Housing Revenue Account,Water rates
Ashfield District Council,37UB,Castle Water Ltd,V0990434,17/03/2022,19.21,R & B Transformation 2,Premises Expenses,G23100006/B401,Housing Revenue Account,Water rates
Ashfield District Council,37UB,Castle Water Ltd,V0990434,17/03/2022,28.27,R & B Transformation 2,Premises Expenses,G23100007/B401,Housing Revenue Account,Water rates
Ashfield District Council,37UB,Castle Water Ltd,V0990434,17/03/2022,-16.64,R & B Transformation 2,Premises Expenses,G23100006/B401,Housing Revenue Account,Water rates
Ashfield District Council,37UB,Castle Water Ltd,V0990434,17/03/2022,17.6,R & B Transformation 2,Premises Expenses,G23100006/B401,Housing Revenue Account,Water rates
Ashfield District Council,37UB,Castle Water Ltd,V0990434,17/03/2022,9.2,R & B Transformation 2,Premises Expenses,G23100003/B401,Housing Revenue Account,Water rates
Ashfield District Council,37UB,Daisy Telecoms Ltd,V0990336,17/03/2022,14.96,R & B Transformation 2,Premises Expenses,G23100007/B003026,Housing Revenue Account,Radio Controlled /Radio Equipment
Ashfield District Council,37UB,Daisy Telecoms Ltd,V0990336,17/03/2022,13.52,R & B Transformation 2,Premises Expenses,G23100004/B003026,Housing Revenue Account,Radio Controlled /Radio Equipment
Ashfield District Council,37UB,Daisy Telecoms Ltd,V0990336,17/03/2022,13.52,R & B Transformation 2,Premises Expenses,G23100001/B003026,Housing Revenue Account,Radio Controlled /Radio Equipment
Ashfield District Council,37UB,Daisy Telecoms Ltd,V0990336,17/03/2022,13.52,R & B Transformation 2,Premises Expenses,G23100005/B003026,Housing Revenue Account,Radio Controlled /Radio Equipment
Ashfield District Council,37UB,Daisy Telecoms Ltd,V0990336,17/03/2022,13.52,R & B Transformation 2,Premises Expenses,G23100006/B003026,Housing Revenue Account,Radio Controlled /Radio Equipment
Ashfield District Council,37UB,Daisy Telecoms Ltd,V0990385,17/03/2022,104.1,R & B Transformation 2,Supplies & Services,G23100007/d301002,Housing Revenue Account,Telephones
Ashfield District Council,37UB,Daisy Telecoms Ltd,V0990385,17/03/2022,36.32,R & B Transformation 2,Supplies & Services,G23100002/d301002,Housing Revenue Account,Telephones
Ashfield District Council,37UB,E.ON Energy Services,V0988620,24/03/2022,62.79,R & B Transformation 2,Premises Expenses,G23011026/B102,Housing Revenue Account,Electricity
Ashfield District Council,37UB,e.on Next,V0991336,24/03/2022,56.27,R & B Transformation 2,Premises Expenses,G23011045/B102,Housing Revenue Account,Electricity
Ashfield District Council,37UB,EDF Energy 1 Ltd,V0984212,24/03/2022,66.41,R & B Transformation 2,Premises Expenses,G23100007/B102,Housing Revenue Account,Electricity
Ashfield District Council,37UB,EDF Energy 1 Ltd,V0984212,24/03/2022,70.64,R & B Transformation 2,Premises Expenses,G23100007/B102,Housing Revenue Account,Electricity
Ashfield District Council,37UB,EDF Energy 1 Ltd,V0984212,24/03/2022,30.52,R & B Transformation 2,Premises Expenses,G23100006/B102,Housing Revenue Account,Electricity
Ashfield District Council,37UB,EDF Energy 1 Ltd,V0990977,24/03/2022,36.47,R & B Transformation 2,Premises Expenses,G23100006/B102,Housing Revenue Account,Electricity
Ashfield District Council,37UB,EDF Energy 1 Ltd,V0990977,24/03/2022,31.96,R & B Transformation 2,Premises Expenses,G23100007/B102,Housing Revenue Account,Electricity
Ashfield District Council,37UB,EDF Energy 1 Ltd,V0990977,24/03/2022,363.18,R & B Transformation 2,Premises Expenses,G23100003/B102,Housing Revenue Account,Electricity
Ashfield District Council,37UB,Mansfield District Council,V0990794,10/03/2022,3192,R & B Transformation 2,Employee Expenses,G23000/A200019,Housing Revenue Account,Divisional Training
Ashfield District Council,37UB,Mansfield District Council,V0990794,10/03/2022,1769,R & B Transformation 2,Employee Expenses,G23000/A200010,Housing Revenue Account,Corporate Training
Ashfield District Council,37UB,Scottish Power,V0989347,03/03/2022,32.41,R & B Transformation 2,Premises Expenses,G23011020/B102,Housing Revenue Account,Electricity
Ashfield District Council,37UB,Total Gas & Power,V0990925,17/03/2022,246.61,R & B Transformation 2,Premises Expenses,G23100002/B101,Housing Revenue Account,Gas
Ashfield District Council,37UB,Total Gas & Power,V0990925,17/03/2022,170.29,R & B Transformation 2,Premises Expenses,G23100007/B101,Housing Revenue Account,Gas
Ashfield District Council,37UB,Total Gas & Power,V0990925,17/03/2022,-4.99,R & B Transformation 2,Premises Expenses,G23100005/B101,Housing Revenue Account,Gas
Ashfield District Council,37UB,Total Gas & Power,V0990925,17/03/2022,157.95,R & B Transformation 2,Premises Expenses,G23100006/B101,Housing Revenue Account,Gas
Ashfield District Council,37UB,Total Gas & Power,V0990925,17/03/2022,105.58,R & B Transformation 2,Premises Expenses,G23100004/B101,Housing Revenue Account,Gas
Ashfield District Council,37UB,Office Depot UK Limited,V0991401,24/03/2022,8.16,Housing & Assets 2,Supplies & Services,G53000/D103,Lettings and PS,Printing & stationery
Ashfield District Council,37UB,Office Depot UK Limited,V0991401,24/03/2022,7.8,Housing & Assets 2,Supplies & Services,G53000/D103,Lettings and PS,Printing & stationery
Ashfield District Council,37UB,Office Depot UK Limited,V0991401,24/03/2022,8.88,Housing & Assets 2,Supplies & Services,G53000/D103,Lettings and PS,Printing & stationery
Ashfield District Council,37UB,Office Depot UK Limited,V0991401,24/03/2022,15.68,Housing & Assets 2,Supplies & Services,G53000/D103,Lettings and PS,Printing & stationery
Ashfield District Council,37UB,Office Depot UK Limited,V0991401,24/03/2022,3.25,Housing & Assets 2,Supplies & Services,G53000/D103,Lettings and PS,Printing & stationery
Ashfield District Council,37UB,Pepperhed Design t/a Rubiqa,V0991316,17/03/2022,420,Housing & Assets 2,Supplies & Services,G53000/D001001,Lettings and PS,Equipment Purchase
Ashfield District Council,37UB,Shape Design Contracts Ltd,V0988038,03/03/2022,577.34,Housing & Assets 2,Employee Expenses,G53000/A352,Lettings and PS,Occupational Health
Ashfield District Council,37UB,The Lock Shop (SIA) Ltd,V0991315,17/03/2022,59.75,Housing & Assets 2,Supplies & Services,G53000/D001001,Lettings and PS,Equipment Purchase
Ashfield District Council,37UB,TurnerFox Recruitment Limited,V0989550,03/03/2022,217.07,Housing & Assets 2,Employee Expenses,G53000/A200004,Lettings and PS,Agency Staff
Ashfield District Council,37UB,TurnerFox Recruitment Limited,V0990846,17/03/2022,553.89,Housing & Assets 2,Employee Expenses,G53000/A200004,Lettings and PS,Agency Staff
Ashfield District Council,37UB,TurnerFox Recruitment Limited,V0991005,17/03/2022,441.62,Housing & Assets 2,Employee Expenses,G53000/A200004,Lettings and PS,Agency Staff
Ashfield District Council,37UB,TurnerFox Recruitment Limited,V0991562,24/03/2022,553.89,Housing & Assets 2,Employee Expenses,G53000/A200004,Lettings and PS,Agency Staff
Ashfield District Council,37UB,TurnerFox Recruitment Limited,V0992166,31/03/2022,553.89,Housing & Assets 2,Employee Expenses,G53000/A200004,Lettings and PS,Agency Staff
Ashfield District Council,37UB,Amazon Payments UK Ltd,V0991428,24/03/2022,688.32,R & B Transformation 2,Supplies & Services,G53000/D001001,Lettings and PS,Equipment Purchase
Ashfield District Council,37UB,Amazon Payments UK Ltd,V0991430,24/03/2022,515.01,R & B Transformation 2,Supplies & Services,G53000/D001001,Lettings and PS,Equipment Purchase
Ashfield District Council,37UB,EE Limited,V0990391,17/03/2022,12.5,R & B Transformation 2,Supplies & Services,G53000/D301003,Lettings and PS,Mobiles
Ashfield District Council,37UB,EE Limited,V0992158,31/03/2022,-0.63,R & B Transformation 2,Supplies & Services,G53000/D301003,Lettings and PS,Mobiles
Ashfield District Council,37UB,Royal Mail,V0989511,17/03/2022,318.87,R & B Transformation 2,Supplies & Services,G53000/D301001,Lettings and PS,Postages
Ashfield District Council,37UB,Royal Mail,V0990460,24/03/2022,143.06,R & B Transformation 2,Supplies & Services,G53000/D301001,Lettings and PS,Postages
Ashfield District Council,37UB,Royal Mail,V0991558,31/03/2022,81.47,R & B Transformation 2,Supplies & Services,G53000/D301001,Lettings and PS,Postages
Ashfield District Council,37UB,Eastern Shires Purchasing Organisation,V0990304,17/03/2022,41.15,Housing & Assets 2,Supplies & Services,G58000/D103,Procurement Section,Printing & stationery
Ashfield District Council,37UB,Eastern Shires Purchasing Organisation,V0990904,17/03/2022,13,Housing & Assets 2,Supplies & Services,G58000/D103,Procurement Section,Printing & stationery
Ashfield District Council,37UB,Eastern Shires Purchasing Organisation,V0990988,17/03/2022,2.4,Housing & Assets 2,Supplies & Services,G58000/D103,Procurement Section,Printing & stationery
Ashfield District Council,37UB,EE Limited,V0990391,17/03/2022,16.5,R & B Transformation 2,Supplies & Services,G58000/D301003,Procurement Section,Mobiles
Ashfield District Council,37UB,EE Limited,V0992158,31/03/2022,16.5,R & B Transformation 2,Supplies & Services,G58000/D301003,Procurement Section,Mobiles
Ashfield District Council,37UB,Miltons Wallpapers Limited,V0989528,03/03/2022,644.61,Housing & Assets 2,Supplies & Services,G56004/D200033,Tech Servs Planned Responsive,Decoration Vouchers
Ashfield District Council,37UB,Orbis Property Protection Ltd,V0991506,24/03/2022,260,Housing & Assets 2,Premises Expenses,G56005/B004010,Tech Servs Planned Responsive,PM Void Screens
Ashfield District Council,37UB,Orbis Property Protection Ltd,V0991535,31/03/2022,60,Housing & Assets 2,Premises Expenses,G56005/B004010,Tech Servs Planned Responsive,PM Void Screens
Ashfield District Council,37UB,Stroma Certification Limited,V0989544,03/03/2022,285.2,Housing & Assets 2,Premises Expenses,G56005/B004042,Tech Servs Planned Responsive,Annual Prop Health & Safety Check/Serv
Ashfield District Council,37UB,Wilko Retail Limited,V0991323,17/03/2022,1.63,Housing & Assets 2,Supplies & Services,G56004/D200033,Tech Servs Planned Responsive,Decoration Vouchers
Ashfield District Council,37UB,Wilko Retail Limited,V0991323,17/03/2022,24.41,Housing & Assets 2,Supplies & Services,G56004/D200033,Tech Servs Planned Responsive,Decoration Vouchers
Ashfield District Council,37UB,Wilko Retail Limited,V0991324,17/03/2022,129.17,Housing & Assets 2,Supplies & Services,G56004/D200033,Tech Servs Planned Responsive,Decoration Vouchers
Ashfield District Council,37UB,Wilko Retail Limited,V0991325,17/03/2022,174.17,Housing & Assets 2,Supplies & Services,G56004/D200033,Tech Servs Planned Responsive,Decoration Vouchers
Ashfield District Council,37UB,Wilko Retail Limited,V0991327,17/03/2022,100,Housing & Assets 2,Supplies & Services,G56004/D200033,Tech Servs Planned Responsive,Decoration Vouchers
Ashfield District Council,37UB,Wilko Retail Limited,V0991328,17/03/2022,77.5,Housing & Assets 2,Supplies & Services,G56004/D200033,Tech Servs Planned Responsive,Decoration Vouchers
Ashfield District Council,37UB,Wilko Retail Limited,V0991329,17/03/2022,103.33,Housing & Assets 2,Supplies & Services,G56004/D200033,Tech Servs Planned Responsive,Decoration Vouchers
Ashfield District Council,37UB,Wilko Retail Limited,V0991330,17/03/2022,90.83,Housing & Assets 2,Supplies & Services,G56004/D200033,Tech Servs Planned Responsive,Decoration Vouchers
Ashfield District Council,37UB,Wilko Retail Limited,V0991331,17/03/2022,75.83,Housing & Assets 2,Supplies & Services,G56004/D200033,Tech Servs Planned Responsive,Decoration Vouchers
Ashfield District Council,37UB,Wilko Retail Limited,V0991332,17/03/2022,83.33,Housing & Assets 2,Supplies & Services,G56004/D200033,Tech Servs Planned Responsive,Decoration Vouchers
Ashfield District Council,37UB,Wilko Retail Limited,V0991348,17/03/2022,103.33,Housing & Assets 2,Supplies & Services,G56004/D200033,Tech Servs Planned Responsive,Decoration Vouchers
Ashfield District Council,37UB,Wilko Retail Limited,V0991351,17/03/2022,198,Housing & Assets 2,Supplies & Services,G56004/D200033,Tech Servs Planned Responsive,Decoration Vouchers
Ashfield District Council,37UB,Wilko Retail Limited,V0991352,17/03/2022,103.33,Housing & Assets 2,Supplies & Services,G56004/D200033,Tech Servs Planned Responsive,Decoration Vouchers
Ashfield District Council,37UB,Wilko Retail Limited,V0991353,17/03/2022,122.5,Housing & Assets 2,Supplies & Services,G56004/D200033,Tech Servs Planned Responsive,Decoration Vouchers
Ashfield District Council,37UB,Wilko Retail Limited,V0991354,17/03/2022,25.83,Housing & Assets 2,Supplies & Services,G56004/D200033,Tech Servs Planned Responsive,Decoration Vouchers
Ashfield District Council,37UB,Wilko Retail Limited,V0991453,24/03/2022,174.17,Housing & Assets 2,Supplies & Services,G56004/D200033,Tech Servs Planned Responsive,Decoration Vouchers
Ashfield District Council,37UB,Wilko Retail Limited,V0991454,24/03/2022,174.17,Housing & Assets 2,Supplies & Services,G56004/D200033,Tech Servs Planned Responsive,Decoration Vouchers
Ashfield District Council,37UB,Wilko Retail Limited,V0991455,24/03/2022,122.5,Housing & Assets 2,Supplies & Services,G56004/D200033,Tech Servs Planned Responsive,Decoration Vouchers
Ashfield District Council,37UB,Wilko Retail Limited,V0991456,24/03/2022,174.17,Housing & Assets 2,Supplies & Services,G56004/D200033,Tech Servs Planned Responsive,Decoration Vouchers
Ashfield District Council,37UB,Wilko Retail Limited,V0991458,24/03/2022,174.17,Housing & Assets 2,Supplies & Services,G56004/D200033,Tech Servs Planned Responsive,Decoration Vouchers
Ashfield District Council,37UB,Wilko Retail Limited,V0991459,24/03/2022,115.67,Housing & Assets 2,Supplies & Services,G56004/D200033,Tech Servs Planned Responsive,Decoration Vouchers
Ashfield District Council,37UB,Wilko Retail Limited,V0991460,24/03/2022,199.92,Housing & Assets 2,Supplies & Services,G56004/D200033,Tech Servs Planned Responsive,Decoration Vouchers
Ashfield District Council,37UB,Wilko Retail Limited,V0991461,24/03/2022,83.33,Housing & Assets 2,Supplies & Services,G56004/D200033,Tech Servs Planned Responsive,Decoration Vouchers
Ashfield District Council,37UB,Wilko Retail Limited,V0991462,24/03/2022,99.67,Housing & Assets 2,Supplies & Services,G56004/D200033,Tech Servs Planned Responsive,Decoration Vouchers
Ashfield District Council,37UB,Wilko Retail Limited,V0991347,31/03/2022,161.17,Housing & Assets 2,Supplies & Services,G56004/D200033,Tech Servs Planned Responsive,Decoration Vouchers
Ashfield District Council,37UB,Wilko Retail Limited,V0991349,31/03/2022,122.5,Housing & Assets 2,Supplies & Services,G56004/D200033,Tech Servs Planned Responsive,Decoration Vouchers
Ashfield District Council,37UB,Wilko Retail Limited,V0991350,31/03/2022,148.33,Housing & Assets 2,Supplies & Services,G56004/D200033,Tech Servs Planned Responsive,Decoration Vouchers
Ashfield District Council,37UB,Wilko Retail Limited,V0991457,31/03/2022,193.33,Housing & Assets 2,Supplies & Services,G56004/D200033,Tech Servs Planned Responsive,Decoration Vouchers
Ashfield District Council,37UB,Wilko Retail Limited,V0992080,31/03/2022,96.67,Housing & Assets 2,Supplies & Services,G56004/D200033,Tech Servs Planned Responsive,Decoration Vouchers
Ashfield District Council,37UB,Wilko Retail Limited,V0992081,31/03/2022,125.83,Housing & Assets 2,Supplies & Services,G56004/D200033,Tech Servs Planned Responsive,Decoration Vouchers
Ashfield District Council,37UB,Wilko Retail Limited,V0992082,31/03/2022,94.33,Housing & Assets 2,Supplies & Services,G56004/D200033,Tech Servs Planned Responsive,Decoration Vouchers
Ashfield District Council,37UB,Wilko Retail Limited,V0992083,31/03/2022,122.87,Housing & Assets 2,Supplies & Services,G56004/D200033,Tech Servs Planned Responsive,Decoration Vouchers
Ashfield District Council,37UB,Wilko Retail Limited,V0992084,31/03/2022,147.92,Housing & Assets 2,Supplies & Services,G56004/D200033,Tech Servs Planned Responsive,Decoration Vouchers
Ashfield District Council,37UB,Wilko Retail Limited,V0992085,31/03/2022,77.5,Housing & Assets 2,Supplies & Services,G56004/D200033,Tech Servs Planned Responsive,Decoration Vouchers
Ashfield District Council,37UB,Wilko Retail Limited,V0992086,31/03/2022,99.17,Housing & Assets 2,Supplies & Services,G56004/D200033,Tech Servs Planned Responsive,Decoration Vouchers
Ashfield District Council,37UB,Wilko Retail Limited,V0992087,31/03/2022,90.21,Housing & Assets 2,Supplies & Services,G56004/D200033,Tech Servs Planned Responsive,Decoration Vouchers
Ashfield District Council,37UB,Wilko Retail Limited,V0992088,31/03/2022,51.67,Housing & Assets 2,Supplies & Services,G56004/D200033,Tech Servs Planned Responsive,Decoration Vouchers
Ashfield District Council,37UB,Wilko Retail Limited,V0992248,31/03/2022,133.87,Housing & Assets 2,Supplies & Services,G56004/D200033,Tech Servs Planned Responsive,Decoration Vouchers
Ashfield District Council,37UB,Wilko Retail Limited,V0992249,31/03/2022,122.46,Housing & Assets 2,Supplies & Services,G56004/D200033,Tech Servs Planned Responsive,Decoration Vouchers
Ashfield District Council,37UB,Wilko Retail Limited,V0992250,31/03/2022,122.5,Housing & Assets 2,Supplies & Services,G56004/D200033,Tech Servs Planned Responsive,Decoration Vouchers
Ashfield District Council,37UB,A L Dalton Limited,V0990690,14/03/2022,693.45,R & B Transformation 2,Supplies & Services,G57000/D002004,Technical Services Depot,Equipment Maintenance
Ashfield District Council,37UB,AGS Tech Ltd,V0990482,14/03/2022,100,R & B Transformation 2,Supplies & Services,G57002/D200008,Technical Services Depot,Payments to Contractors External
Ashfield District Council,37UB,AGS Tech Ltd,V0990483,14/03/2022,50,R & B Transformation 2,Supplies & Services,G57002/D200008,Technical Services Depot,Payments to Contractors External
Ashfield District Council,37UB,AGS Tech Ltd,V0990484,14/03/2022,50,R & B Transformation 2,Supplies & Services,G57002/D200008,Technical Services Depot,Payments to Contractors External
Ashfield District Council,37UB,AGS Tech Ltd,V0990485,14/03/2022,50,R & B Transformation 2,Supplies & Services,G57002/D200008,Technical Services Depot,Payments to Contractors External
Ashfield District Council,37UB,AGS Tech Ltd,V0990486,14/03/2022,50,R & B Transformation 2,Supplies & Services,G57002/D200008,Technical Services Depot,Payments to Contractors External
Ashfield District Council,37UB,AGS Tech Ltd,V0990487,14/03/2022,53.16,R & B Transformation 2,Supplies & Services,G57002/D200008,Technical Services Depot,Payments to Contractors External
Ashfield District Council,37UB,AGS Tech Ltd,V0990488,14/03/2022,50,R & B Transformation 2,Supplies & Services,G57002/D200008,Technical Services Depot,Payments to Contractors External
Ashfield District Council,37UB,AGS Tech Ltd,V0990489,14/03/2022,50,R & B Transformation 2,Supplies & Services,G57002/D200008,Technical Services Depot,Payments to Contractors External
Ashfield District Council,37UB,AGS Tech Ltd,V0990490,14/03/2022,79.84,R & B Transformation 2,Supplies & Services,G57002/D200008,Technical Services Depot,Payments to Contractors External
Ashfield District Council,37UB,AGS Tech Ltd,V0990491,14/03/2022,50,R & B Transformation 2,Supplies & Services,G57002/D200008,Technical Services Depot,Payments to Contractors External
Ashfield District Council,37UB,AGS Tech Ltd,V0990492,14/03/2022,50,R & B Transformation 2,Supplies & Services,G57002/D200008,Technical Services Depot,Payments to Contractors External
Ashfield District Council,37UB,AGS Tech Ltd,V0990493,14/03/2022,53.16,R & B Transformation 2,Supplies & Services,G57002/D200008,Technical Services Depot,Payments to Contractors External
Ashfield District Council,37UB,AGS Tech Ltd,V0990494,14/03/2022,50,R & B Transformation 2,Supplies & Services,G57002/D200008,Technical Services Depot,Payments to Contractors External
Ashfield District Council,37UB,AGS Tech Ltd,V0990495,14/03/2022,100,R & B Transformation 2,Supplies & Services,G57002/D200008,Technical Services Depot,Payments to Contractors External
Ashfield District Council,37UB,AGS Tech Ltd,V0990496,14/03/2022,50,R & B Transformation 2,Supplies & Services,G57002/D200008,Technical Services Depot,Payments to Contractors External
Ashfield District Council,37UB,AGS Tech Ltd,V0990497,14/03/2022,92.54,R & B Transformation 2,Supplies & Services,G57002/D200008,Technical Services Depot,Payments to Contractors External
Ashfield District Council,37UB,AGS Tech Ltd,V0990498,14/03/2022,50,R & B Transformation 2,Supplies & Services,G57002/D200008,Technical Services Depot,Payments to Contractors External
Ashfield District Council,37UB,AGS Tech Ltd,V0991279,22/03/2022,50,R & B Transformation 2,Supplies & Services,G57002/D200008,Technical Services Depot,Payments to Contractors External
Ashfield District Council,37UB,AGS Tech Ltd,V0991280,22/03/2022,50,R & B Transformation 2,Supplies & Services,G57002/D200008,Technical Services Depot,Payments to Contractors External
Ashfield District Council,37UB,AGS Tech Ltd,V0991638,29/03/2022,230.78,R & B Transformation 2,Supplies & Services,G57002/D200008,Technical Services Depot,Payments to Contractors External
Ashfield District Council,37UB,AGS Tech Ltd,V0991639,29/03/2022,50,R & B Transformation 2,Supplies & Services,G57002/D200008,Technical Services Depot,Payments to Contractors External
Ashfield District Council,37UB,AGS Tech Ltd,V0991640,29/03/2022,50,R & B Transformation 2,Supplies & Services,G57002/D200008,Technical Services Depot,Payments to Contractors External
Ashfield District Council,37UB,AGS Tech Ltd,V0991641,29/03/2022,70.12,R & B Transformation 2,Supplies & Services,G57002/D200008,Technical Services Depot,Payments to Contractors External
Ashfield District Council,37UB,AGS Tech Ltd,V0991642,29/03/2022,50,R & B Transformation 2,Supplies & Services,G57002/D200008,Technical Services Depot,Payments to Contractors External
Ashfield District Council,37UB,AGS Tech Ltd,V0991643,29/03/2022,144.2,R & B Transformation 2,Supplies & Services,G57002/D200008,Technical Services Depot,Payments to Contractors External
Ashfield District Council,37UB,AGS Tech Ltd,V0991644,29/03/2022,99.82,R & B Transformation 2,Supplies & Services,G57002/D200008,Technical Services Depot,Payments to Contractors External
Ashfield District Council,37UB,AGS Tech Ltd,V0991645,29/03/2022,150,R & B Transformation 2,Supplies & Services,G57002/D200008,Technical Services Depot,Payments to Contractors External
Ashfield District Council,37UB,AGS Tech Ltd,V0991646,29/03/2022,50,R & B Transformation 2,Supplies & Services,G57002/D200008,Technical Services Depot,Payments to Contractors External
Ashfield District Council,37UB,AGS Tech Ltd,V0991647,29/03/2022,50,R & B Transformation 2,Supplies & Services,G57002/D200008,Technical Services Depot,Payments to Contractors External
Ashfield District Council,37UB,AGS Tech Ltd,V0991648,29/03/2022,50,R & B Transformation 2,Supplies & Services,G57002/D200008,Technical Services Depot,Payments to Contractors External
Ashfield District Council,37UB,AGS Tech Ltd,V0991649,29/03/2022,50,R & B Transformation 2,Supplies & Services,G57002/D200008,Technical Services Depot,Payments to Contractors External
Ashfield District Council,37UB,AGS Tech Ltd,V0991755,29/03/2022,131.9,R & B Transformation 2,Supplies & Services,G57002/D200008,Technical Services Depot,Payments to Contractors External
Ashfield District Council,37UB,AGS Tech Ltd,V0991756,29/03/2022,50,R & B Transformation 2,Supplies & Services,G57002/D200008,Technical Services Depot,Payments to Contractors External
Ashfield District Council,37UB,AKW Medi-Care Limited,V0990677,14/03/2022,15,R & B Transformation 2,Supplies & Services,G57000/D001004,Technical Services Depot,Chemicals and Materials Purchase
Ashfield District Council,37UB,Alfred Bagnall & Sons (East Midlands) Ltd,V0991057,22/03/2022,3497.6,R & B Transformation 2,Supplies & Services,G57002/D200008,Technical Services Depot,Payments to Contractors External
Ashfield District Council,37UB,Alfred Bagnall & Sons (East Midlands) Ltd,V0991816,29/03/2022,5937.5,R & B Transformation 2,Supplies & Services,G57002/D200008,Technical Services Depot,Payments to Contractors External
Ashfield District Council,37UB,Alfred Bagnall & Sons (East Midlands) Ltd,V0991817,29/03/2022,6246.25,R & B Transformation 2,Supplies & Services,G57002/D200008,Technical Services Depot,Payments to Contractors External
Ashfield District Council,37UB,B & J Carpets Limited,V0991076,22/03/2022,6.25,R & B Transformation 2,Supplies & Services,G57000/D001004,Technical Services Depot,Chemicals and Materials Purchase
Ashfield District Council,37UB,B & J Carpets Limited,V0991243,22/03/2022,35,R & B Transformation 2,Supplies & Services,G57000/D001004,Technical Services Depot,Chemicals and Materials Purchase
Ashfield District Council,37UB,Bapp Industrial Supplies (Mansfield) Ltd,V0989571,31/03/2022,-75.4,R & B Transformation 2,Supplies & Services,G57000/D001004,Technical Services Depot,Chemicals and Materials Purchase
Ashfield District Council,37UB,Belmont Van & Mower Centre Ltd,V0990221,07/03/2022,50.99,R & B Transformation 2,Supplies & Services,G57000/D001004,Technical Services Depot,Chemicals and Materials Purchase
Ashfield District Council,37UB,Brays Pipelines Limited,V0990177,07/03/2022,350,R & B Transformation 2,Supplies & Services,G57002/D200008,Technical Services Depot,Payments to Contractors External
Ashfield District Council,37UB,Byron Glass Co Ltd,V0991077,22/03/2022,34,R & B Transformation 2,Supplies & Services,G57000/D001004,Technical Services Depot,Chemicals and Materials Purchase
Ashfield District Council,37UB,Byron Glass Co Ltd,V0991078,22/03/2022,12,R & B Transformation 2,Supplies & Services,G57000/D001004,Technical Services Depot,Chemicals and Materials Purchase
Ashfield District Council,37UB,Byron Glass Co Ltd,V0991078,22/03/2022,27.6,R & B Transformation 2,Supplies & Services,G57000/D001004,Technical Services Depot,Chemicals and Materials Purchase
Ashfield District Council,37UB,Byron Glass Co Ltd,V0991079,22/03/2022,31.05,R & B Transformation 2,Supplies & Services,G57000/D001004,Technical Services Depot,Chemicals and Materials Purchase
Ashfield District Council,37UB,Byron Glass Co Ltd,V0991080,22/03/2022,14.63,R & B Transformation 2,Supplies & Services,G57000/D001004,Technical Services Depot,Chemicals and Materials Purchase
Ashfield District Council,37UB,Byron Glass Co Ltd,V0991080,22/03/2022,20,R & B Transformation 2,Supplies & Services,G57000/D001004,Technical Services Depot,Chemicals and Materials Purchase
Ashfield District Council,37UB,Byron Glass Co Ltd,V0991080,22/03/2022,20,R & B Transformation 2,Supplies & Services,G57000/D001004,Technical Services Depot,Chemicals and Materials Purchase
Ashfield District Council,37UB,Byron Glass Co Ltd,V0991081,22/03/2022,36.8,R & B Transformation 2,Supplies & Services,G57000/D001004,Technical Services Depot,Chemicals and Materials Purchase
Ashfield District Council,37UB,Byron Glass Co Ltd,V0991082,22/03/2022,45.65,R & B Transformation 2,Supplies & Services,G57000/D001004,Technical Services Depot,Chemicals and Materials Purchase
Ashfield District Council,37UB,Byron Glass Co Ltd,V0991083,22/03/2022,79.03,R & B Transformation 2,Supplies & Services,G57000/D001004,Technical Services Depot,Chemicals and Materials Purchase
Ashfield District Council,37UB,Byron Glass Co Ltd,V0991084,22/03/2022,14,R & B Transformation 2,Supplies & Services,G57000/D001004,Technical Services Depot,Chemicals and Materials Purchase
Ashfield District Council,37UB,Byron Glass Co Ltd,V0991085,22/03/2022,21.94,R & B Transformation 2,Supplies & Services,G57000/D001004,Technical Services Depot,Chemicals and Materials Purchase
Ashfield District Council,37UB,Byron Glass Co Ltd,V0991086,22/03/2022,25.09,R & B Transformation 2,Supplies & Services,G57000/D001004,Technical Services Depot,Chemicals and Materials Purchase
Ashfield District Council,37UB,Byron Glass Co Ltd,V0991087,22/03/2022,20.89,R & B Transformation 2,Supplies & Services,G57000/D001004,Technical Services Depot,Chemicals and Materials Purchase
Ashfield District Council,37UB,Byron Glass Co Ltd,V0991088,22/03/2022,25.3,R & B Transformation 2,Supplies & Services,G57000/D001004,Technical Services Depot,Chemicals and Materials Purchase
Ashfield District Council,37UB,Byron Glass Co Ltd,V0991089,22/03/2022,99.48,R & B Transformation 2,Supplies & Services,G57000/D001004,Technical Services Depot,Chemicals and Materials Purchase
Ashfield District Council,37UB,Byron Glass Co Ltd,V0991090,22/03/2022,31.05,R & B Transformation 2,Supplies & Services,G57000/D001004,Technical Services Depot,Chemicals and Materials Purchase
Ashfield District Council,37UB,Byron Glass Co Ltd,V0991091,22/03/2022,27.93,R & B Transformation 2,Supplies & Services,G57000/D001004,Technical Services Depot,Chemicals and Materials Purchase
Ashfield District Council,37UB,Byron Glass Co Ltd,V0991092,22/03/2022,28.66,R & B Transformation 2,Supplies & Services,G57000/D001004,Technical Services Depot,Chemicals and Materials Purchase
Ashfield District Council,37UB,Byron Glass Co Ltd,V0991093,22/03/2022,302.04,R & B Transformation 2,Supplies & Services,G57000/D001004,Technical Services Depot,Chemicals and Materials Purchase
Ashfield District Council,37UB,Byron Glass Co Ltd,V0991094,22/03/2022,12.28,R & B Transformation 2,Supplies & Services,G57000/D001004,Technical Services Depot,Chemicals and Materials Purchase
Ashfield District Council,37UB,Byron Glass Co Ltd,V0991095,22/03/2022,23.25,R & B Transformation 2,Supplies & Services,G57000/D001004,Technical Services Depot,Chemicals and Materials Purchase
Ashfield District Council,37UB,Byron Glass Co Ltd,V0991598,29/03/2022,16.2,R & B Transformation 2,Supplies & Services,G57000/D001004,Technical Services Depot,Chemicals and Materials Purchase
Ashfield District Council,37UB,Byron Glass Co Ltd,V0991881,29/03/2022,14.38,R & B Transformation 2,Supplies & Services,G57000/D001004,Technical Services Depot,Chemicals and Materials Purchase
Ashfield District Council,37UB,Byron Glass Co Ltd,V0991882,29/03/2022,14.85,R & B Transformation 2,Supplies & Services,G57000/D001004,Technical Services Depot,Chemicals and Materials Purchase
Ashfield District Council,37UB,Byron Glass Co Ltd,V0991883,29/03/2022,27.6,R & B Transformation 2,Supplies & Services,G57000/D001004,Technical Services Depot,Chemicals and Materials Purchase
Ashfield District Council,37UB,Candor Care Ltd,V0990170,07/03/2022,1595,R & B Transformation 2,Supplies & Services,G57002/D200008,Technical Services Depot,Payments to Contractors External
Ashfield District Council,37UB,Carlton Design & Fabrication,V0990155,07/03/2022,1672.25,R & B Transformation 2,Supplies & Services,G57002/D200008,Technical Services Depot,Payments to Contractors External
Ashfield District Council,37UB,Cash & Carry Windows Ltd,V0989574,07/03/2022,97,R & B Transformation 2,Supplies & Services,G57002/D200008,Technical Services Depot,Payments to Contractors External
Ashfield District Council,37UB,Cash & Carry Windows Ltd,V0990509,14/03/2022,1300,R & B Transformation 2,Supplies & Services,G57002/D200008,Technical Services Depot,Payments to Contractors External
Ashfield District Council,37UB,Cash & Carry Windows Ltd,V0991688,29/03/2022,10,R & B Transformation 2,Supplies & Services,G57000/D001004,Technical Services Depot,Chemicals and Materials Purchase
Ashfield District Council,37UB,City Electrical Factors,V0991884,29/03/2022,19.95,R & B Transformation 2,Supplies & Services,G57000/D001004,Technical Services Depot,Chemicals and Materials Purchase
Ashfield District Council,37UB,City Electrical Factors,V0991884,29/03/2022,10.98,R & B Transformation 2,Supplies & Services,G57000/D001004,Technical Services Depot,Chemicals and Materials Purchase
Ashfield District Council,37UB,City Electrical Factors,V0991884,29/03/2022,3.95,R & B Transformation 2,Supplies & Services,G57000/D001004,Technical Services Depot,Chemicals and Materials Purchase
Ashfield District Council,37UB,City Electrical Factors,V0991884,29/03/2022,3,R & B Transformation 2,Supplies & Services,G57000/D001004,Technical Services Depot,Chemicals and Materials Purchase
Ashfield District Council,37UB,City Electrical Factors,V0991884,29/03/2022,1.05,R & B Transformation 2,Supplies & Services,G57000/D001004,Technical Services Depot,Chemicals and Materials Purchase
Ashfield District Council,37UB,City Electrical Factors,V0991884,29/03/2022,9.7,R & B Transformation 2,Supplies & Services,G57000/D001004,Technical Services Depot,Chemicals and Materials Purchase
Ashfield District Council,37UB,City Electrical Factors,V0991884,29/03/2022,3.24,R & B Transformation 2,Supplies & Services,G57000/D001004,Technical Services Depot,Chemicals and Materials Purchase
Ashfield District Council,37UB,City Electrical Factors,V0991884,29/03/2022,20.28,R & B Transformation 2,Supplies & Services,G57000/D001004,Technical Services Depot,Chemicals and Materials Purchase
Ashfield District Council,37UB,City Electrical Factors,V0991884,29/03/2022,4.95,R & B Transformation 2,Supplies & Services,G57000/D001004,Technical Services Depot,Chemicals and Materials Purchase
Ashfield District Council,37UB,City Electrical Factors,V0991884,29/03/2022,5.75,R & B Transformation 2,Supplies & Services,G57000/D001004,Technical Services Depot,Chemicals and Materials Purchase
Ashfield District Council,37UB,City Electrical Factors,V0991885,29/03/2022,279,R & B Transformation 2,Employee Expenses,G57000/A200024,Technical Services Depot,Tool Allowance
Ashfield District Council,37UB,City Plumbing Supplies Holdings Ltd,V0991138,22/03/2022,29.18,R & B Transformation 2,Supplies & Services,G57000/D001004,Technical Services Depot,Chemicals and Materials Purchase
Ashfield District Council,37UB,City Plumbing Supplies Holdings Ltd,V0991140,22/03/2022,68.67,R & B Transformation 2,Supplies & Services,G57000/D001004,Technical Services Depot,Chemicals and Materials Purchase
Ashfield District Council,37UB,City Plumbing Supplies Holdings Ltd,V0991920,29/03/2022,61.71,R & B Transformation 2,Supplies & Services,G57000/D001004,Technical Services Depot,Chemicals and Materials Purchase
Ashfield District Council,37UB,Clofield Limited,V0991864,29/03/2022,115.62,R & B Transformation 2,Supplies & Services,G57002/D200008,Technical Services Depot,Payments to Contractors External
Ashfield District Council,37UB,Closomat Ltd,V0989610,07/03/2022,515,R & B Transformation 2,Supplies & Services,G57002/D200008,Technical Services Depot,Payments to Contractors External
Ashfield District Council,37UB,Cromwell Group (Holdings) Ltd,V0991886,29/03/2022,77.49,R & B Transformation 2,Supplies & Services,G57000/D001004,Technical Services Depot,Chemicals and Materials Purchase
Ashfield District Council,37UB,Crown Paints Limited,V0990653,14/03/2022,27.42,R & B Transformation 2,Supplies & Services,G57000/D001004,Technical Services Depot,Chemicals and Materials Purchase
Ashfield District Council,37UB,Crown Paints Limited,V0990685,14/03/2022,2.28,R & B Transformation 2,Supplies & Services,G57000/D001004,Technical Services Depot,Chemicals and Materials Purchase
Ashfield District Council,37UB,Crown Paints Limited,V0990685,14/03/2022,45.31,R & B Transformation 2,Supplies & Services,G57000/D001004,Technical Services Depot,Chemicals and Materials Purchase
Ashfield District Council,37UB,Crown Paints Limited,V0991096,22/03/2022,13.78,R & B Transformation 2,Supplies & Services,G57000/D001004,Technical Services Depot,Chemicals and Materials Purchase
Ashfield District Council,37UB,Crown Paints Limited,V0991096,22/03/2022,13.78,R & B Transformation 2,Supplies & Services,G57000/D001004,Technical Services Depot,Chemicals and Materials Purchase
Ashfield District Council,37UB,Crystal Electronics Ltd,V0989586,07/03/2022,93.38,R & B Transformation 2,Supplies & Services,G57002/D200008,Technical Services Depot,Payments to Contractors External
Ashfield District Council,37UB,Crystal Electronics Ltd,V0991055,22/03/2022,172.01,R & B Transformation 2,Supplies & Services,G57002/D200008,Technical Services Depot,Payments to Contractors External
Ashfield District Council,37UB,Crystal Electronics Ltd,V0991056,22/03/2022,69.34,R & B Transformation 2,Supplies & Services,G57002/D200008,Technical Services Depot,Payments to Contractors External
Ashfield District Council,37UB,Crystal Electronics Ltd,V0991305,22/03/2022,48.38,R & B Transformation 2,Supplies & Services,G57002/D200008,Technical Services Depot,Payments to Contractors External
Ashfield District Council,37UB,Daisy Telecoms Ltd,V0990336,17/03/2022,18.38,R & B Transformation 2,Supplies & Services,G57000/D301003,Technical Services Depot,Mobiles
Ashfield District Council,37UB,Dalrod UK Ltd,V0989589,07/03/2022,203.96,R & B Transformation 2,Supplies & Services,G57002/D200008,Technical Services Depot,Payments to Contractors External
Ashfield District Council,37UB,Dalrod UK Ltd,V0989590,07/03/2022,152.91,R & B Transformation 2,Supplies & Services,G57002/D200008,Technical Services Depot,Payments to Contractors External
Ashfield District Council,37UB,Dalrod UK Ltd,V0989591,07/03/2022,91.88,R & B Transformation 2,Supplies & Services,G57002/D200008,Technical Services Depot,Payments to Contractors External
Ashfield District Council,37UB,Dalrod UK Ltd,V0989592,07/03/2022,116.86,R & B Transformation 2,Supplies & Services,G57002/D200008,Technical Services Depot,Payments to Contractors External
Ashfield District Council,37UB,Dalrod UK Ltd,V0989593,07/03/2022,219.26,R & B Transformation 2,Supplies & Services,G57002/D200008,Technical Services Depot,Payments to Contractors External
Ashfield District Council,37UB,Dalrod UK Ltd,V0989594,07/03/2022,91.88,R & B Transformation 2,Supplies & Services,G57002/D200008,Technical Services Depot,Payments to Contractors External
Ashfield District Council,37UB,Dalrod UK Ltd,V0989595,07/03/2022,91.88,R & B Transformation 2,Supplies & Services,G57002/D200008,Technical Services Depot,Payments to Contractors External
Ashfield District Council,37UB,Dalrod UK Ltd,V0989596,07/03/2022,132.47,R & B Transformation 2,Supplies & Services,G57002/D200008,Technical Services Depot,Payments to Contractors External
Ashfield District Council,37UB,Dalrod UK Ltd,V0989597,07/03/2022,1079.13,R & B Transformation 2,Supplies & Services,G57002/D200008,Technical Services Depot,Payments to Contractors External
Ashfield District Council,37UB,Dalrod UK Ltd,V0989598,07/03/2022,132.7,R & B Transformation 2,Supplies & Services,G57002/D200008,Technical Services Depot,Payments to Contractors External
Ashfield District Council,37UB,Dalrod UK Ltd,V0989599,07/03/2022,132.7,R & B Transformation 2,Supplies & Services,G57002/D200008,Technical Services Depot,Payments to Contractors External
Ashfield District Council,37UB,Dalrod UK Ltd,V0989600,07/03/2022,66.35,R & B Transformation 2,Supplies & Services,G57002/D200008,Technical Services Depot,Payments to Contractors External
Ashfield District Council,37UB,Dalrod UK Ltd,V0989601,07/03/2022,66.35,R & B Transformation 2,Supplies & Services,G57002/D200008,Technical Services Depot,Payments to Contractors External
Ashfield District Council,37UB,Dalrod UK Ltd,V0989602,07/03/2022,132.7,R & B Transformation 2,Supplies & Services,G57002/D200008,Technical Services Depot,Payments to Contractors External
Ashfield District Council,37UB,Dalrod UK Ltd,V0989603,07/03/2022,66.35,R & B Transformation 2,Supplies & Services,G57002/D200008,Technical Services Depot,Payments to Contractors External
Ashfield District Council,37UB,Dalrod UK Ltd,V0989604,07/03/2022,132.7,R & B Transformation 2,Supplies & Services,G57002/D200008,Technical Services Depot,Payments to Contractors External
Ashfield District Council,37UB,Dalrod UK Ltd,V0989605,07/03/2022,425,R & B Transformation 2,Supplies & Services,G57002/D200008,Technical Services Depot,Payments to Contractors External
Ashfield District Council,37UB,Dalrod UK Ltd,V0989606,07/03/2022,66.35,R & B Transformation 2,Supplies & Services,G57002/D200008,Technical Services Depot,Payments to Contractors External
Ashfield District Council,37UB,Dalrod UK Ltd,V0989607,07/03/2022,66.35,R & B Transformation 2,Supplies & Services,G57002/D200008,Technical Services Depot,Payments to Contractors External
Ashfield District Council,37UB,Dalrod UK Ltd,V0989608,07/03/2022,66.35,R & B Transformation 2,Supplies & Services,G57002/D200008,Technical Services Depot,Payments to Contractors External
Ashfield District Council,37UB,Dalrod UK Ltd,V0989609,07/03/2022,66.35,R & B Transformation 2,Supplies & Services,G57002/D200008,Technical Services Depot,Payments to Contractors External
Ashfield District Council,37UB,Dalrod UK Ltd,V0990157,07/03/2022,85.64,R & B Transformation 2,Supplies & Services,G57002/D200008,Technical Services Depot,Payments to Contractors External
Ashfield District Council,37UB,Dalrod UK Ltd,V0990159,07/03/2022,85.64,R & B Transformation 2,Supplies & Services,G57002/D200008,Technical Services Depot,Payments to Contractors External
Ashfield District Council,37UB,Dalrod UK Ltd,V0990162,07/03/2022,85.64,R & B Transformation 2,Supplies & Services,G57002/D200008,Technical Services Depot,Payments to Contractors External
Ashfield District Council,37UB,Dalrod UK Ltd,V0990166,07/03/2022,647.91,R & B Transformation 2,Supplies & Services,G57002/D200008,Technical Services Depot,Payments to Contractors External
Ashfield District Council,37UB,Dalrod UK Ltd,V0990167,07/03/2022,152.91,R & B Transformation 2,Supplies & Services,G57002/D200008,Technical Services Depot,Payments to Contractors External
Ashfield District Council,37UB,Dalrod UK Ltd,V0991059,22/03/2022,91.88,R & B Transformation 2,Supplies & Services,G57002/D200008,Technical Services Depot,Payments to Contractors External
Ashfield District Council,37UB,Dalrod UK Ltd,V0991060,22/03/2022,311.14,R & B Transformation 2,Supplies & Services,G57002/D200008,Technical Services Depot,Payments to Contractors External
Ashfield District Council,37UB,Dalrod UK Ltd,V0991061,22/03/2022,148.08,R & B Transformation 2,Supplies & Services,G57002/D200008,Technical Services Depot,Payments to Contractors External
Ashfield District Council,37UB,Dalrod UK Ltd,V0991062,22/03/2022,116.86,R & B Transformation 2,Supplies & Services,G57002/D200008,Technical Services Depot,Payments to Contractors External
Ashfield District Council,37UB,Dalrod UK Ltd,V0991063,22/03/2022,91.88,R & B Transformation 2,Supplies & Services,G57002/D200008,Technical Services Depot,Payments to Contractors External
Ashfield District Council,37UB,Dalrod UK Ltd,V0991064,22/03/2022,91.88,R & B Transformation 2,Supplies & Services,G57002/D200008,Technical Services Depot,Payments to Contractors External
Ashfield District Council,37UB,Dalrod UK Ltd,V0991065,22/03/2022,66.35,R & B Transformation 2,Supplies & Services,G57002/D200008,Technical Services Depot,Payments to Contractors External
Ashfield District Council,37UB,Dalrod UK Ltd,V0991066,22/03/2022,1098.69,R & B Transformation 2,Supplies & Services,G57002/D200008,Technical Services Depot,Payments to Contractors External
Ashfield District Council,37UB,Dalrod UK Ltd,V0991067,22/03/2022,148.08,R & B Transformation 2,Supplies & Services,G57002/D200008,Technical Services Depot,Payments to Contractors External
Ashfield District Council,37UB,Dalrod UK Ltd,V0991068,22/03/2022,116.86,R & B Transformation 2,Supplies & Services,G57002/D200008,Technical Services Depot,Payments to Contractors External
Ashfield District Council,37UB,Dalrod UK Ltd,V0991069,22/03/2022,104.65,R & B Transformation 2,Supplies & Services,G57002/D200008,Technical Services Depot,Payments to Contractors External
Ashfield District Council,37UB,Dalrod UK Ltd,V0991070,22/03/2022,132.7,R & B Transformation 2,Supplies & Services,G57002/D200008,Technical Services Depot,Payments to Contractors External
Ashfield District Council,37UB,Dalrod UK Ltd,V0991071,22/03/2022,104.65,R & B Transformation 2,Supplies & Services,G57002/D200008,Technical Services Depot,Payments to Contractors External
Ashfield District Council,37UB,Dalrod UK Ltd,V0991072,22/03/2022,91.88,R & B Transformation 2,Supplies & Services,G57002/D200008,Technical Services Depot,Payments to Contractors External
Ashfield District Council,37UB,Dalrod UK Ltd,V0991073,22/03/2022,104.65,R & B Transformation 2,Supplies & Services,G57002/D200008,Technical Services Depot,Payments to Contractors External
Ashfield District Council,37UB,Dalrod UK Ltd,V0991281,22/03/2022,152.91,R & B Transformation 2,Supplies & Services,G57002/D200008,Technical Services Depot,Payments to Contractors External
Ashfield District Council,37UB,Dalrod UK Ltd,V0991600,29/03/2022,202.49,R & B Transformation 2,Supplies & Services,G57002/D200008,Technical Services Depot,Payments to Contractors External
Ashfield District Council,37UB,Dalrod UK Ltd,V0991601,29/03/2022,66.35,R & B Transformation 2,Supplies & Services,G57002/D200008,Technical Services Depot,Payments to Contractors External
Ashfield District Council,37UB,Dalrod UK Ltd,V0991602,29/03/2022,152.91,R & B Transformation 2,Supplies & Services,G57002/D200008,Technical Services Depot,Payments to Contractors External
Ashfield District Council,37UB,Dalrod UK Ltd,V0991603,29/03/2022,66.35,R & B Transformation 2,Supplies & Services,G57002/D200008,Technical Services Depot,Payments to Contractors External
Ashfield District Council,37UB,Dalrod UK Ltd,V0991604,29/03/2022,117.41,R & B Transformation 2,Supplies & Services,G57002/D200008,Technical Services Depot,Payments to Contractors External
Ashfield District Council,37UB,Dalrod UK Ltd,V0991605,29/03/2022,91.88,R & B Transformation 2,Supplies & Services,G57002/D200008,Technical Services Depot,Payments to Contractors External
Ashfield District Council,37UB,Dalrod UK Ltd,V0991606,29/03/2022,66.35,R & B Transformation 2,Supplies & Services,G57002/D200008,Technical Services Depot,Payments to Contractors External
Ashfield District Council,37UB,Dalrod UK Ltd,V0991607,29/03/2022,117.41,R & B Transformation 2,Supplies & Services,G57002/D200008,Technical Services Depot,Payments to Contractors External
Ashfield District Council,37UB,Dalrod UK Ltd,V0991608,29/03/2022,104.65,R & B Transformation 2,Supplies & Services,G57002/D200008,Technical Services Depot,Payments to Contractors External
Ashfield District Council,37UB,Dalrod UK Ltd,V0991609,29/03/2022,104.65,R & B Transformation 2,Supplies & Services,G57002/D200008,Technical Services Depot,Payments to Contractors External
Ashfield District Council,37UB,Dalrod UK Ltd,V0991610,29/03/2022,79.12,R & B Transformation 2,Supplies & Services,G57002/D200008,Technical Services Depot,Payments to Contractors External
Ashfield District Council,37UB,Dalrod UK Ltd,V0991611,29/03/2022,104.65,R & B Transformation 2,Supplies & Services,G57002/D200008,Technical Services Depot,Payments to Contractors External
Ashfield District Council,37UB,Dalrod UK Ltd,V0991612,29/03/2022,116.86,R & B Transformation 2,Supplies & Services,G57002/D200008,Technical Services Depot,Payments to Contractors External
Ashfield District Council,37UB,Dalrod UK Ltd,V0991613,29/03/2022,104.65,R & B Transformation 2,Supplies & Services,G57002/D200008,Technical Services Depot,Payments to Contractors External
Ashfield District Council,37UB,Dalrod UK Ltd,V0991614,29/03/2022,66.35,R & B Transformation 2,Supplies & Services,G57002/D200008,Technical Services Depot,Payments to Contractors External
Ashfield District Council,37UB,Dalrod UK Ltd,V0991615,29/03/2022,148.08,R & B Transformation 2,Supplies & Services,G57002/D200008,Technical Services Depot,Payments to Contractors External
Ashfield District Council,37UB,Dalrod UK Ltd,V0991616,29/03/2022,116.86,R & B Transformation 2,Supplies & Services,G57002/D200008,Technical Services Depot,Payments to Contractors External
Ashfield District Council,37UB,Dalrod UK Ltd,V0991865,29/03/2022,91.88,R & B Transformation 2,Supplies & Services,G57002/D200008,Technical Services Depot,Payments to Contractors External
Ashfield District Council,37UB,Dalrod UK Ltd,V0991866,29/03/2022,104.65,R & B Transformation 2,Supplies & Services,G57002/D200008,Technical Services Depot,Payments to Contractors External
Ashfield District Council,37UB,Dalrod UK Ltd,V0991867,29/03/2022,104.65,R & B Transformation 2,Supplies & Services,G57002/D200008,Technical Services Depot,Payments to Contractors External
Ashfield District Council,37UB,Dalrod UK Ltd,V0991868,29/03/2022,66.35,R & B Transformation 2,Supplies & Services,G57002/D200008,Technical Services Depot,Payments to Contractors External
Ashfield District Council,37UB,Dalrod UK Ltd,V0991869,29/03/2022,91.88,R & B Transformation 2,Supplies & Services,G57002/D200008,Technical Services Depot,Payments to Contractors External
Ashfield District Council,37UB,Dalrod UK Ltd,V0991870,29/03/2022,116.86,R & B Transformation 2,Supplies & Services,G57002/D200008,Technical Services Depot,Payments to Contractors External
Ashfield District Council,37UB,Dalrod UK Ltd,V0991871,29/03/2022,116.86,R & B Transformation 2,Supplies & Services,G57002/D200008,Technical Services Depot,Payments to Contractors External
Ashfield District Council,37UB,Dalrod UK Ltd,V0991872,29/03/2022,91.88,R & B Transformation 2,Supplies & Services,G57002/D200008,Technical Services Depot,Payments to Contractors External
Ashfield District Council,37UB,Dean Laundry Systems,V0989576,07/03/2022,75,R & B Transformation 2,Supplies & Services,G57002/D200008,Technical Services Depot,Payments to Contractors External
Ashfield District Council,37UB,Deltron Lifts Limited,V0989585,07/03/2022,125.5,R & B Transformation 2,Supplies & Services,G57002/D200008,Technical Services Depot,Payments to Contractors External
Ashfield District Council,37UB,Deltron Lifts Limited,V0990171,07/03/2022,10,R & B Transformation 2,Supplies & Services,G57002/D200008,Technical Services Depot,Payments to Contractors External
Ashfield District Council,37UB,Deltron Lifts Limited,V0990172,07/03/2022,10,R & B Transformation 2,Supplies & Services,G57002/D200008,Technical Services Depot,Payments to Contractors External
Ashfield District Council,37UB,Deltron Lifts Limited,V0990173,07/03/2022,10,R & B Transformation 2,Supplies & Services,G57002/D200008,Technical Services Depot,Payments to Contractors External
Ashfield District Council,37UB,Deltron Lifts Limited,V0990174,07/03/2022,10,R & B Transformation 2,Supplies & Services,G57002/D200008,Technical Services Depot,Payments to Contractors External
Ashfield District Council,37UB,Deltron Lifts Limited,V0990175,07/03/2022,10,R & B Transformation 2,Supplies & Services,G57002/D200008,Technical Services Depot,Payments to Contractors External
Ashfield District Council,37UB,Deltron Lifts Limited,V0990176,07/03/2022,10,R & B Transformation 2,Supplies & Services,G57002/D200008,Technical Services Depot,Payments to Contractors External
Ashfield District Council,37UB,Deltron Lifts Limited,V0990513,14/03/2022,10,R & B Transformation 2,Supplies & Services,G57002/D200008,Technical Services Depot,Payments to Contractors External
Ashfield District Council,37UB,Deltron Lifts Limited,V0990514,14/03/2022,10,R & B Transformation 2,Supplies & Services,G57002/D200008,Technical Services Depot,Payments to Contractors External
Ashfield District Council,37UB,Deltron Lifts Limited,V0990515,14/03/2022,125.5,R & B Transformation 2,Supplies & Services,G57002/D200008,Technical Services Depot,Payments to Contractors External
Ashfield District Council,37UB,Deltron Lifts Limited,V0990516,14/03/2022,120.5,R & B Transformation 2,Supplies & Services,G57002/D200008,Technical Services Depot,Payments to Contractors External
Ashfield District Council,37UB,Deltron Lifts Limited,V0990517,14/03/2022,505.5,R & B Transformation 2,Supplies & Services,G57002/D200008,Technical Services Depot,Payments to Contractors External
Ashfield District Council,37UB,Deltron Lifts Limited,V0991032,22/03/2022,-10,R & B Transformation 2,Supplies & Services,G57002/D200008,Technical Services Depot,Payments to Contractors External
Ashfield District Council,37UB,Deltron Lifts Limited,V0991058,22/03/2022,1450,R & B Transformation 2,Supplies & Services,G57002/D200008,Technical Services Depot,Payments to Contractors External
Ashfield District Council,37UB,Deltron Lifts Limited,V0991294,22/03/2022,10,R & B Transformation 2,Supplies & Services,G57002/D200008,Technical Services Depot,Payments to Contractors External
Ashfield District Council,37UB,Deltron Lifts Limited,V0991295,22/03/2022,10,R & B Transformation 2,Supplies & Services,G57002/D200008,Technical Services Depot,Payments to Contractors External
Ashfield District Council,37UB,Deltron Lifts Limited,V0991296,22/03/2022,10,R & B Transformation 2,Supplies & Services,G57002/D200008,Technical Services Depot,Payments to Contractors External
Ashfield District Council,37UB,Deltron Lifts Limited,V0991297,22/03/2022,10,R & B Transformation 2,Supplies & Services,G57002/D200008,Technical Services Depot,Payments to Contractors External
Ashfield District Council,37UB,Deltron Lifts Limited,V0991298,22/03/2022,10,R & B Transformation 2,Supplies & Services,G57002/D200008,Technical Services Depot,Payments to Contractors External
Ashfield District Council,37UB,Deltron Lifts Limited,V0991299,22/03/2022,10,R & B Transformation 2,Supplies & Services,G57002/D200008,Technical Services Depot,Payments to Contractors External
Ashfield District Council,37UB,Deltron Lifts Limited,V0991300,22/03/2022,10,R & B Transformation 2,Supplies & Services,G57002/D200008,Technical Services Depot,Payments to Contractors External
Ashfield District Council,37UB,Deltron Lifts Limited,V0991301,22/03/2022,667,R & B Transformation 2,Supplies & Services,G57002/D200008,Technical Services Depot,Payments to Contractors External
Ashfield District Council,37UB,Deltron Lifts Limited,V0991302,22/03/2022,45.5,R & B Transformation 2,Supplies & Services,G57002/D200008,Technical Services Depot,Payments to Contractors External
Ashfield District Council,37UB,Deltron Lifts Limited,V0991303,22/03/2022,225.5,R & B Transformation 2,Supplies & Services,G57002/D200008,Technical Services Depot,Payments to Contractors External
Ashfield District Council,37UB,Deltron Lifts Limited,V0991304,22/03/2022,45.5,R & B Transformation 2,Supplies & Services,G57002/D200008,Technical Services Depot,Payments to Contractors External
Ashfield District Council,37UB,Deltron Lifts Limited,V0991821,29/03/2022,45.5,R & B Transformation 2,Supplies & Services,G57002/D200008,Technical Services Depot,Payments to Contractors External
Ashfield District Council,37UB,Excel Cleaning Solutions Ltd,V0990169,07/03/2022,220,R & B Transformation 2,Supplies & Services,G57002/D200008,Technical Services Depot,Payments to Contractors External
Ashfield District Council,37UB,Excel Cleaning Solutions Ltd,V0991819,29/03/2022,60,R & B Transformation 2,Supplies & Services,G57002/D200008,Technical Services Depot,Payments to Contractors External
Ashfield District Council,37UB,Excel Cleaning Solutions Ltd,V0991820,29/03/2022,740,R & B Transformation 2,Supplies & Services,G57002/D200008,Technical Services Depot,Payments to Contractors External
Ashfield District Council,37UB,Grafton Merchanting GB Ltd t/a Jackson Buildbase,V0990201,07/03/2022,20,R & B Transformation 2,Supplies & Services,G57000/D001004,Technical Services Depot,Chemicals and Materials Purchase
Ashfield District Council,37UB,Grafton Merchanting GB Ltd t/a Jackson Buildbase,V0990201,07/03/2022,2,R & B Transformation 2,Supplies & Services,G57000/D001004,Technical Services Depot,Chemicals and Materials Purchase
Ashfield District Council,37UB,Grafton Merchanting GB Ltd t/a Jackson Buildbase,V0990201,07/03/2022,15,R & B Transformation 2,Supplies & Services,G57000/D001004,Technical Services Depot,Chemicals and Materials Purchase
Ashfield District Council,37UB,Grafton Merchanting GB Ltd t/a Jackson Buildbase,V0990201,07/03/2022,124.98,R & B Transformation 2,Supplies & Services,G57000/D001004,Technical Services Depot,Chemicals and Materials Purchase
Ashfield District Council,37UB,Grafton Merchanting GB Ltd t/a Jackson Buildbase,V0990201,07/03/2022,3,R & B Transformation 2,Supplies & Services,G57000/D001004,Technical Services Depot,Chemicals and Materials Purchase
Ashfield District Council,37UB,Grafton Merchanting GB Ltd t/a Jackson Buildbase,V0990214,07/03/2022,35.59,R & B Transformation 2,Supplies & Services,G57000/D001004,Technical Services Depot,Chemicals and Materials Purchase
Ashfield District Council,37UB,Grafton Merchanting GB Ltd t/a Jackson Buildbase,V0990679,14/03/2022,5.95,R & B Transformation 2,Supplies & Services,G57000/D001004,Technical Services Depot,Chemicals and Materials Purchase
Ashfield District Council,37UB,Grafton Merchanting GB Ltd t/a Jackson Buildbase,V0990679,14/03/2022,5.95,R & B Transformation 2,Supplies & Services,G57000/D001004,Technical Services Depot,Chemicals and Materials Purchase
Ashfield District Council,37UB,Grafton Merchanting GB Ltd t/a Jackson Buildbase,V0990754,14/03/2022,9.46,R & B Transformation 2,Supplies & Services,G57000/D001004,Technical Services Depot,Chemicals and Materials Purchase
Ashfield District Council,37UB,Grafton Merchanting GB Ltd t/a Jackson Buildbase,V0990755,14/03/2022,36.9,R & B Transformation 2,Supplies & Services,G57000/D001004,Technical Services Depot,Chemicals and Materials Purchase
Ashfield District Council,37UB,Grafton Merchanting GB Ltd t/a Jackson Buildbase,V0990756,14/03/2022,24.79,R & B Transformation 2,Supplies & Services,G57000/D001004,Technical Services Depot,Chemicals and Materials Purchase
Ashfield District Council,37UB,Grafton Merchanting GB Ltd t/a Jackson Buildbase,V0990756,14/03/2022,21.5,R & B Transformation 2,Supplies & Services,G57000/D001004,Technical Services Depot,Chemicals and Materials Purchase
Ashfield District Council,37UB,Grafton Merchanting GB Ltd t/a Jackson Buildbase,V0990757,14/03/2022,79.68,R & B Transformation 2,Supplies & Services,G57000/D001004,Technical Services Depot,Chemicals and Materials Purchase
Ashfield District Council,37UB,Grafton Merchanting GB Ltd t/a Jackson Buildbase,V0991100,22/03/2022,100.5,R & B Transformation 2,Supplies & Services,G57000/D001004,Technical Services Depot,Chemicals and Materials Purchase
Ashfield District Council,37UB,Grafton Merchanting GB Ltd t/a Jackson Buildbase,V0991100,22/03/2022,103.55,R & B Transformation 2,Supplies & Services,G57000/D001004,Technical Services Depot,Chemicals and Materials Purchase
Ashfield District Council,37UB,Grafton Merchanting GB Ltd t/a Jackson Buildbase,V0991100,22/03/2022,7.75,R & B Transformation 2,Supplies & Services,G57000/D001004,Technical Services Depot,Chemicals and Materials Purchase
Ashfield District Council,37UB,Grafton Merchanting GB Ltd t/a Jackson Buildbase,V0991100,22/03/2022,46,R & B Transformation 2,Supplies & Services,G57000/D001004,Technical Services Depot,Chemicals and Materials Purchase
Ashfield District Council,37UB,Grafton Merchanting GB Ltd t/a Jackson Buildbase,V0991100,22/03/2022,32,R & B Transformation 2,Supplies & Services,G57000/D001004,Technical Services Depot,Chemicals and Materials Purchase
Ashfield District Council,37UB,Grafton Merchanting GB Ltd t/a Jackson Buildbase,V0991100,22/03/2022,27.15,R & B Transformation 2,Supplies & Services,G57000/D001004,Technical Services Depot,Chemicals and Materials Purchase
Ashfield District Council,37UB,Grafton Merchanting GB Ltd t/a Jackson Buildbase,V0991100,22/03/2022,96.69,R & B Transformation 2,Supplies & Services,G57000/D001004,Technical Services Depot,Chemicals and Materials Purchase
Ashfield District Council,37UB,Grafton Merchanting GB Ltd t/a Jackson Buildbase,V0991101,22/03/2022,11.85,R & B Transformation 2,Supplies & Services,G57000/D002004,Technical Services Depot,Equipment Maintenance
Ashfield District Council,37UB,Grafton Merchanting GB Ltd t/a Jackson Buildbase,V0991101,22/03/2022,40,R & B Transformation 2,Supplies & Services,G57000/D001004,Technical Services Depot,Chemicals and Materials Purchase
Ashfield District Council,37UB,Grafton Merchanting GB Ltd t/a Jackson Buildbase,V0991102,22/03/2022,11.64,R & B Transformation 2,Supplies & Services,G57000/D002004,Technical Services Depot,Equipment Maintenance
Ashfield District Council,37UB,Grafton Merchanting GB Ltd t/a Jackson Buildbase,V0991102,22/03/2022,7.3,R & B Transformation 2,Supplies & Services,G57000/D002004,Technical Services Depot,Equipment Maintenance
Ashfield District Council,37UB,Grafton Merchanting GB Ltd t/a Jackson Buildbase,V0991104,22/03/2022,41.65,R & B Transformation 2,Supplies & Services,G57000/D001004,Technical Services Depot,Chemicals and Materials Purchase
Ashfield District Council,37UB,Grafton Merchanting GB Ltd t/a Jackson Buildbase,V0991111,22/03/2022,27,R & B Transformation 2,Supplies & Services,G57000/D001004,Technical Services Depot,Chemicals and Materials Purchase
Ashfield District Council,37UB,Grafton Merchanting GB Ltd t/a Jackson Buildbase,V0991112,22/03/2022,33.37,R & B Transformation 2,Supplies & Services,G57000/D001004,Technical Services Depot,Chemicals and Materials Purchase
Ashfield District Council,37UB,Grafton Merchanting GB Ltd t/a Jackson Buildbase,V0991113,22/03/2022,80,R & B Transformation 2,Supplies & Services,G57000/D001004,Technical Services Depot,Chemicals and Materials Purchase
Ashfield District Council,37UB,Grafton Merchanting GB Ltd t/a Jackson Buildbase,V0991113,22/03/2022,33.15,R & B Transformation 2,Supplies & Services,G57000/D001004,Technical Services Depot,Chemicals and Materials Purchase
Ashfield District Council,37UB,Grafton Merchanting GB Ltd t/a Jackson Buildbase,V0991114,22/03/2022,35.59,R & B Transformation 2,Supplies & Services,G57000/D001004,Technical Services Depot,Chemicals and Materials Purchase
Ashfield District Council,37UB,Grafton Merchanting GB Ltd t/a Jackson Buildbase,V0991118,22/03/2022,53.55,R & B Transformation 2,Supplies & Services,G57000/D001004,Technical Services Depot,Chemicals and Materials Purchase
Ashfield District Council,37UB,Grafton Merchanting GB Ltd t/a Jackson Buildbase,V0991119,22/03/2022,18.1,R & B Transformation 2,Supplies & Services,G57000/D001004,Technical Services Depot,Chemicals and Materials Purchase
Ashfield District Council,37UB,Grafton Merchanting GB Ltd t/a Jackson Buildbase,V0991120,22/03/2022,20.95,R & B Transformation 2,Supplies & Services,G57000/D001004,Technical Services Depot,Chemicals and Materials Purchase
Ashfield District Council,37UB,Grafton Merchanting GB Ltd t/a Jackson Buildbase,V0991121,22/03/2022,33.27,R & B Transformation 2,Supplies & Services,G57000/D001004,Technical Services Depot,Chemicals and Materials Purchase
Ashfield District Council,37UB,Grafton Merchanting GB Ltd t/a Jackson Buildbase,V0991189,22/03/2022,34.5,R & B Transformation 2,Supplies & Services,G57000/D001004,Technical Services Depot,Chemicals and Materials Purchase
Ashfield District Council,37UB,Grafton Merchanting GB Ltd t/a Jackson Buildbase,V0991189,22/03/2022,0,R & B Transformation 2,Supplies & Services,G57000/D001004,Technical Services Depot,Chemicals and Materials Purchase
Ashfield District Council,37UB,Grafton Merchanting GB Ltd t/a Jackson Buildbase,V0991189,22/03/2022,14.35,R & B Transformation 2,Supplies & Services,G57000/D001004,Technical Services Depot,Chemicals and Materials Purchase
Ashfield District Council,37UB,Grafton Merchanting GB Ltd t/a Jackson Buildbase,V0991189,22/03/2022,33.5,R & B Transformation 2,Supplies & Services,G57000/D001004,Technical Services Depot,Chemicals and Materials Purchase
Ashfield District Council,37UB,Grafton Merchanting GB Ltd t/a Jackson Buildbase,V0991189,22/03/2022,16.8,R & B Transformation 2,Supplies & Services,G57000/D001004,Technical Services Depot,Chemicals and Materials Purchase
Ashfield District Council,37UB,Grafton Merchanting GB Ltd t/a Jackson Buildbase,V0991189,22/03/2022,21.9,R & B Transformation 2,Supplies & Services,G57000/D001004,Technical Services Depot,Chemicals and Materials Purchase
Ashfield District Council,37UB,Grafton Merchanting GB Ltd t/a Jackson Buildbase,V0991189,22/03/2022,21.34,R & B Transformation 2,Supplies & Services,G57000/D001004,Technical Services Depot,Chemicals and Materials Purchase
Ashfield District Council,37UB,Grafton Merchanting GB Ltd t/a Jackson Buildbase,V0991190,22/03/2022,51.05,R & B Transformation 2,Supplies & Services,G57000/D001004,Technical Services Depot,Chemicals and Materials Purchase
Ashfield District Council,37UB,Grafton Merchanting GB Ltd t/a Jackson Buildbase,V0991190,22/03/2022,83.49,R & B Transformation 2,Supplies & Services,G57000/D001004,Technical Services Depot,Chemicals and Materials Purchase
Ashfield District Council,37UB,Grafton Merchanting GB Ltd t/a Jackson Buildbase,V0991199,22/03/2022,18.5,R & B Transformation 2,Supplies & Services,G57000/D001004,Technical Services Depot,Chemicals and Materials Purchase
Ashfield District Council,37UB,Grafton Merchanting GB Ltd t/a Jackson Buildbase,V0991693,29/03/2022,26,R & B Transformation 2,Supplies & Services,G57000/D001004,Technical Services Depot,Chemicals and Materials Purchase
Ashfield District Council,37UB,Grafton Merchanting GB Ltd t/a Jackson Buildbase,V0991711,29/03/2022,38.01,R & B Transformation 2,Supplies & Services,G57000/D001004,Technical Services Depot,Chemicals and Materials Purchase
Ashfield District Council,37UB,Grafton Merchanting GB Ltd t/a Jackson Buildbase,V0991712,29/03/2022,29.4,R & B Transformation 2,Supplies & Services,G57000/D001004,Technical Services Depot,Chemicals and Materials Purchase
Ashfield District Council,37UB,Grafton Merchanting GB Ltd t/a Jackson Buildbase,V0991811,29/03/2022,99.16,R & B Transformation 2,Supplies & Services,G57000/D001004,Technical Services Depot,Chemicals and Materials Purchase
Ashfield District Council,37UB,Grafton Merchanting GB Ltd t/a Jackson Buildbase,V0991901,29/03/2022,20.96,R & B Transformation 2,Supplies & Services,G57000/D001004,Technical Services Depot,Chemicals and Materials Purchase
Ashfield District Council,37UB,Grafton Merchanting GB Ltd t/a Jackson Buildbase,V0991901,29/03/2022,42.85,R & B Transformation 2,Supplies & Services,G57000/D001004,Technical Services Depot,Chemicals and Materials Purchase
Ashfield District Council,37UB,Grafton Merchanting GB Ltd t/a Jackson Buildbase,V0991902,29/03/2022,9.8,R & B Transformation 2,Supplies & Services,G57000/D001004,Technical Services Depot,Chemicals and Materials Purchase
Ashfield District Council,37UB,Grafton Merchanting GB Ltd t/a Jackson Buildbase,V0991903,29/03/2022,8.98,R & B Transformation 2,Supplies & Services,G57000/D001004,Technical Services Depot,Chemicals and Materials Purchase
Ashfield District Council,37UB,Grafton Merchanting GB Ltd t/a Jackson Buildbase,V0991910,29/03/2022,8.9,R & B Transformation 2,Supplies & Services,G57000/D001004,Technical Services Depot,Chemicals and Materials Purchase
Ashfield District Council,37UB,Hardall International Ltd,V0990168,07/03/2022,395,R & B Transformation 2,Supplies & Services,G57002/D200008,Technical Services Depot,Payments to Contractors External
Ashfield District Council,37UB,Hardall International Ltd,V0991939,29/03/2022,495,R & B Transformation 2,Supplies & Services,G57002/D200008,Technical Services Depot,Payments to Contractors External
Ashfield District Council,37UB,Hays,V0991099,22/03/2022,525,R & B Transformation 2,Employee Expenses,G57000/A200004,Technical Services Depot,Agency Staff
Ashfield District Council,37UB,Hays,V0991227,22/03/2022,787.5,R & B Transformation 2,Employee Expenses,G57000/A200004,Technical Services Depot,Agency Staff
Ashfield District Council,37UB,High Park Industries Ltd,V0991234,22/03/2022,66.67,R & B Transformation 2,Supplies & Services,G57000/D001004,Technical Services Depot,Chemicals and Materials Purchase
Ashfield District Council,37UB,High Park Industries Ltd,V0991234,22/03/2022,21.95,R & B Transformation 2,Supplies & Services,G57000/D001004,Technical Services Depot,Chemicals and Materials Purchase
Ashfield District Council,37UB,High Park Industries Ltd,V0991235,22/03/2022,20,R & B Transformation 2,Supplies & Services,G57000/D001004,Technical Services Depot,Chemicals and Materials Purchase
Ashfield District Council,37UB,J Tomlinson Ltd,V0989573,07/03/2022,65.26,R & B Transformation 2,Supplies & Services,G57002/D200008,Technical Services Depot,Payments to Contractors External
Ashfield District Council,37UB,J Tomlinson Ltd,V0989616,07/03/2022,65.26,R & B Transformation 2,Supplies & Services,G57002/D200008,Technical Services Depot,Payments to Contractors External
Ashfield District Council,37UB,J Tomlinson Ltd,V0989617,07/03/2022,65.26,R & B Transformation 2,Supplies & Services,G57002/D200008,Technical Services Depot,Payments to Contractors External
Ashfield District Council,37UB,J Tomlinson Ltd,V0989618,07/03/2022,65.26,R & B Transformation 2,Supplies & Services,G57002/D200008,Technical Services Depot,Payments to Contractors External
Ashfield District Council,37UB,J Tomlinson Ltd,V0989619,07/03/2022,65.26,R & B Transformation 2,Supplies & Services,G57002/D200008,Technical Services Depot,Payments to Contractors External
Ashfield District Council,37UB,J Tomlinson Ltd,V0989620,07/03/2022,65.26,R & B Transformation 2,Supplies & Services,G57002/D200008,Technical Services Depot,Payments to Contractors External
Ashfield District Council,37UB,J Tomlinson Ltd,V0989621,07/03/2022,65.26,R & B Transformation 2,Supplies & Services,G57002/D200008,Technical Services Depot,Payments to Contractors External
Ashfield District Council,37UB,J Tomlinson Ltd,V0989622,07/03/2022,65.26,R & B Transformation 2,Supplies & Services,G57002/D200008,Technical Services Depot,Payments to Contractors External
Ashfield District Council,37UB,J Tomlinson Ltd,V0989623,07/03/2022,65.26,R & B Transformation 2,Supplies & Services,G57002/D200008,Technical Services Depot,Payments to Contractors External
Ashfield District Council,37UB,J Tomlinson Ltd,V0989624,07/03/2022,65.26,R & B Transformation 2,Supplies & Services,G57002/D200008,Technical Services Depot,Payments to Contractors External
Ashfield District Council,37UB,J Tomlinson Ltd,V0989625,07/03/2022,65.26,R & B Transformation 2,Supplies & Services,G57002/D200008,Technical Services Depot,Payments to Contractors External
Ashfield District Council,37UB,J Tomlinson Ltd,V0989626,07/03/2022,65.26,R & B Transformation 2,Supplies & Services,G57002/D200008,Technical Services Depot,Payments to Contractors External
Ashfield District Council,37UB,J Tomlinson Ltd,V0989627,07/03/2022,65.26,R & B Transformation 2,Supplies & Services,G57002/D200008,Technical Services Depot,Payments to Contractors External
Ashfield District Council,37UB,J Tomlinson Ltd,V0989628,07/03/2022,65.26,R & B Transformation 2,Supplies & Services,G57002/D200008,Technical Services Depot,Payments to Contractors External
Ashfield District Council,37UB,J Tomlinson Ltd,V0989629,07/03/2022,65.26,R & B Transformation 2,Supplies & Services,G57002/D200008,Technical Services Depot,Payments to Contractors External
Ashfield District Council,37UB,J Tomlinson Ltd,V0989630,07/03/2022,65.26,R & B Transformation 2,Supplies & Services,G57002/D200008,Technical Services Depot,Payments to Contractors External
Ashfield District Council,37UB,J Tomlinson Ltd,V0989631,07/03/2022,65.26,R & B Transformation 2,Supplies & Services,G57002/D200008,Technical Services Depot,Payments to Contractors External
Ashfield District Council,37UB,J Tomlinson Ltd,V0989632,07/03/2022,65.26,R & B Transformation 2,Supplies & Services,G57002/D200008,Technical Services Depot,Payments to Contractors External
Ashfield District Council,37UB,J Tomlinson Ltd,V0989633,07/03/2022,65.26,R & B Transformation 2,Supplies & Services,G57002/D200008,Technical Services Depot,Payments to Contractors External
Ashfield District Council,37UB,J Tomlinson Ltd,V0989634,07/03/2022,65.26,R & B Transformation 2,Supplies & Services,G57002/D200008,Technical Services Depot,Payments to Contractors External
Ashfield District Council,37UB,J Tomlinson Ltd,V0989635,07/03/2022,65.26,R & B Transformation 2,Supplies & Services,G57002/D200008,Technical Services Depot,Payments to Contractors External
Ashfield District Council,37UB,J Tomlinson Ltd,V0989636,07/03/2022,65.26,R & B Transformation 2,Supplies & Services,G57002/D200008,Technical Services Depot,Payments to Contractors External
Ashfield District Council,37UB,J Tomlinson Ltd,V0989637,07/03/2022,65.26,R & B Transformation 2,Supplies & Services,G57002/D200008,Technical Services Depot,Payments to Contractors External
Ashfield District Council,37UB,J Tomlinson Ltd,V0989638,07/03/2022,65.26,R & B Transformation 2,Supplies & Services,G57002/D200008,Technical Services Depot,Payments to Contractors External
Ashfield District Council,37UB,J Tomlinson Ltd,V0989639,07/03/2022,65.26,R & B Transformation 2,Supplies & Services,G57002/D200008,Technical Services Depot,Payments to Contractors External
Ashfield District Council,37UB,J Tomlinson Ltd,V0989640,07/03/2022,65.26,R & B Transformation 2,Supplies & Services,G57002/D200008,Technical Services Depot,Payments to Contractors External
Ashfield District Council,37UB,J Tomlinson Ltd,V0989641,07/03/2022,65.26,R & B Transformation 2,Supplies & Services,G57002/D200008,Technical Services Depot,Payments to Contractors External
Ashfield District Council,37UB,J Tomlinson Ltd,V0989642,07/03/2022,65.26,R & B Transformation 2,Supplies & Services,G57002/D200008,Technical Services Depot,Payments to Contractors External
Ashfield District Council,37UB,J Tomlinson Ltd,V0989643,07/03/2022,65.26,R & B Transformation 2,Supplies & Services,G57002/D200008,Technical Services Depot,Payments to Contractors External
Ashfield District Council,37UB,J Tomlinson Ltd,V0989644,07/03/2022,65.26,R & B Transformation 2,Supplies & Services,G57002/D200008,Technical Services Depot,Payments to Contractors External
Ashfield District Council,37UB,J Tomlinson Ltd,V0989645,07/03/2022,65.26,R & B Transformation 2,Supplies & Services,G57002/D200008,Technical Services Depot,Payments to Contractors External
Ashfield District Council,37UB,J Tomlinson Ltd,V0989646,07/03/2022,65.26,R & B Transformation 2,Supplies & Services,G57002/D200008,Technical Services Depot,Payments to Contractors External
Ashfield District Council,37UB,J Tomlinson Ltd,V0989647,07/03/2022,65.26,R & B Transformation 2,Supplies & Services,G57002/D200008,Technical Services Depot,Payments to Contractors External
Ashfield District Council,37UB,J Tomlinson Ltd,V0989648,07/03/2022,65.26,R & B Transformation 2,Supplies & Services,G57002/D200008,Technical Services Depot,Payments to Contractors External
Ashfield District Council,37UB,J Tomlinson Ltd,V0989649,07/03/2022,65.26,R & B Transformation 2,Supplies & Services,G57002/D200008,Technical Services Depot,Payments to Contractors External
Ashfield District Council,37UB,J Tomlinson Ltd,V0989650,07/03/2022,65.26,R & B Transformation 2,Supplies & Services,G57002/D200008,Technical Services Depot,Payments to Contractors External
Ashfield District Council,37UB,J Tomlinson Ltd,V0989651,07/03/2022,65.26,R & B Transformation 2,Supplies & Services,G57002/D200008,Technical Services Depot,Payments to Contractors External
Ashfield District Council,37UB,J Tomlinson Ltd,V0989652,07/03/2022,65.26,R & B Transformation 2,Supplies & Services,G57002/D200008,Technical Services Depot,Payments to Contractors External
Ashfield District Council,37UB,J Tomlinson Ltd,V0989653,07/03/2022,65.26,R & B Transformation 2,Supplies & Services,G57002/D200008,Technical Services Depot,Payments to Contractors External
Ashfield District Council,37UB,J Tomlinson Ltd,V0989654,07/03/2022,65.26,R & B Transformation 2,Supplies & Services,G57002/D200008,Technical Services Depot,Payments to Contractors External
Ashfield District Council,37UB,J Tomlinson Ltd,V0989655,07/03/2022,65.26,R & B Transformation 2,Supplies & Services,G57002/D200008,Technical Services Depot,Payments to Contractors External
Ashfield District Council,37UB,J Tomlinson Ltd,V0989656,07/03/2022,65.26,R & B Transformation 2,Supplies & Services,G57002/D200008,Technical Services Depot,Payments to Contractors External
Ashfield District Council,37UB,J Tomlinson Ltd,V0989657,07/03/2022,65.26,R & B Transformation 2,Supplies & Services,G57002/D200008,Technical Services Depot,Payments to Contractors External
Ashfield District Council,37UB,J Tomlinson Ltd,V0989658,07/03/2022,65.26,R & B Transformation 2,Supplies & Services,G57002/D200008,Technical Services Depot,Payments to Contractors External
Ashfield District Council,37UB,J Tomlinson Ltd,V0989659,07/03/2022,65.26,R & B Transformation 2,Supplies & Services,G57002/D200008,Technical Services Depot,Payments to Contractors External
Ashfield District Council,37UB,J Tomlinson Ltd,V0989660,07/03/2022,65.26,R & B Transformation 2,Supplies & Services,G57002/D200008,Technical Services Depot,Payments to Contractors External
Ashfield District Council,37UB,J Tomlinson Ltd,V0989661,07/03/2022,65.26,R & B Transformation 2,Supplies & Services,G57002/D200008,Technical Services Depot,Payments to Contractors External
Ashfield District Council,37UB,J Tomlinson Ltd,V0989662,07/03/2022,65.26,R & B Transformation 2,Supplies & Services,G57002/D200008,Technical Services Depot,Payments to Contractors External
Ashfield District Council,37UB,J Tomlinson Ltd,V0989663,07/03/2022,65.26,R & B Transformation 2,Supplies & Services,G57002/D200008,Technical Services Depot,Payments to Contractors External
Ashfield District Council,37UB,J Tomlinson Ltd,V0989664,07/03/2022,65.26,R & B Transformation 2,Supplies & Services,G57002/D200008,Technical Services Depot,Payments to Contractors External
Ashfield District Council,37UB,J Tomlinson Ltd,V0989665,07/03/2022,65.26,R & B Transformation 2,Supplies & Services,G57002/D200008,Technical Services Depot,Payments to Contractors External
Ashfield District Council,37UB,J Tomlinson Ltd,V0989666,07/03/2022,65.26,R & B Transformation 2,Supplies & Services,G57002/D200008,Technical Services Depot,Payments to Contractors External
Ashfield District Council,37UB,J Tomlinson Ltd,V0989667,07/03/2022,65.26,R & B Transformation 2,Supplies & Services,G57002/D200008,Technical Services Depot,Payments to Contractors External
Ashfield District Council,37UB,J Tomlinson Ltd,V0989668,07/03/2022,65.26,R & B Transformation 2,Supplies & Services,G57002/D200008,Technical Services Depot,Payments to Contractors External
Ashfield District Council,37UB,J Tomlinson Ltd,V0989669,07/03/2022,65.26,R & B Transformation 2,Supplies & Services,G57002/D200008,Technical Services Depot,Payments to Contractors External
Ashfield District Council,37UB,J Tomlinson Ltd,V0989670,07/03/2022,65.26,R & B Transformation 2,Supplies & Services,G57002/D200008,Technical Services Depot,Payments to Contractors External
Ashfield District Council,37UB,J Tomlinson Ltd,V0989671,07/03/2022,65.26,R & B Transformation 2,Supplies & Services,G57002/D200008,Technical Services Depot,Payments to Contractors External
Ashfield District Council,37UB,J Tomlinson Ltd,V0989672,07/03/2022,65.26,R & B Transformation 2,Supplies & Services,G57002/D200008,Technical Services Depot,Payments to Contractors External
Ashfield District Council,37UB,J Tomlinson Ltd,V0989673,07/03/2022,65.26,R & B Transformation 2,Supplies & Services,G57002/D200008,Technical Services Depot,Payments to Contractors External
Ashfield District Council,37UB,J Tomlinson Ltd,V0989674,07/03/2022,65.26,R & B Transformation 2,Supplies & Services,G57002/D200008,Technical Services Depot,Payments to Contractors External
Ashfield District Council,37UB,J Tomlinson Ltd,V0989675,07/03/2022,65.26,R & B Transformation 2,Supplies & Services,G57002/D200008,Technical Services Depot,Payments to Contractors External
Ashfield District Council,37UB,J Tomlinson Ltd,V0989676,07/03/2022,65.26,R & B Transformation 2,Supplies & Services,G57002/D200008,Technical Services Depot,Payments to Contractors External
Ashfield District Council,37UB,J Tomlinson Ltd,V0989677,07/03/2022,65.26,R & B Transformation 2,Supplies & Services,G57002/D200008,Technical Services Depot,Payments to Contractors External
Ashfield District Council,37UB,J Tomlinson Ltd,V0989678,07/03/2022,65.26,R & B Transformation 2,Supplies & Services,G57002/D200008,Technical Services Depot,Payments to Contractors External
Ashfield District Council,37UB,J Tomlinson Ltd,V0989679,07/03/2022,65.26,R & B Transformation 2,Supplies & Services,G57002/D200008,Technical Services Depot,Payments to Contractors External
Ashfield District Council,37UB,J Tomlinson Ltd,V0989680,07/03/2022,65.26,R & B Transformation 2,Supplies & Services,G57002/D200008,Technical Services Depot,Payments to Contractors External
Ashfield District Council,37UB,J Tomlinson Ltd,V0989681,07/03/2022,65.26,R & B Transformation 2,Supplies & Services,G57002/D200008,Technical Services Depot,Payments to Contractors External
Ashfield District Council,37UB,J Tomlinson Ltd,V0989682,07/03/2022,65.26,R & B Transformation 2,Supplies & Services,G57002/D200008,Technical Services Depot,Payments to Contractors External
Ashfield District Council,37UB,J Tomlinson Ltd,V0989683,07/03/2022,65.26,R & B Transformation 2,Supplies & Services,G57002/D200008,Technical Services Depot,Payments to Contractors External
Ashfield District Council,37UB,J Tomlinson Ltd,V0989684,07/03/2022,65.26,R & B Transformation 2,Supplies & Services,G57002/D200008,Technical Services Depot,Payments to Contractors External
Ashfield District Council,37UB,J Tomlinson Ltd,V0989685,07/03/2022,65.26,R & B Transformation 2,Supplies & Services,G57002/D200008,Technical Services Depot,Payments to Contractors External
Ashfield District Council,37UB,J Tomlinson Ltd,V0989686,07/03/2022,65.26,R & B Transformation 2,Supplies & Services,G57002/D200008,Technical Services Depot,Payments to Contractors External
Ashfield District Council,37UB,J Tomlinson Ltd,V0989687,07/03/2022,65.26,R & B Transformation 2,Supplies & Services,G57002/D200008,Technical Services Depot,Payments to Contractors External
Ashfield District Council,37UB,J Tomlinson Ltd,V0989688,07/03/2022,65.26,R & B Transformation 2,Supplies & Services,G57002/D200008,Technical Services Depot,Payments to Contractors External
Ashfield District Council,37UB,J Tomlinson Ltd,V0989689,07/03/2022,65.26,R & B Transformation 2,Supplies & Services,G57002/D200008,Technical Services Depot,Payments to Contractors External
Ashfield District Council,37UB,J Tomlinson Ltd,V0989690,07/03/2022,65.26,R & B Transformation 2,Supplies & Services,G57002/D200008,Technical Services Depot,Payments to Contractors External
Ashfield District Council,37UB,J Tomlinson Ltd,V0989691,07/03/2022,65.26,R & B Transformation 2,Supplies & Services,G57002/D200008,Technical Services Depot,Payments to Contractors External
Ashfield District Council,37UB,J Tomlinson Ltd,V0989692,07/03/2022,65.26,R & B Transformation 2,Supplies & Services,G57002/D200008,Technical Services Depot,Payments to Contractors External
Ashfield District Council,37UB,J Tomlinson Ltd,V0989693,07/03/2022,65.26,R & B Transformation 2,Supplies & Services,G57002/D200008,Technical Services Depot,Payments to Contractors External
Ashfield District Council,37UB,J Tomlinson Ltd,V0989694,07/03/2022,65.26,R & B Transformation 2,Supplies & Services,G57002/D200008,Technical Services Depot,Payments to Contractors External
Ashfield District Council,37UB,J Tomlinson Ltd,V0989695,07/03/2022,65.26,R & B Transformation 2,Supplies & Services,G57002/D200008,Technical Services Depot,Payments to Contractors External
Ashfield District Council,37UB,J Tomlinson Ltd,V0989696,07/03/2022,65.26,R & B Transformation 2,Supplies & Services,G57002/D200008,Technical Services Depot,Payments to Contractors External
Ashfield District Council,37UB,J Tomlinson Ltd,V0989697,07/03/2022,65.26,R & B Transformation 2,Supplies & Services,G57002/D200008,Technical Services Depot,Payments to Contractors External
Ashfield District Council,37UB,J Tomlinson Ltd,V0989698,07/03/2022,65.26,R & B Transformation 2,Supplies & Services,G57002/D200008,Technical Services Depot,Payments to Contractors External
Ashfield District Council,37UB,J Tomlinson Ltd,V0989699,07/03/2022,65.26,R & B Transformation 2,Supplies & Services,G57002/D200008,Technical Services Depot,Payments to Contractors External
Ashfield District Council,37UB,J Tomlinson Ltd,V0989700,07/03/2022,65.26,R & B Transformation 2,Supplies & Services,G57002/D200008,Technical Services Depot,Payments to Contractors External
Ashfield District Council,37UB,J Tomlinson Ltd,V0989701,07/03/2022,65.26,R & B Transformation 2,Supplies & Services,G57002/D200008,Technical Services Depot,Payments to Contractors External
Ashfield District Council,37UB,J Tomlinson Ltd,V0989702,07/03/2022,65.26,R & B Transformation 2,Supplies & Services,G57002/D200008,Technical Services Depot,Payments to Contractors External
Ashfield District Council,37UB,J Tomlinson Ltd,V0989703,07/03/2022,65.26,R & B Transformation 2,Supplies & Services,G57002/D200008,Technical Services Depot,Payments to Contractors External
Ashfield District Council,37UB,J Tomlinson Ltd,V0989704,07/03/2022,65.26,R & B Transformation 2,Supplies & Services,G57002/D200008,Technical Services Depot,Payments to Contractors External
Ashfield District Council,37UB,J Tomlinson Ltd,V0989705,07/03/2022,65.26,R & B Transformation 2,Supplies & Services,G57002/D200008,Technical Services Depot,Payments to Contractors External
Ashfield District Council,37UB,J Tomlinson Ltd,V0989706,07/03/2022,65.26,R & B Transformation 2,Supplies & Services,G57002/D200008,Technical Services Depot,Payments to Contractors External
Ashfield District Council,37UB,J Tomlinson Ltd,V0989707,07/03/2022,65.26,R & B Transformation 2,Supplies & Services,G57002/D200008,Technical Services Depot,Payments to Contractors External
Ashfield District Council,37UB,J Tomlinson Ltd,V0989708,07/03/2022,65.26,R & B Transformation 2,Supplies & Services,G57002/D200008,Technical Services Depot,Payments to Contractors External
Ashfield District Council,37UB,J Tomlinson Ltd,V0989709,07/03/2022,65.26,R & B Transformation 2,Supplies & Services,G57002/D200008,Technical Services Depot,Payments to Contractors External
Ashfield District Council,37UB,J Tomlinson Ltd,V0989710,07/03/2022,65.26,R & B Transformation 2,Supplies & Services,G57002/D200008,Technical Services Depot,Payments to Contractors External
Ashfield District Council,37UB,J Tomlinson Ltd,V0989711,07/03/2022,65.26,R & B Transformation 2,Supplies & Services,G57002/D200008,Technical Services Depot,Payments to Contractors External
Ashfield District Council,37UB,J Tomlinson Ltd,V0989712,07/03/2022,65.26,R & B Transformation 2,Supplies & Services,G57002/D200008,Technical Services Depot,Payments to Contractors External
Ashfield District Council,37UB,J Tomlinson Ltd,V0989713,07/03/2022,65.26,R & B Transformation 2,Supplies & Services,G57002/D200008,Technical Services Depot,Payments to Contractors External
Ashfield District Council,37UB,J Tomlinson Ltd,V0989714,07/03/2022,65.26,R & B Transformation 2,Supplies & Services,G57002/D200008,Technical Services Depot,Payments to Contractors External
Ashfield District Council,37UB,J Tomlinson Ltd,V0989715,07/03/2022,65.26,R & B Transformation 2,Supplies & Services,G57002/D200008,Technical Services Depot,Payments to Contractors External
Ashfield District Council,37UB,J Tomlinson Ltd,V0989716,07/03/2022,65.26,R & B Transformation 2,Supplies & Services,G57002/D200008,Technical Services Depot,Payments to Contractors External
Ashfield District Council,37UB,J Tomlinson Ltd,V0989717,07/03/2022,65.26,R & B Transformation 2,Supplies & Services,G57002/D200008,Technical Services Depot,Payments to Contractors External
Ashfield District Council,37UB,J Tomlinson Ltd,V0989718,07/03/2022,65.26,R & B Transformation 2,Supplies & Services,G57002/D200008,Technical Services Depot,Payments to Contractors External
Ashfield District Council,37UB,J Tomlinson Ltd,V0989719,07/03/2022,65.26,R & B Transformation 2,Supplies & Services,G57002/D200008,Technical Services Depot,Payments to Contractors External
Ashfield District Council,37UB,J Tomlinson Ltd,V0989720,07/03/2022,65.26,R & B Transformation 2,Supplies & Services,G57002/D200008,Technical Services Depot,Payments to Contractors External
Ashfield District Council,37UB,J Tomlinson Ltd,V0989721,07/03/2022,65.26,R & B Transformation 2,Supplies & Services,G57002/D200008,Technical Services Depot,Payments to Contractors External
Ashfield District Council,37UB,J Tomlinson Ltd,V0989722,07/03/2022,65.26,R & B Transformation 2,Supplies & Services,G57002/D200008,Technical Services Depot,Payments to Contractors External
Ashfield District Council,37UB,J Tomlinson Ltd,V0989723,07/03/2022,65.26,R & B Transformation 2,Supplies & Services,G57002/D200008,Technical Services Depot,Payments to Contractors External
Ashfield District Council,37UB,J Tomlinson Ltd,V0989724,07/03/2022,65.26,R & B Transformation 2,Supplies & Services,G57002/D200008,Technical Services Depot,Payments to Contractors External
Ashfield District Council,37UB,J Tomlinson Ltd,V0989725,07/03/2022,65.26,R & B Transformation 2,Supplies & Services,G57002/D200008,Technical Services Depot,Payments to Contractors External
Ashfield District Council,37UB,J Tomlinson Ltd,V0989726,07/03/2022,65.26,R & B Transformation 2,Supplies & Services,G57002/D200008,Technical Services Depot,Payments to Contractors External
Ashfield District Council,37UB,J Tomlinson Ltd,V0989727,07/03/2022,65.26,R & B Transformation 2,Supplies & Services,G57002/D200008,Technical Services Depot,Payments to Contractors External
Ashfield District Council,37UB,J Tomlinson Ltd,V0989728,07/03/2022,65.26,R & B Transformation 2,Supplies & Services,G57002/D200008,Technical Services Depot,Payments to Contractors External
Ashfield District Council,37UB,J Tomlinson Ltd,V0989729,07/03/2022,65.26,R & B Transformation 2,Supplies & Services,G57002/D200008,Technical Services Depot,Payments to Contractors External
Ashfield District Council,37UB,J Tomlinson Ltd,V0989730,07/03/2022,65.26,R & B Transformation 2,Supplies & Services,G57002/D200008,Technical Services Depot,Payments to Contractors External
Ashfield District Council,37UB,J Tomlinson Ltd,V0989731,07/03/2022,65.26,R & B Transformation 2,Supplies & Services,G57002/D200008,Technical Services Depot,Payments to Contractors External
Ashfield District Council,37UB,J Tomlinson Ltd,V0989732,07/03/2022,65.26,R & B Transformation 2,Supplies & Services,G57002/D200008,Technical Services Depot,Payments to Contractors External
Ashfield District Council,37UB,J Tomlinson Ltd,V0989733,07/03/2022,65.26,R & B Transformation 2,Supplies & Services,G57002/D200008,Technical Services Depot,Payments to Contractors External
Ashfield District Council,37UB,J Tomlinson Ltd,V0989734,07/03/2022,65.26,R & B Transformation 2,Supplies & Services,G57002/D200008,Technical Services Depot,Payments to Contractors External
Ashfield District Council,37UB,J Tomlinson Ltd,V0989735,07/03/2022,65.26,R & B Transformation 2,Supplies & Services,G57002/D200008,Technical Services Depot,Payments to Contractors External
Ashfield District Council,37UB,J Tomlinson Ltd,V0989736,07/03/2022,65.26,R & B Transformation 2,Supplies & Services,G57002/D200008,Technical Services Depot,Payments to Contractors External
Ashfield District Council,37UB,J Tomlinson Ltd,V0989737,07/03/2022,65.26,R & B Transformation 2,Supplies & Services,G57002/D200008,Technical Services Depot,Payments to Contractors External
Ashfield District Council,37UB,J Tomlinson Ltd,V0989738,07/03/2022,65.26,R & B Transformation 2,Supplies & Services,G57002/D200008,Technical Services Depot,Payments to Contractors External
Ashfield District Council,37UB,J Tomlinson Ltd,V0989739,07/03/2022,65.26,R & B Transformation 2,Supplies & Services,G57002/D200008,Technical Services Depot,Payments to Contractors External
Ashfield District Council,37UB,J Tomlinson Ltd,V0989740,07/03/2022,65.26,R & B Transformation 2,Supplies & Services,G57002/D200008,Technical Services Depot,Payments to Contractors External
Ashfield District Council,37UB,J Tomlinson Ltd,V0989741,07/03/2022,65.26,R & B Transformation 2,Supplies & Services,G57002/D200008,Technical Services Depot,Payments to Contractors External
Ashfield District Council,37UB,J Tomlinson Ltd,V0989742,07/03/2022,65.26,R & B Transformation 2,Supplies & Services,G57002/D200008,Technical Services Depot,Payments to Contractors External
Ashfield District Council,37UB,J Tomlinson Ltd,V0989743,07/03/2022,65.26,R & B Transformation 2,Supplies & Services,G57002/D200008,Technical Services Depot,Payments to Contractors External
Ashfield District Council,37UB,J Tomlinson Ltd,V0989744,07/03/2022,65.26,R & B Transformation 2,Supplies & Services,G57002/D200008,Technical Services Depot,Payments to Contractors External
Ashfield District Council,37UB,J Tomlinson Ltd,V0989745,07/03/2022,65.26,R & B Transformation 2,Supplies & Services,G57002/D200008,Technical Services Depot,Payments to Contractors External
Ashfield District Council,37UB,J Tomlinson Ltd,V0989746,07/03/2022,65.26,R & B Transformation 2,Supplies & Services,G57002/D200008,Technical Services Depot,Payments to Contractors External
Ashfield District Council,37UB,J Tomlinson Ltd,V0989747,07/03/2022,65.26,R & B Transformation 2,Supplies & Services,G57002/D200008,Technical Services Depot,Payments to Contractors External
Ashfield District Council,37UB,J Tomlinson Ltd,V0989748,07/03/2022,65.26,R & B Transformation 2,Supplies & Services,G57002/D200008,Technical Services Depot,Payments to Contractors External
Ashfield District Council,37UB,J Tomlinson Ltd,V0989749,07/03/2022,65.26,R & B Transformation 2,Supplies & Services,G57002/D200008,Technical Services Depot,Payments to Contractors External
Ashfield District Council,37UB,J Tomlinson Ltd,V0989750,07/03/2022,65.26,R & B Transformation 2,Supplies & Services,G57002/D200008,Technical Services Depot,Payments to Contractors External
Ashfield District Council,37UB,J Tomlinson Ltd,V0989751,07/03/2022,65.26,R & B Transformation 2,Supplies & Services,G57002/D200008,Technical Services Depot,Payments to Contractors External
Ashfield District Council,37UB,J Tomlinson Ltd,V0989752,07/03/2022,65.26,R & B Transformation 2,Supplies & Services,G57002/D200008,Technical Services Depot,Payments to Contractors External
Ashfield District Council,37UB,J Tomlinson Ltd,V0989753,07/03/2022,65.26,R & B Transformation 2,Supplies & Services,G57002/D200008,Technical Services Depot,Payments to Contractors External
Ashfield District Council,37UB,J Tomlinson Ltd,V0989754,07/03/2022,65.26,R & B Transformation 2,Supplies & Services,G57002/D200008,Technical Services Depot,Payments to Contractors External
Ashfield District Council,37UB,J Tomlinson Ltd,V0989755,07/03/2022,65.26,R & B Transformation 2,Supplies & Services,G57002/D200008,Technical Services Depot,Payments to Contractors External
Ashfield District Council,37UB,J Tomlinson Ltd,V0989756,07/03/2022,65.26,R & B Transformation 2,Supplies & Services,G57002/D200008,Technical Services Depot,Payments to Contractors External
Ashfield District Council,37UB,J Tomlinson Ltd,V0989757,07/03/2022,65.26,R & B Transformation 2,Supplies & Services,G57002/D200008,Technical Services Depot,Payments to Contractors External
Ashfield District Council,37UB,J Tomlinson Ltd,V0989758,07/03/2022,65.26,R & B Transformation 2,Supplies & Services,G57002/D200008,Technical Services Depot,Payments to Contractors External
Ashfield District Council,37UB,J Tomlinson Ltd,V0989759,07/03/2022,65.26,R & B Transformation 2,Supplies & Services,G57002/D200008,Technical Services Depot,Payments to Contractors External
Ashfield District Council,37UB,J Tomlinson Ltd,V0989760,07/03/2022,65.26,R & B Transformation 2,Supplies & Services,G57002/D200008,Technical Services Depot,Payments to Contractors External
Ashfield District Council,37UB,J Tomlinson Ltd,V0989761,07/03/2022,65.26,R & B Transformation 2,Supplies & Services,G57002/D200008,Technical Services Depot,Payments to Contractors External
Ashfield District Council,37UB,J Tomlinson Ltd,V0989762,07/03/2022,65.26,R & B Transformation 2,Supplies & Services,G57002/D200008,Technical Services Depot,Payments to Contractors External
Ashfield District Council,37UB,J Tomlinson Ltd,V0989763,07/03/2022,65.26,R & B Transformation 2,Supplies & Services,G57002/D200008,Technical Services Depot,Payments to Contractors External
Ashfield District Council,37UB,J Tomlinson Ltd,V0989764,07/03/2022,65.26,R & B Transformation 2,Supplies & Services,G57002/D200008,Technical Services Depot,Payments to Contractors External
Ashfield District Council,37UB,J Tomlinson Ltd,V0989765,07/03/2022,65.26,R & B Transformation 2,Supplies & Services,G57002/D200008,Technical Services Depot,Payments to Contractors External
Ashfield District Council,37UB,J Tomlinson Ltd,V0989766,07/03/2022,65.26,R & B Transformation 2,Supplies & Services,G57002/D200008,Technical Services Depot,Payments to Contractors External
Ashfield District Council,37UB,J Tomlinson Ltd,V0989767,07/03/2022,65.26,R & B Transformation 2,Supplies & Services,G57002/D200008,Technical Services Depot,Payments to Contractors External
Ashfield District Council,37UB,J Tomlinson Ltd,V0989768,07/03/2022,65.26,R & B Transformation 2,Supplies & Services,G57002/D200008,Technical Services Depot,Payments to Contractors External
Ashfield District Council,37UB,J Tomlinson Ltd,V0989769,07/03/2022,65.26,R & B Transformation 2,Supplies & Services,G57002/D200008,Technical Services Depot,Payments to Contractors External
Ashfield District Council,37UB,J Tomlinson Ltd,V0989770,07/03/2022,65.26,R & B Transformation 2,Supplies & Services,G57002/D200008,Technical Services Depot,Payments to Contractors External
Ashfield District Council,37UB,J Tomlinson Ltd,V0989771,07/03/2022,65.26,R & B Transformation 2,Supplies & Services,G57002/D200008,Technical Services Depot,Payments to Contractors External
Ashfield District Council,37UB,J Tomlinson Ltd,V0989772,07/03/2022,65.26,R & B Transformation 2,Supplies & Services,G57002/D200008,Technical Services Depot,Payments to Contractors External
Ashfield District Council,37UB,J Tomlinson Ltd,V0989773,07/03/2022,65.26,R & B Transformation 2,Supplies & Services,G57002/D200008,Technical Services Depot,Payments to Contractors External
